Workbook

Sheet Mapa

Sheet Fronteras
A1: Frontera | B1: X | C1: Y | D1: Ancho | E1: Alto | F1: Centro X | G1: Centro Y | H1: Distancia | I1: Fila
A2: Australia | B2: 487.860321 | C2: 225.6860657 | D2: 207.0284271 | E2: 105.6832275 | F2: =TablaFronteras[[#This Row],[X]]+TablaFronteras[[#This Row],[Ancho]]/2 -> 591.3745346 | G2: =TablaFronteras[[#This Row],[Y]]+TablaFronteras[[#This Row],[Alto]]/2 -> 278.5276794 | H2: =IF(AND(TablaFronteras[[#This Row],[Fila]]<>"",TablaFronteras[[#This Row],[X]]<miX,miX<TablaFronteras[[#This Row],[X]]+TablaFronteras[[#This Row],[Ancho]],TablaFronteras[[#This Row],[Y]]<miY,miY<TablaFronteras[[#This Row],[Y]]+TablaFronteras[[#This Row],[Alto]]),SQRT((TablaFronteras[[#This Row],[Centro X]]-miX)^2+(TablaFronteras[[#This Row],[Centro Y]]-miY)^2),"") ->  | I2: =IF(TablaFronteras[[#This Row],[Frontera]]="","",IFERROR(MATCH(RIGHT(TablaFronteras[[#This Row],[Frontera]],LEN(TablaFronteras[[#This Row],[Frontera]])-IFERROR(FIND(" - ",TablaFronteras[[#This Row],[Frontera]])+2,0)),TablaFronteras[Frontera],0),"")) -> 1
A3: Indonesia | B3: 551.5252075 | C3: 186.9400787 | D3: 95.45275879 | E3: 40.76944733 | F3: =TablaFronteras[[#This Row],[X]]+TablaFronteras[[#This Row],[Ancho]]/2 -> 599.2515869 | G3: =TablaFronteras[[#This Row],[Y]]+TablaFronteras[[#This Row],[Alto]]/2 -> 207.3248024 | H3: =IF(AND(TablaFronteras[[#This Row],[Fila]]<>"",TablaFronteras[[#This Row],[X]]<miX,miX<TablaFronteras[[#This Row],[X]]+TablaFronteras[[#This Row],[Ancho]],TablaFronteras[[#This Row],[Y]]<miY,miY<TablaFronteras[[#This Row],[Y]]+TablaFronteras[[#This Row],[Alto]]),SQRT((TablaFronteras[[#This Row],[Centro X]]-miX)^2+(TablaFronteras[[#This Row],[Centro Y]]-miY)^2),"") ->  | I3: =IF(TablaFronteras[[#This Row],[Frontera]]="","",IFERROR(MATCH(RIGHT(TablaFronteras[[#This Row],[Frontera]],LEN(TablaFronteras[[#This Row],[Frontera]])-IFERROR(FIND(" - ",TablaFronteras[[#This Row],[Frontera]])+2,0)),TablaFronteras[Frontera],0),"")) -> 2 | L3: Blog: | M3: #ExcelPedroWave
A4: Groenlandia | B4: 263.8008728 | C4: 12.5771656 | D4: 83.10984039 | E4: 45.75708771 | F4: =TablaFronteras[[#This Row],[X]]+TablaFronteras[[#This Row],[Ancho]]/2 -> 305.355793 | G4: =TablaFronteras[[#This Row],[Y]]+TablaFronteras[[#This Row],[Alto]]/2 -> 35.45570946 | H4: =IF(AND(TablaFronteras[[#This Row],[Fila]]<>"",TablaFronteras[[#This Row],[X]]<miX,miX<TablaFronteras[[#This Row],[X]]+TablaFronteras[[#This Row],[Ancho]],TablaFronteras[[#This Row],[Y]]<miY,miY<TablaFronteras[[#This Row],[Y]]+TablaFronteras[[#This Row],[Alto]]),SQRT((TablaFronteras[[#This Row],[Centro X]]-miX)^2+(TablaFronteras[[#This Row],[Centro Y]]-miY)^2),"") ->  | I4: =IF(TablaFronteras[[#This Row],[Frontera]]="","",IFERROR(MATCH(RIGHT(TablaFronteras[[#This Row],[Frontera]],LEN(TablaFronteras[[#This Row],[Frontera]])-IFERROR(FIND(" - ",TablaFronteras[[#This Row],[Frontera]])+2,0)),TablaFronteras[Frontera],0),"")) -> 3 | L4: YouTube: | M4: Excel Pedro Wave
A5: Canadá | B5: 123.2971649 | C5: 14.58370113 | D5: 163.2688141 | E5: 86.1352005 | F5: =TablaFronteras[[#This Row],[X]]+TablaFronteras[[#This Row],[Ancho]]/2 -> 204.931572 | G5: =TablaFronteras[[#This Row],[Y]]+TablaFronteras[[#This Row],[Alto]]/2 -> 57.65130138 | H5: =IF(AND(TablaFronteras[[#This Row],[Fila]]<>"",TablaFronteras[[#This Row],[X]]<miX,miX<TablaFronteras[[#This Row],[X]]+TablaFronteras[[#This Row],[Ancho]],TablaFronteras[[#This Row],[Y]]<miY,miY<TablaFronteras[[#This Row],[Y]]+TablaFronteras[[#This Row],[Alto]]),SQRT((TablaFronteras[[#This Row],[Centro X]]-miX)^2+(TablaFronteras[[#This Row],[Centro Y]]-miY)^2),"") ->  | I5: =IF(TablaFronteras[[#This Row],[Frontera]]="","",IFERROR(MATCH(RIGHT(TablaFronteras[[#This Row],[Frontera]],LEN(TablaFronteras[[#This Row],[Frontera]])-IFERROR(FIND(" - ",TablaFronteras[[#This Row],[Frontera]])+2,0)),TablaFronteras[Frontera],0),"")) -> 4 | L5: Copyright: | M5: Creative Commons 3.0
A6: Estados Unidos | B6: 28.16803169 | C6: 38.17653656 | D6: 203.5213318 | E6: 114.8796844 | F6: =TablaFronteras[[#This Row],[X]]+TablaFronteras[[#This Row],[Ancho]]/2 -> 129.9286976 | G6: =TablaFronteras[[#This Row],[Y]]+TablaFronteras[[#This Row],[Alto]]/2 -> 95.61637878 | H6: =IF(AND(TablaFronteras[[#This Row],[Fila]]<>"",TablaFronteras[[#This Row],[X]]<miX,miX<TablaFronteras[[#This Row],[X]]+TablaFronteras[[#This Row],[Ancho]],TablaFronteras[[#This Row],[Y]]<miY,miY<TablaFronteras[[#This Row],[Y]]+TablaFronteras[[#This Row],[Alto]]),SQRT((TablaFronteras[[#This Row],[Centro X]]-miX)^2+(TablaFronteras[[#This Row],[Centro Y]]-miY)^2),"") ->  | I6: =IF(TablaFronteras[[#This Row],[Frontera]]="","",IFERROR(MATCH(RIGHT(TablaFronteras[[#This Row],[Frontera]],LEN(TablaFronteras[[#This Row],[Frontera]])-IFERROR(FIND(" - ",TablaFronteras[[#This Row],[Frontera]])+2,0)),TablaFronteras[Frontera],0),"")) -> 5
A7: India | B7: 493.2909546 | C7: 114.1474838 | D7: 56.80031586 | E7: 69.58937073 | F7: =TablaFronteras[[#This Row],[X]]+TablaFronteras[[#This Row],[Ancho]]/2 -> 521.6911125 | G7: =TablaFronteras[[#This Row],[Y]]+TablaFronteras[[#This Row],[Alto]]/2 -> 148.9421692 | H7: =IF(AND(TablaFronteras[[#This Row],[Fila]]<>"",TablaFronteras[[#This Row],[X]]<miX,miX<TablaFronteras[[#This Row],[X]]+TablaFronteras[[#This Row],[Ancho]],TablaFronteras[[#This Row],[Y]]<miY,miY<TablaFronteras[[#This Row],[Y]]+TablaFronteras[[#This Row],[Alto]]),SQRT((TablaFronteras[[#This Row],[Centro X]]-miX)^2+(TablaFronteras[[#This Row],[Centro Y]]-miY)^2),"") ->  | I7: =IF(TablaFronteras[[#This Row],[Frontera]]="","",IFERROR(MATCH(RIGHT(TablaFronteras[[#This Row],[Frontera]],LEN(TablaFronteras[[#This Row],[Frontera]])-IFERROR(FIND(" - ",TablaFronteras[[#This Row],[Frontera]])+2,0)),TablaFronteras[Frontera],0),"")) -> 6
A8: Ucrania | B8: 396.7102356 | C8: 75.12268066 | D8: 32.76251984 | E8: 16.79055023 | F8: =TablaFronteras[[#This Row],[X]]+TablaFronteras[[#This Row],[Ancho]]/2 -> 413.0914955 | G8: =TablaFronteras[[#This Row],[Y]]+TablaFronteras[[#This Row],[Alto]]/2 -> 83.51795578 | H8: =IF(AND(TablaFronteras[[#This Row],[Fila]]<>"",TablaFronteras[[#This Row],[X]]<miX,miX<TablaFronteras[[#This Row],[X]]+TablaFronteras[[#This Row],[Ancho]],TablaFronteras[[#This Row],[Y]]<miY,miY<TablaFronteras[[#This Row],[Y]]+TablaFronteras[[#This Row],[Alto]]),SQRT((TablaFronteras[[#This Row],[Centro X]]-miX)^2+(TablaFronteras[[#This Row],[Centro Y]]-miY)^2),"") ->  | I8: =IF(TablaFronteras[[#This Row],[Frontera]]="","",IFERROR(MATCH(RIGHT(TablaFronteras[[#This Row],[Frontera]],LEN(TablaFronteras[[#This Row],[Frontera]])-IFERROR(FIND(" - ",TablaFronteras[[#This Row],[Frontera]])+2,0)),TablaFronteras[Frontera],0),"")) -> 7
A9: Malasia | B9: 561.2561646 | C9: 183.4714203 | D9: 40.87181091 | E9: 15.62740135 | F9: =TablaFronteras[[#This Row],[X]]+TablaFronteras[[#This Row],[Ancho]]/2 -> 581.69207 | G9: =TablaFronteras[[#This Row],[Y]]+TablaFronteras[[#This Row],[Alto]]/2 -> 191.285121 | H9: =IF(AND(TablaFronteras[[#This Row],[Fila]]<>"",TablaFronteras[[#This Row],[X]]<miX,miX<TablaFronteras[[#This Row],[X]]+TablaFronteras[[#This Row],[Ancho]],TablaFronteras[[#This Row],[Y]]<miY,miY<TablaFronteras[[#This Row],[Y]]+TablaFronteras[[#This Row],[Alto]]),SQRT((TablaFronteras[[#This Row],[Centro X]]-miX)^2+(TablaFronteras[[#This Row],[Centro Y]]-miY)^2),"") ->  | I9: =IF(TablaFronteras[[#This Row],[Frontera]]="","",IFERROR(MATCH(RIGHT(TablaFronteras[[#This Row],[Frontera]],LEN(TablaFronteras[[#This Row],[Frontera]])-IFERROR(FIND(" - ",TablaFronteras[[#This Row],[Frontera]])+2,0)),TablaFronteras[Frontera],0),"")) -> 8
A10: China | B10: 496.9219666 | C10: 73.56653595 | D10: 107.0614929 | E10: 80.17897797 | F10: =TablaFronteras[[#This Row],[X]]+TablaFronteras[[#This Row],[Ancho]]/2 -> 550.452713 | G10: =TablaFronteras[[#This Row],[Y]]+TablaFronteras[[#This Row],[Alto]]/2 -> 113.6560249 | H10: =IF(AND(TablaFronteras[[#This Row],[Fila]]<>"",TablaFronteras[[#This Row],[X]]<miX,miX<TablaFronteras[[#This Row],[X]]+TablaFronteras[[#This Row],[Ancho]],TablaFronteras[[#This Row],[Y]]<miY,miY<TablaFronteras[[#This Row],[Y]]+TablaFronteras[[#This Row],[Alto]]),SQRT((TablaFronteras[[#This Row],[Centro X]]-miX)^2+(TablaFronteras[[#This Row],[Centro Y]]-miY)^2),"") ->  | I10: =IF(TablaFronteras[[#This Row],[Frontera]]="","",IFERROR(MATCH(RIGHT(TablaFronteras[[#This Row],[Frontera]],LEN(TablaFronteras[[#This Row],[Frontera]])-IFERROR(FIND(" - ",TablaFronteras[[#This Row],[Frontera]])+2,0)),TablaFronteras[Frontera],0),"")) -> 9
A11: Taiwán | B11: 598.0986328 | C11: 140.0177155 | D11: 2.992834568 | E11: 8.187087059 | F11: =TablaFronteras[[#This Row],[X]]+TablaFronteras[[#This Row],[Ancho]]/2 -> 599.5950501 | G11: =TablaFronteras[[#This Row],[Y]]+TablaFronteras[[#This Row],[Alto]]/2 -> 144.111259 | H11: =IF(AND(TablaFronteras[[#This Row],[Fila]]<>"",TablaFronteras[[#This Row],[X]]<miX,miX<TablaFronteras[[#This Row],[X]]+TablaFronteras[[#This Row],[Ancho]],TablaFronteras[[#This Row],[Y]]<miY,miY<TablaFronteras[[#This Row],[Y]]+TablaFronteras[[#This Row],[Alto]]),SQRT((TablaFronteras[[#This Row],[Centro X]]-miX)^2+(TablaFronteras[[#This Row],[Centro Y]]-miY)^2),"") ->  | I11: =IF(TablaFronteras[[#This Row],[Frontera]]="","",IFERROR(MATCH(RIGHT(TablaFronteras[[#This Row],[Frontera]],LEN(TablaFronteras[[#This Row],[Frontera]])-IFERROR(FIND(" - ",TablaFronteras[[#This Row],[Frontera]])+2,0)),TablaFronteras[Frontera],0),"")) -> 10
A12: Rusia | B12: 392.0327454 | C12: 19.01314926 | D12: 265.0511169 | E12: 80.78488159 | F12: =TablaFronteras[[#This Row],[X]]+TablaFronteras[[#This Row],[Ancho]]/2 -> 524.5583038 | G12: =TablaFronteras[[#This Row],[Y]]+TablaFronteras[[#This Row],[Alto]]/2 -> 59.40559006 | H12: =IF(AND(TablaFronteras[[#This Row],[Fila]]<>"",TablaFronteras[[#This Row],[X]]<miX,miX<TablaFronteras[[#This Row],[X]]+TablaFronteras[[#This Row],[Ancho]],TablaFronteras[[#This Row],[Y]]<miY,miY<TablaFronteras[[#This Row],[Y]]+TablaFronteras[[#This Row],[Alto]]),SQRT((TablaFronteras[[#This Row],[Centro X]]-miX)^2+(TablaFronteras[[#This Row],[Centro Y]]-miY)^2),"") ->  | I12: =IF(TablaFronteras[[#This Row],[Frontera]]="","",IFERROR(MATCH(RIGHT(TablaFronteras[[#This Row],[Frontera]],LEN(TablaFronteras[[#This Row],[Frontera]])-IFERROR(FIND(" - ",TablaFronteras[[#This Row],[Frontera]])+2,0)),TablaFronteras[Frontera],0),"")) -> 11
A13: Crimea - Ucrania | B13: 417.0750427 | C13: 84.68889618 | D13: 7.66401577 | E13: 3.128976345 | F13: =TablaFronteras[[#This Row],[X]]+TablaFronteras[[#This Row],[Ancho]]/2 -> 420.9070506 | G13: =TablaFronteras[[#This Row],[Y]]+TablaFronteras[[#This Row],[Alto]]/2 -> 86.25338435 | H13: =IF(AND(TablaFronteras[[#This Row],[Fila]]<>"",TablaFronteras[[#This Row],[X]]<miX,miX<TablaFronteras[[#This Row],[X]]+TablaFronteras[[#This Row],[Ancho]],TablaFronteras[[#This Row],[Y]]<miY,miY<TablaFronteras[[#This Row],[Y]]+TablaFronteras[[#This Row],[Alto]]),SQRT((TablaFronteras[[#This Row],[Centro X]]-miX)^2+(TablaFronteras[[#This Row],[Centro Y]]-miY)^2),"") ->  | I13: =IF(TablaFronteras[[#This Row],[Frontera]]="","",IFERROR(MATCH(RIGHT(TablaFronteras[[#This Row],[Frontera]],LEN(TablaFronteras[[#This Row],[Frontera]])-IFERROR(FIND(" - ",TablaFronteras[[#This Row],[Frontera]])+2,0)),TablaFronteras[Frontera],0),"")) -> 7
A14: Islandia | B14: 321.1137695 | C14: 43.92496109 | D14: 16.88236237 | E14: 6.340866089 | F14: =TablaFronteras[[#This Row],[X]]+TablaFronteras[[#This Row],[Ancho]]/2 -> 329.5549507 | G14: =TablaFronteras[[#This Row],[Y]]+TablaFronteras[[#This Row],[Alto]]/2 -> 47.09539413 | H14: =IF(AND(TablaFronteras[[#This Row],[Fila]]<>"",TablaFronteras[[#This Row],[X]]<miX,miX<TablaFronteras[[#This Row],[X]]+TablaFronteras[[#This Row],[Ancho]],TablaFronteras[[#This Row],[Y]]<miY,miY<TablaFronteras[[#This Row],[Y]]+TablaFronteras[[#This Row],[Alto]]),SQRT((TablaFronteras[[#This Row],[Centro X]]-miX)^2+(TablaFronteras[[#This Row],[Centro Y]]-miY)^2),"") ->  | I14: =IF(TablaFronteras[[#This Row],[Frontera]]="","",IFERROR(MATCH(RIGHT(TablaFronteras[[#This Row],[Frontera]],LEN(TablaFronteras[[#This Row],[Frontera]])-IFERROR(FIND(" - ",TablaFronteras[[#This Row],[Frontera]])+2,0)),TablaFronteras[Frontera],0),"")) -> 13
A15: Países Bajos | B15: 363.2460632 | C15: 72.65157318 | D15: 7.087637901 | E15: 6.122204781 | F15: =TablaFronteras[[#This Row],[X]]+TablaFronteras[[#This Row],[Ancho]]/2 -> 366.7898822 | G15: =TablaFronteras[[#This Row],[Y]]+TablaFronteras[[#This Row],[Alto]]/2 -> 75.71267557 | H15: =IF(AND(TablaFronteras[[#This Row],[Fila]]<>"",TablaFronteras[[#This Row],[X]]<miX,miX<TablaFronteras[[#This Row],[X]]+TablaFronteras[[#This Row],[Ancho]],TablaFronteras[[#This Row],[Y]]<miY,miY<TablaFronteras[[#This Row],[Y]]+TablaFronteras[[#This Row],[Alto]]),SQRT((TablaFronteras[[#This Row],[Centro X]]-miX)^2+(TablaFronteras[[#This Row],[Centro Y]]-miY)^2),"") ->  | I15: =IF(TablaFronteras[[#This Row],[Frontera]]="","",IFERROR(MATCH(RIGHT(TablaFronteras[[#This Row],[Frontera]],LEN(TablaFronteras[[#This Row],[Frontera]])-IFERROR(FIND(" - ",TablaFronteras[[#This Row],[Frontera]])+2,0)),TablaFronteras[Frontera],0),"")) -> 14
A16: Francia | B16: 348.2277832 | C16: 78.05039215 | D16: 26.12070847 | E16: 23.01787376 | F16: =TablaFronteras[[#This Row],[X]]+TablaFronteras[[#This Row],[Ancho]]/2 -> 361.2881374 | G16: =TablaFronteras[[#This Row],[Y]]+TablaFronteras[[#This Row],[Alto]]/2 -> 89.55932903 | H16: =IF(AND(TablaFronteras[[#This Row],[Fila]]<>"",TablaFronteras[[#This Row],[X]]<miX,miX<TablaFronteras[[#This Row],[X]]+TablaFronteras[[#This Row],[Ancho]],TablaFronteras[[#This Row],[Y]]<miY,miY<TablaFronteras[[#This Row],[Y]]+TablaFronteras[[#This Row],[Alto]]),SQRT((TablaFronteras[[#This Row],[Centro X]]-miX)^2+(TablaFronteras[[#This Row],[Centro Y]]-miY)^2),"") ->  | I16: =IF(TablaFronteras[[#This Row],[Frontera]]="","",IFERROR(MATCH(RIGHT(TablaFronteras[[#This Row],[Frontera]],LEN(TablaFronteras[[#This Row],[Frontera]])-IFERROR(FIND(" - ",TablaFronteras[[#This Row],[Frontera]])+2,0)),TablaFronteras[Frontera],0),"")) -> 15
A17: Italia | B17: 368.8984985 | C17: 87.59866333 | D17: 22.49196815 | E17: 24.73558998 | F17: =TablaFronteras[[#This Row],[X]]+TablaFronteras[[#This Row],[Ancho]]/2 -> 380.1444826 | G17: =TablaFronteras[[#This Row],[Y]]+TablaFronteras[[#This Row],[Alto]]/2 -> 99.96645832 | H17: =IF(AND(TablaFronteras[[#This Row],[Fila]]<>"",TablaFronteras[[#This Row],[X]]<miX,miX<TablaFronteras[[#This Row],[X]]+TablaFronteras[[#This Row],[Ancho]],TablaFronteras[[#This Row],[Y]]<miY,miY<TablaFronteras[[#This Row],[Y]]+TablaFronteras[[#This Row],[Alto]]),SQRT((TablaFronteras[[#This Row],[Centro X]]-miX)^2+(TablaFronteras[[#This Row],[Centro Y]]-miY)^2),"") ->  | I17: =IF(TablaFronteras[[#This Row],[Frontera]]="","",IFERROR(MATCH(RIGHT(TablaFronteras[[#This Row],[Frontera]],LEN(TablaFronteras[[#This Row],[Frontera]])-IFERROR(FIND(" - ",TablaFronteras[[#This Row],[Frontera]])+2,0)),TablaFronteras[Frontera],0),"")) -> 16
A18: España | B18: 318.8129883 | C18: 95.31551361 | D18: 45.41307068 | E18: 38.99102402 | F18: =TablaFronteras[[#This Row],[X]]+TablaFronteras[[#This Row],[Ancho]]/2 -> 341.5195236 | G18: =TablaFronteras[[#This Row],[Y]]+TablaFronteras[[#This Row],[Alto]]/2 -> 114.8110256 | H18: =IF(AND(TablaFronteras[[#This Row],[Fila]]<>"",TablaFronteras[[#This Row],[X]]<miX,miX<TablaFronteras[[#This Row],[X]]+TablaFronteras[[#This Row],[Ancho]],TablaFronteras[[#This Row],[Y]]<miY,miY<TablaFronteras[[#This Row],[Y]]+TablaFronteras[[#This Row],[Alto]]),SQRT((TablaFronteras[[#This Row],[Centro X]]-miX)^2+(TablaFronteras[[#This Row],[Centro Y]]-miY)^2),"") ->  | I18: =IF(TablaFronteras[[#This Row],[Frontera]]="","",IFERROR(MATCH(RIGHT(TablaFronteras[[#This Row],[Frontera]],LEN(TablaFronteras[[#This Row],[Frontera]])-IFERROR(FIND(" - ",TablaFronteras[[#This Row],[Frontera]])+2,0)),TablaFronteras[Frontera],0),"")) -> 17
A19: Portugal | B19: 299.9029846 | C19: 99.15275574 | D19: 44.49212646 | E19: 23.11527634 | F19: =TablaFronteras[[#This Row],[X]]+TablaFronteras[[#This Row],[Ancho]]/2 -> 322.1490479 | G19: =TablaFronteras[[#This Row],[Y]]+TablaFronteras[[#This Row],[Alto]]/2 -> 110.7103939 | H19: =IF(AND(TablaFronteras[[#This Row],[Fila]]<>"",TablaFronteras[[#This Row],[X]]<miX,miX<TablaFronteras[[#This Row],[X]]+TablaFronteras[[#This Row],[Ancho]],TablaFronteras[[#This Row],[Y]]<miY,miY<TablaFronteras[[#This Row],[Y]]+TablaFronteras[[#This Row],[Alto]]),SQRT((TablaFronteras[[#This Row],[Centro X]]-miX)^2+(TablaFronteras[[#This Row],[Centro Y]]-miY)^2),"") ->  | I19: =IF(TablaFronteras[[#This Row],[Frontera]]="","",IFERROR(MATCH(RIGHT(TablaFronteras[[#This Row],[Frontera]],LEN(TablaFronteras[[#This Row],[Frontera]])-IFERROR(FIND(" - ",TablaFronteras[[#This Row],[Frontera]])+2,0)),TablaFronteras[Frontera],0),"")) -> 18
A20: Bélgica | B20: 361.6885681 | C20: 77.13897705 | D20: 7.035039425 | E20: 4.56496048 | F20: =TablaFronteras[[#This Row],[X]]+TablaFronteras[[#This Row],[Ancho]]/2 -> 365.2060878 | G20: =TablaFronteras[[#This Row],[Y]]+TablaFronteras[[#This Row],[Alto]]/2 -> 79.42145729 | H20: =IF(AND(TablaFronteras[[#This Row],[Fila]]<>"",TablaFronteras[[#This Row],[X]]<miX,miX<TablaFronteras[[#This Row],[X]]+TablaFronteras[[#This Row],[Ancho]],TablaFronteras[[#This Row],[Y]]<miY,miY<TablaFronteras[[#This Row],[Y]]+TablaFronteras[[#This Row],[Alto]]),SQRT((TablaFronteras[[#This Row],[Centro X]]-miX)^2+(TablaFronteras[[#This Row],[Centro Y]]-miY)^2),"") ->  | I20: =IF(TablaFronteras[[#This Row],[Frontera]]="","",IFERROR(MATCH(RIGHT(TablaFronteras[[#This Row],[Frontera]],LEN(TablaFronteras[[#This Row],[Frontera]])-IFERROR(FIND(" - ",TablaFronteras[[#This Row],[Frontera]])+2,0)),TablaFronteras[Frontera],0),"")) -> 19
A21: Irlanda | B21: 338.7609558 | C21: 68.26228333 | D21: 8.244094849 | E21: 8.915196419 | F21: =TablaFronteras[[#This Row],[X]]+TablaFronteras[[#This Row],[Ancho]]/2 -> 342.8830032 | G21: =TablaFronteras[[#This Row],[Y]]+TablaFronteras[[#This Row],[Alto]]/2 -> 72.71988153 | H21: =IF(AND(TablaFronteras[[#This Row],[Fila]]<>"",TablaFronteras[[#This Row],[X]]<miX,miX<TablaFronteras[[#This Row],[X]]+TablaFronteras[[#This Row],[Ancho]],TablaFronteras[[#This Row],[Y]]<miY,miY<TablaFronteras[[#This Row],[Y]]+TablaFronteras[[#This Row],[Alto]]),SQRT((TablaFronteras[[#This Row],[Centro X]]-miX)^2+(TablaFronteras[[#This Row],[Centro Y]]-miY)^2),"") ->  | I21: =IF(TablaFronteras[[#This Row],[Frontera]]="","",IFERROR(MATCH(RIGHT(TablaFronteras[[#This Row],[Frontera]],LEN(TablaFronteras[[#This Row],[Frontera]])-IFERROR(FIND(" - ",TablaFronteras[[#This Row],[Frontera]])+2,0)),TablaFronteras[Frontera],0),"")) -> 20
A22: Reino Unido | B22: 343.5569153 | C22: 55.94574738 | D22: 16.8434639 | E22: 24.61653519 | F22: =TablaFronteras[[#This Row],[X]]+TablaFronteras[[#This Row],[Ancho]]/2 -> 351.9786472 | G22: =TablaFronteras[[#This Row],[Y]]+TablaFronteras[[#This Row],[Alto]]/2 -> 68.25401497 | H22: =IF(AND(TablaFronteras[[#This Row],[Fila]]<>"",TablaFronteras[[#This Row],[X]]<miX,miX<TablaFronteras[[#This Row],[X]]+TablaFronteras[[#This Row],[Ancho]],TablaFronteras[[#This Row],[Y]]<miY,miY<TablaFronteras[[#This Row],[Y]]+TablaFronteras[[#This Row],[Alto]]),SQRT((TablaFronteras[[#This Row],[Centro X]]-miX)^2+(TablaFronteras[[#This Row],[Centro Y]]-miY)^2),"") ->  | I22: =IF(TablaFronteras[[#This Row],[Frontera]]="","",IFERROR(MATCH(RIGHT(TablaFronteras[[#This Row],[Frontera]],LEN(TablaFronteras[[#This Row],[Frontera]])-IFERROR(FIND(" - ",TablaFronteras[[#This Row],[Frontera]])+2,0)),TablaFronteras[Frontera],0),"")) -> 21
A23: Alemania | B23: 367.9505615 | C23: 68.95307159 | D23: 16.07118034 | E23: 18.19196892 | F23: =TablaFronteras[[#This Row],[X]]+TablaFronteras[[#This Row],[Ancho]]/2 -> 375.9861517 | G23: =TablaFronteras[[#This Row],[Y]]+TablaFronteras[[#This Row],[Alto]]/2 -> 78.04905605 | H23: =IF(AND(TablaFronteras[[#This Row],[Fila]]<>"",TablaFronteras[[#This Row],[X]]<miX,miX<TablaFronteras[[#This Row],[X]]+TablaFronteras[[#This Row],[Ancho]],TablaFronteras[[#This Row],[Y]]<miY,miY<TablaFronteras[[#This Row],[Y]]+TablaFronteras[[#This Row],[Alto]]),SQRT((TablaFronteras[[#This Row],[Centro X]]-miX)^2+(TablaFronteras[[#This Row],[Centro Y]]-miY)^2),"") ->  | I23: =IF(TablaFronteras[[#This Row],[Frontera]]="","",IFERROR(MATCH(RIGHT(TablaFronteras[[#This Row],[Frontera]],LEN(TablaFronteras[[#This Row],[Frontera]])-IFERROR(FIND(" - ",TablaFronteras[[#This Row],[Frontera]])+2,0)),TablaFronteras[Frontera],0),"")) -> 22
A24: Suiza | B24: 368.2354431 | C24: 85.89039612 | D24: 7.74346447 | E24: 4.646062851 | F24: =TablaFronteras[[#This Row],[X]]+TablaFronteras[[#This Row],[Ancho]]/2 -> 372.1071754 | G24: =TablaFronteras[[#This Row],[Y]]+TablaFronteras[[#This Row],[Alto]]/2 -> 88.21342754 | H24: =IF(AND(TablaFronteras[[#This Row],[Fila]]<>"",TablaFronteras[[#This Row],[X]]<miX,miX<TablaFronteras[[#This Row],[X]]+TablaFronteras[[#This Row],[Ancho]],TablaFronteras[[#This Row],[Y]]<miY,miY<TablaFronteras[[#This Row],[Y]]+TablaFronteras[[#This Row],[Alto]]),SQRT((TablaFronteras[[#This Row],[Centro X]]-miX)^2+(TablaFronteras[[#This Row],[Centro Y]]-miY)^2),"") ->  | I24: =IF(TablaFronteras[[#This Row],[Frontera]]="","",IFERROR(MATCH(RIGHT(TablaFronteras[[#This Row],[Frontera]],LEN(TablaFronteras[[#This Row],[Frontera]])-IFERROR(FIND(" - ",TablaFronteras[[#This Row],[Frontera]])+2,0)),TablaFronteras[Frontera],0),"")) -> 23
A25: Austria | B25: 373.9789124 | C25: 82.85031128 | D25: 14.31566906 | E25: 6.370078564 | F25: =TablaFronteras[[#This Row],[X]]+TablaFronteras[[#This Row],[Ancho]]/2 -> 381.1367469 | G25: =TablaFronteras[[#This Row],[Y]]+TablaFronteras[[#This Row],[Alto]]/2 -> 86.03535056 | H25: =IF(AND(TablaFronteras[[#This Row],[Fila]]<>"",TablaFronteras[[#This Row],[X]]<miX,miX<TablaFronteras[[#This Row],[X]]+TablaFronteras[[#This Row],[Ancho]],TablaFronteras[[#This Row],[Y]]<miY,miY<TablaFronteras[[#This Row],[Y]]+TablaFronteras[[#This Row],[Alto]]),SQRT((TablaFronteras[[#This Row],[Centro X]]-miX)^2+(TablaFronteras[[#This Row],[Centro Y]]-miY)^2),"") ->  | I25: =IF(TablaFronteras[[#This Row],[Frontera]]="","",IFERROR(MATCH(RIGHT(TablaFronteras[[#This Row],[Frontera]],LEN(TablaFronteras[[#This Row],[Frontera]])-IFERROR(FIND(" - ",TablaFronteras[[#This Row],[Frontera]])+2,0)),TablaFronteras[Frontera],0),"")) -> 24
A26: República Checa | B26: 378.4210205 | C26: 78.17047119 | D26: 12.98448849 | E26: 5.705039501 | F26: =TablaFronteras[[#This Row],[X]]+TablaFronteras[[#This Row],[Ancho]]/2 -> 384.9132648 | G26: =TablaFronteras[[#This Row],[Y]]+TablaFronteras[[#This Row],[Alto]]/2 -> 81.02299094 | H26: =IF(AND(TablaFronteras[[#This Row],[Fila]]<>"",TablaFronteras[[#This Row],[X]]<miX,miX<TablaFronteras[[#This Row],[X]]+TablaFronteras[[#This Row],[Ancho]],TablaFronteras[[#This Row],[Y]]<miY,miY<TablaFronteras[[#This Row],[Y]]+TablaFronteras[[#This Row],[Alto]]),SQRT((TablaFronteras[[#This Row],[Centro X]]-miX)^2+(TablaFronteras[[#This Row],[Centro Y]]-miY)^2),"") ->  | I26: =IF(TablaFronteras[[#This Row],[Frontera]]="","",IFERROR(MATCH(RIGHT(TablaFronteras[[#This Row],[Frontera]],LEN(TablaFronteras[[#This Row],[Frontera]])-IFERROR(FIND(" - ",TablaFronteras[[#This Row],[Frontera]])+2,0)),TablaFronteras[Frontera],0),"")) -> 25
A27: Dinamarca | B27: 371.9784241 | C27: 62.78173065 | D27: 11.9274807 | E27: 7.136929035 | F27: =TablaFronteras[[#This Row],[X]]+TablaFronteras[[#This Row],[Ancho]]/2 -> 377.9421644 | G27: =TablaFronteras[[#This Row],[Y]]+TablaFronteras[[#This Row],[Alto]]/2 -> 66.35019517 | H27: =IF(AND(TablaFronteras[[#This Row],[Fila]]<>"",TablaFronteras[[#This Row],[X]]<miX,miX<TablaFronteras[[#This Row],[X]]+TablaFronteras[[#This Row],[Ancho]],TablaFronteras[[#This Row],[Y]]<miY,miY<TablaFronteras[[#This Row],[Y]]+TablaFronteras[[#This Row],[Alto]]),SQRT((TablaFronteras[[#This Row],[Centro X]]-miX)^2+(TablaFronteras[[#This Row],[Centro Y]]-miY)^2),"") ->  | I27: =IF(TablaFronteras[[#This Row],[Frontera]]="","",IFERROR(MATCH(RIGHT(TablaFronteras[[#This Row],[Frontera]],LEN(TablaFronteras[[#This Row],[Frontera]])-IFERROR(FIND(" - ",TablaFronteras[[#This Row],[Frontera]])+2,0)),TablaFronteras[Frontera],0),"")) -> 26
A28: Polonia | B28: 382.0606995 | C28: 69.34511566 | D28: 18.18417358 | E28: 13.52921295 | F28: =TablaFronteras[[#This Row],[X]]+TablaFronteras[[#This Row],[Ancho]]/2 -> 391.1527863 | G28: =TablaFronteras[[#This Row],[Y]]+TablaFronteras[[#This Row],[Alto]]/2 -> 76.10972214 | H28: =IF(AND(TablaFronteras[[#This Row],[Fila]]<>"",TablaFronteras[[#This Row],[X]]<miX,miX<TablaFronteras[[#This Row],[X]]+TablaFronteras[[#This Row],[Ancho]],TablaFronteras[[#This Row],[Y]]<miY,miY<TablaFronteras[[#This Row],[Y]]+TablaFronteras[[#This Row],[Alto]]),SQRT((TablaFronteras[[#This Row],[Centro X]]-miX)^2+(TablaFronteras[[#This Row],[Centro Y]]-miY)^2),"") ->  | I28: =IF(TablaFronteras[[#This Row],[Frontera]]="","",IFERROR(MATCH(RIGHT(TablaFronteras[[#This Row],[Frontera]],LEN(TablaFronteras[[#This Row],[Frontera]])-IFERROR(FIND(" - ",TablaFronteras[[#This Row],[Frontera]])+2,0)),TablaFronteras[Frontera],0),"")) -> 27
A29: Eslovaquia | B29: 387.7714233 | C29: 81.54133606 | D29: 10.61598396 | E29: 4.302125931 | F29: =TablaFronteras[[#This Row],[X]]+TablaFronteras[[#This Row],[Ancho]]/2 -> 393.0794153 | G29: =TablaFronteras[[#This Row],[Y]]+TablaFronteras[[#This Row],[Alto]]/2 -> 83.69239902 | H29: =IF(AND(TablaFronteras[[#This Row],[Fila]]<>"",TablaFronteras[[#This Row],[X]]<miX,miX<TablaFronteras[[#This Row],[X]]+TablaFronteras[[#This Row],[Ancho]],TablaFronteras[[#This Row],[Y]]<miY,miY<TablaFronteras[[#This Row],[Y]]+TablaFronteras[[#This Row],[Alto]]),SQRT((TablaFronteras[[#This Row],[Centro X]]-miX)^2+(TablaFronteras[[#This Row],[Centro Y]]-miY)^2),"") ->  | I29: =IF(TablaFronteras[[#This Row],[Frontera]]="","",IFERROR(MATCH(RIGHT(TablaFronteras[[#This Row],[Frontera]],LEN(TablaFronteras[[#This Row],[Frontera]])-IFERROR(FIND(" - ",TablaFronteras[[#This Row],[Frontera]])+2,0)),TablaFronteras[Frontera],0),"")) -> 28
A30: Hungría | B30: 386.333313 | C30: 83.87952423 | D30: 12.10417366 | E30: 6.756220341 | F30: =TablaFronteras[[#This Row],[X]]+TablaFronteras[[#This Row],[Ancho]]/2 -> 392.3853998 | G30: =TablaFronteras[[#This Row],[Y]]+TablaFronteras[[#This Row],[Alto]]/2 -> 87.2576344 | H30: =IF(AND(TablaFronteras[[#This Row],[Fila]]<>"",TablaFronteras[[#This Row],[X]]<miX,miX<TablaFronteras[[#This Row],[X]]+TablaFronteras[[#This Row],[Ancho]],TablaFronteras[[#This Row],[Y]]<miY,miY<TablaFronteras[[#This Row],[Y]]+TablaFronteras[[#This Row],[Alto]]),SQRT((TablaFronteras[[#This Row],[Centro X]]-miX)^2+(TablaFronteras[[#This Row],[Centro Y]]-miY)^2),"") ->  | I30: =IF(TablaFronteras[[#This Row],[Frontera]]="","",IFERROR(MATCH(RIGHT(TablaFronteras[[#This Row],[Frontera]],LEN(TablaFronteras[[#This Row],[Frontera]])-IFERROR(FIND(" - ",TablaFronteras[[#This Row],[Frontera]])+2,0)),TablaFronteras[Frontera],0),"")) -> 29
A31: Eslovenia | B31: 380.9807129 | C31: 88.05952454 | D31: 6.315826893 | E31: 3.317952871 | F31: =TablaFronteras[[#This Row],[X]]+TablaFronteras[[#This Row],[Ancho]]/2 -> 384.1386263 | G31: =TablaFronteras[[#This Row],[Y]]+TablaFronteras[[#This Row],[Alto]]/2 -> 89.71850097 | H31: =IF(AND(TablaFronteras[[#This Row],[Fila]]<>"",TablaFronteras[[#This Row],[X]]<miX,miX<TablaFronteras[[#This Row],[X]]+TablaFronteras[[#This Row],[Ancho]],TablaFronteras[[#This Row],[Y]]<miY,miY<TablaFronteras[[#This Row],[Y]]+TablaFronteras[[#This Row],[Alto]]),SQRT((TablaFronteras[[#This Row],[Centro X]]-miX)^2+(TablaFronteras[[#This Row],[Centro Y]]-miY)^2),"") ->  | I31: =IF(TablaFronteras[[#This Row],[Frontera]]="","",IFERROR(MATCH(RIGHT(TablaFronteras[[#This Row],[Frontera]],LEN(TablaFronteras[[#This Row],[Frontera]])-IFERROR(FIND(" - ",TablaFronteras[[#This Row],[Frontera]])+2,0)),TablaFronteras[Frontera],0),"")) -> 30
A32: Croacia | B32: 381.2000732 | C32: 88.86574554 | D32: 11.49622059 | E32: 9.566614151 | F32: =TablaFronteras[[#This Row],[X]]+TablaFronteras[[#This Row],[Ancho]]/2 -> 386.9481835 | G32: =TablaFronteras[[#This Row],[Y]]+TablaFronteras[[#This Row],[Alto]]/2 -> 93.64905262 | H32: =IF(AND(TablaFronteras[[#This Row],[Fila]]<>"",TablaFronteras[[#This Row],[X]]<miX,miX<TablaFronteras[[#This Row],[X]]+TablaFronteras[[#This Row],[Ancho]],TablaFronteras[[#This Row],[Y]]<miY,miY<TablaFronteras[[#This Row],[Y]]+TablaFronteras[[#This Row],[Alto]]),SQRT((TablaFronteras[[#This Row],[Centro X]]-miX)^2+(TablaFronteras[[#This Row],[Centro Y]]-miY)^2),"") ->  | I32: =IF(TablaFronteras[[#This Row],[Frontera]]="","",IFERROR(MATCH(RIGHT(TablaFronteras[[#This Row],[Frontera]],LEN(TablaFronteras[[#This Row],[Frontera]])-IFERROR(FIND(" - ",TablaFronteras[[#This Row],[Frontera]])+2,0)),TablaFronteras[Frontera],0),"")) -> 31
A33: Bosnia y Herzegovina | B33: 385.8103027 | C33: 91.86251831 | D33: 7.352362156 | E33: 6.31692934 | F33: =TablaFronteras[[#This Row],[X]]+TablaFronteras[[#This Row],[Ancho]]/2 -> 389.4864838 | G33: =TablaFronteras[[#This Row],[Y]]+TablaFronteras[[#This Row],[Alto]]/2 -> 95.02098298 | H33: =IF(AND(TablaFronteras[[#This Row],[Fila]]<>"",TablaFronteras[[#This Row],[X]]<miX,miX<TablaFronteras[[#This Row],[X]]+TablaFronteras[[#This Row],[Ancho]],TablaFronteras[[#This Row],[Y]]<miY,miY<TablaFronteras[[#This Row],[Y]]+TablaFronteras[[#This Row],[Alto]]),SQRT((TablaFronteras[[#This Row],[Centro X]]-miX)^2+(TablaFronteras[[#This Row],[Centro Y]]-miY)^2),"") ->  | I33: =IF(TablaFronteras[[#This Row],[Frontera]]="","",IFERROR(MATCH(RIGHT(TablaFronteras[[#This Row],[Frontera]],LEN(TablaFronteras[[#This Row],[Frontera]])-IFERROR(FIND(" - ",TablaFronteras[[#This Row],[Frontera]])+2,0)),TablaFronteras[Frontera],0),"")) -> 32
A34: Montenegro | B34: 390.8780212 | C34: 95.91370392 | D34: 3.58598423 | E34: 3.917559147 | F34: =TablaFronteras[[#This Row],[X]]+TablaFronteras[[#This Row],[Ancho]]/2 -> 392.6710134 | G34: =TablaFronteras[[#This Row],[Y]]+TablaFronteras[[#This Row],[Alto]]/2 -> 97.87248349 | H34: =IF(AND(TablaFronteras[[#This Row],[Fila]]<>"",TablaFronteras[[#This Row],[X]]<miX,miX<TablaFronteras[[#This Row],[X]]+TablaFronteras[[#This Row],[Ancho]],TablaFronteras[[#This Row],[Y]]<miY,miY<TablaFronteras[[#This Row],[Y]]+TablaFronteras[[#This Row],[Alto]]),SQRT((TablaFronteras[[#This Row],[Centro X]]-miX)^2+(TablaFronteras[[#This Row],[Centro Y]]-miY)^2),"") ->  | I34: =IF(TablaFronteras[[#This Row],[Frontera]]="","",IFERROR(MATCH(RIGHT(TablaFronteras[[#This Row],[Frontera]],LEN(TablaFronteras[[#This Row],[Frontera]])-IFERROR(FIND(" - ",TablaFronteras[[#This Row],[Frontera]])+2,0)),TablaFronteras[Frontera],0),"")) -> 33
A35: Macedonia del Norte | B35: 395.1479492 | C35: 98.66543579 | D35: 4.321574688 | E35: 3.781810999 | F35: =TablaFronteras[[#This Row],[X]]+TablaFronteras[[#This Row],[Ancho]]/2 -> 397.3087366 | G35: =TablaFronteras[[#This Row],[Y]]+TablaFronteras[[#This Row],[Alto]]/2 -> 100.5563413 | H35: =IF(AND(TablaFronteras[[#This Row],[Fila]]<>"",TablaFronteras[[#This Row],[X]]<miX,miX<TablaFronteras[[#This Row],[X]]+TablaFronteras[[#This Row],[Ancho]],TablaFronteras[[#This Row],[Y]]<miY,miY<TablaFronteras[[#This Row],[Y]]+TablaFronteras[[#This Row],[Alto]]),SQRT((TablaFronteras[[#This Row],[Centro X]]-miX)^2+(TablaFronteras[[#This Row],[Centro Y]]-miY)^2),"") ->  | I35: =IF(TablaFronteras[[#This Row],[Frontera]]="","",IFERROR(MATCH(RIGHT(TablaFronteras[[#This Row],[Frontera]],LEN(TablaFronteras[[#This Row],[Frontera]])-IFERROR(FIND(" - ",TablaFronteras[[#This Row],[Frontera]])+2,0)),TablaFronteras[Frontera],0),"")) -> 34
A36: Albania | B36: 392.8946533 | C36: 97.97496033 | D36: 3.494251966 | E36: 7.247952938 | F36: =TablaFronteras[[#This Row],[X]]+TablaFronteras[[#This Row],[Ancho]]/2 -> 394.6417793 | G36: =TablaFronteras[[#This Row],[Y]]+TablaFronteras[[#This Row],[Alto]]/2 -> 101.5989368 | H36: =IF(AND(TablaFronteras[[#This Row],[Fila]]<>"",TablaFronteras[[#This Row],[X]]<miX,miX<TablaFronteras[[#This Row],[X]]+TablaFronteras[[#This Row],[Ancho]],TablaFronteras[[#This Row],[Y]]<miY,miY<TablaFronteras[[#This Row],[Y]]+TablaFronteras[[#This Row],[Alto]]),SQRT((TablaFronteras[[#This Row],[Centro X]]-miX)^2+(TablaFronteras[[#This Row],[Centro Y]]-miY)^2),"") ->  | I36: =IF(TablaFronteras[[#This Row],[Frontera]]="","",IFERROR(MATCH(RIGHT(TablaFronteras[[#This Row],[Frontera]],LEN(TablaFronteras[[#This Row],[Frontera]])-IFERROR(FIND(" - ",TablaFronteras[[#This Row],[Frontera]])+2,0)),TablaFronteras[Frontera],0),"")) -> 35
A37: Bulgaria | B37: 397.0516663 | C37: 94.26141357 | D37: 12.94259834 | E37: 6.996456623 | F37: =TablaFronteras[[#This Row],[X]]+TablaFronteras[[#This Row],[Ancho]]/2 -> 403.5229654 | G37: =TablaFronteras[[#This Row],[Y]]+TablaFronteras[[#This Row],[Alto]]/2 -> 97.75964189 | H37: =IF(AND(TablaFronteras[[#This Row],[Fila]]<>"",TablaFronteras[[#This Row],[X]]<miX,miX<TablaFronteras[[#This Row],[X]]+TablaFronteras[[#This Row],[Ancho]],TablaFronteras[[#This Row],[Y]]<miY,miY<TablaFronteras[[#This Row],[Y]]+TablaFronteras[[#This Row],[Alto]]),SQRT((TablaFronteras[[#This Row],[Centro X]]-miX)^2+(TablaFronteras[[#This Row],[Centro Y]]-miY)^2),"") ->  | I37: =IF(TablaFronteras[[#This Row],[Frontera]]="","",IFERROR(MATCH(RIGHT(TablaFronteras[[#This Row],[Frontera]],LEN(TablaFronteras[[#This Row],[Frontera]])-IFERROR(FIND(" - ",TablaFronteras[[#This Row],[Frontera]])+2,0)),TablaFronteras[Frontera],0),"")) -> 36
A38: Grecia | B38: 393.7870178 | C38: 100.1623611 | D38: 16.78566933 | E38: 16.62039375 | F38: =TablaFronteras[[#This Row],[X]]+TablaFronteras[[#This Row],[Ancho]]/2 -> 402.1798525 | G38: =TablaFronteras[[#This Row],[Y]]+TablaFronteras[[#This Row],[Alto]]/2 -> 108.472558 | H38: =IF(AND(TablaFronteras[[#This Row],[Fila]]<>"",TablaFronteras[[#This Row],[X]]<miX,miX<TablaFronteras[[#This Row],[X]]+TablaFronteras[[#This Row],[Ancho]],TablaFronteras[[#This Row],[Y]]<miY,miY<TablaFronteras[[#This Row],[Y]]+TablaFronteras[[#This Row],[Alto]]),SQRT((TablaFronteras[[#This Row],[Centro X]]-miX)^2+(TablaFronteras[[#This Row],[Centro Y]]-miY)^2),"") ->  | I38: =IF(TablaFronteras[[#This Row],[Frontera]]="","",IFERROR(MATCH(RIGHT(TablaFronteras[[#This Row],[Frontera]],LEN(TablaFronteras[[#This Row],[Frontera]])-IFERROR(FIND(" - ",TablaFronteras[[#This Row],[Frontera]])+2,0)),TablaFronteras[Frontera],0),"")) -> 37
A39: Turquía | B39: 404.7282715 | C39: 99.23299408 | D39: 38.0044899 | E39: 15.1050396 | F39: =TablaFronteras[[#This Row],[X]]+TablaFronteras[[#This Row],[Ancho]]/2 -> 423.7305164 | G39: =TablaFronteras[[#This Row],[Y]]+TablaFronteras[[#This Row],[Alto]]/2 -> 106.7855139 | H39: =IF(AND(TablaFronteras[[#This Row],[Fila]]<>"",TablaFronteras[[#This Row],[X]]<miX,miX<TablaFronteras[[#This Row],[X]]+TablaFronteras[[#This Row],[Ancho]],TablaFronteras[[#This Row],[Y]]<miY,miY<TablaFronteras[[#This Row],[Y]]+TablaFronteras[[#This Row],[Alto]]),SQRT((TablaFronteras[[#This Row],[Centro X]]-miX)^2+(TablaFronteras[[#This Row],[Centro Y]]-miY)^2),"") ->  | I39: =IF(TablaFronteras[[#This Row],[Frontera]]="","",IFERROR(MATCH(RIGHT(TablaFronteras[[#This Row],[Frontera]],LEN(TablaFronteras[[#This Row],[Frontera]])-IFERROR(FIND(" - ",TablaFronteras[[#This Row],[Frontera]])+2,0)),TablaFronteras[Frontera],0),"")) -> 38
A40: Rumanía | B40: 393.8511047 | C40: 84.64094543 | D40: 17.4952755 | E40: 10.96196842 | F40: =TablaFronteras[[#This Row],[X]]+TablaFronteras[[#This Row],[Ancho]]/2 -> 402.5987425 | G40: =TablaFronteras[[#This Row],[Y]]+TablaFronteras[[#This Row],[Alto]]/2 -> 90.12192965 | H40: =IF(AND(TablaFronteras[[#This Row],[Fila]]<>"",TablaFronteras[[#This Row],[X]]<miX,miX<TablaFronteras[[#This Row],[X]]+TablaFronteras[[#This Row],[Ancho]],TablaFronteras[[#This Row],[Y]]<miY,miY<TablaFronteras[[#This Row],[Y]]+TablaFronteras[[#This Row],[Alto]]),SQRT((TablaFronteras[[#This Row],[Centro X]]-miX)^2+(TablaFronteras[[#This Row],[Centro Y]]-miY)^2),"") ->  | I40: =IF(TablaFronteras[[#This Row],[Frontera]]="","",IFERROR(MATCH(RIGHT(TablaFronteras[[#This Row],[Frontera]],LEN(TablaFronteras[[#This Row],[Frontera]])-IFERROR(FIND(" - ",TablaFronteras[[#This Row],[Frontera]])+2,0)),TablaFronteras[Frontera],0),"")) -> 39
A41: Bielorrusia | B41: 398.2848816 | C41: 66.40968323 | D41: 16.92425156 | E41: 11.18370056 | F41: =TablaFronteras[[#This Row],[X]]+TablaFronteras[[#This Row],[Ancho]]/2 -> 406.7470074 | G41: =TablaFronteras[[#This Row],[Y]]+TablaFronteras[[#This Row],[Alto]]/2 -> 72.00153351 | H41: =IF(AND(TablaFronteras[[#This Row],[Fila]]<>"",TablaFronteras[[#This Row],[X]]<miX,miX<TablaFronteras[[#This Row],[X]]+TablaFronteras[[#This Row],[Ancho]],TablaFronteras[[#This Row],[Y]]<miY,miY<TablaFronteras[[#This Row],[Y]]+TablaFronteras[[#This Row],[Alto]]),SQRT((TablaFronteras[[#This Row],[Centro X]]-miX)^2+(TablaFronteras[[#This Row],[Centro Y]]-miY)^2),"") ->  | I41: =IF(TablaFronteras[[#This Row],[Frontera]]="","",IFERROR(MATCH(RIGHT(TablaFronteras[[#This Row],[Frontera]],LEN(TablaFronteras[[#This Row],[Frontera]])-IFERROR(FIND(" - ",TablaFronteras[[#This Row],[Frontera]])+2,0)),TablaFronteras[Frontera],0),"")) -> 40
A42: Moldavia | B42: 405.0674744 | C42: 84.08385468 | D42: 7.159842491 | E42: 7.27314949 | F42: =TablaFronteras[[#This Row],[X]]+TablaFronteras[[#This Row],[Ancho]]/2 -> 408.6473956 | G42: =TablaFronteras[[#This Row],[Y]]+TablaFronteras[[#This Row],[Alto]]/2 -> 87.72042942 | H42: =IF(AND(TablaFronteras[[#This Row],[Fila]]<>"",TablaFronteras[[#This Row],[X]]<miX,miX<TablaFronteras[[#This Row],[X]]+TablaFronteras[[#This Row],[Ancho]],TablaFronteras[[#This Row],[Y]]<miY,miY<TablaFronteras[[#This Row],[Y]]+TablaFronteras[[#This Row],[Alto]]),SQRT((TablaFronteras[[#This Row],[Centro X]]-miX)^2+(TablaFronteras[[#This Row],[Centro Y]]-miY)^2),"") ->  | I42: =IF(TablaFronteras[[#This Row],[Frontera]]="","",IFERROR(MATCH(RIGHT(TablaFronteras[[#This Row],[Frontera]],LEN(TablaFronteras[[#This Row],[Frontera]])-IFERROR(FIND(" - ",TablaFronteras[[#This Row],[Frontera]])+2,0)),TablaFronteras[Frontera],0),"")) -> 41
A43: Lituania | B43: 394.2484131 | C43: 65.7288208 | D43: 9.519684792 | E43: 5.73236227 | F43: =TablaFronteras[[#This Row],[X]]+TablaFronteras[[#This Row],[Ancho]]/2 -> 399.0082555 | G43: =TablaFronteras[[#This Row],[Y]]+TablaFronteras[[#This Row],[Alto]]/2 -> 68.59500194 | H43: =IF(AND(TablaFronteras[[#This Row],[Fila]]<>"",TablaFronteras[[#This Row],[X]]<miX,miX<TablaFronteras[[#This Row],[X]]+TablaFronteras[[#This Row],[Ancho]],TablaFronteras[[#This Row],[Y]]<miY,miY<TablaFronteras[[#This Row],[Y]]+TablaFronteras[[#This Row],[Alto]]),SQRT((TablaFronteras[[#This Row],[Centro X]]-miX)^2+(TablaFronteras[[#This Row],[Centro Y]]-miY)^2),"") ->  | I43: =IF(TablaFronteras[[#This Row],[Frontera]]="","",IFERROR(MATCH(RIGHT(TablaFronteras[[#This Row],[Frontera]],LEN(TablaFronteras[[#This Row],[Frontera]])-IFERROR(FIND(" - ",TablaFronteras[[#This Row],[Frontera]])+2,0)),TablaFronteras[Frontera],0),"")) -> 42
A44: Letonia | B44: 394.079834 | C44: 62.0609436 | D44: 12.03425217 | E44: 5.349606514 | F44: =TablaFronteras[[#This Row],[X]]+TablaFronteras[[#This Row],[Ancho]]/2 -> 400.0969601 | G44: =TablaFronteras[[#This Row],[Y]]+TablaFronteras[[#This Row],[Alto]]/2 -> 64.73574686 | H44: =IF(AND(TablaFronteras[[#This Row],[Fila]]<>"",TablaFronteras[[#This Row],[X]]<miX,miX<TablaFronteras[[#This Row],[X]]+TablaFronteras[[#This Row],[Ancho]],TablaFronteras[[#This Row],[Y]]<miY,miY<TablaFronteras[[#This Row],[Y]]+TablaFronteras[[#This Row],[Alto]]),SQRT((TablaFronteras[[#This Row],[Centro X]]-miX)^2+(TablaFronteras[[#This Row],[Centro Y]]-miY)^2),"") ->  | I44: =IF(TablaFronteras[[#This Row],[Frontera]]="","",IFERROR(MATCH(RIGHT(TablaFronteras[[#This Row],[Frontera]],LEN(TablaFronteras[[#This Row],[Frontera]])-IFERROR(FIND(" - ",TablaFronteras[[#This Row],[Frontera]])+2,0)),TablaFronteras[Frontera],0),"")) -> 43
A45: Estonia | B45: 395.2867737 | C45: 58.69189072 | D45: 9.800078392 | E45: 4.555354118 | F45: =TablaFronteras[[#This Row],[X]]+TablaFronteras[[#This Row],[Ancho]]/2 -> 400.1868129 | G45: =TablaFronteras[[#This Row],[Y]]+TablaFronteras[[#This Row],[Alto]]/2 -> 60.96956778 | H45: =IF(AND(TablaFronteras[[#This Row],[Fila]]<>"",TablaFronteras[[#This Row],[X]]<miX,miX<TablaFronteras[[#This Row],[X]]+TablaFronteras[[#This Row],[Ancho]],TablaFronteras[[#This Row],[Y]]<miY,miY<TablaFronteras[[#This Row],[Y]]+TablaFronteras[[#This Row],[Alto]]),SQRT((TablaFronteras[[#This Row],[Centro X]]-miX)^2+(TablaFronteras[[#This Row],[Centro Y]]-miY)^2),"") ->  | I45: =IF(TablaFronteras[[#This Row],[Frontera]]="","",IFERROR(MATCH(RIGHT(TablaFronteras[[#This Row],[Frontera]],LEN(TablaFronteras[[#This Row],[Frontera]])-IFERROR(FIND(" - ",TablaFronteras[[#This Row],[Frontera]])+2,0)),TablaFronteras[Frontera],0),"")) -> 44
A46: Finlandia | B46: 390.9983521 | C46: 36.43047333 | D46: 18.84007835 | E46: 21.8433075 | F46: =TablaFronteras[[#This Row],[X]]+TablaFronteras[[#This Row],[Ancho]]/2 -> 400.4183912 | G46: =TablaFronteras[[#This Row],[Y]]+TablaFronteras[[#This Row],[Alto]]/2 -> 47.35212708 | H46: =IF(AND(TablaFronteras[[#This Row],[Fila]]<>"",TablaFronteras[[#This Row],[X]]<miX,miX<TablaFronteras[[#This Row],[X]]+TablaFronteras[[#This Row],[Ancho]],TablaFronteras[[#This Row],[Y]]<miY,miY<TablaFronteras[[#This Row],[Y]]+TablaFronteras[[#This Row],[Alto]]),SQRT((TablaFronteras[[#This Row],[Centro X]]-miX)^2+(TablaFronteras[[#This Row],[Centro Y]]-miY)^2),"") ->  | I46: =IF(TablaFronteras[[#This Row],[Frontera]]="","",IFERROR(MATCH(RIGHT(TablaFronteras[[#This Row],[Frontera]],LEN(TablaFronteras[[#This Row],[Frontera]])-IFERROR(FIND(" - ",TablaFronteras[[#This Row],[Frontera]])+2,0)),TablaFronteras[Frontera],0),"")) -> 45
A47: Suecia | B47: 376.6178589 | C47: 38.49259949 | D47: 20.18149567 | E47: 29.59070778 | F47: =TablaFronteras[[#This Row],[X]]+TablaFronteras[[#This Row],[Ancho]]/2 -> 386.7086067 | G47: =TablaFronteras[[#This Row],[Y]]+TablaFronteras[[#This Row],[Alto]]/2 -> 53.28795338 | H47: =IF(AND(TablaFronteras[[#This Row],[Fila]]<>"",TablaFronteras[[#This Row],[X]]<miX,miX<TablaFronteras[[#This Row],[X]]+TablaFronteras[[#This Row],[Ancho]],TablaFronteras[[#This Row],[Y]]<miY,miY<TablaFronteras[[#This Row],[Y]]+TablaFronteras[[#This Row],[Alto]]),SQRT((TablaFronteras[[#This Row],[Centro X]]-miX)^2+(TablaFronteras[[#This Row],[Centro Y]]-miY)^2),"") ->  | I47: =IF(TablaFronteras[[#This Row],[Frontera]]="","",IFERROR(MATCH(RIGHT(TablaFronteras[[#This Row],[Frontera]],LEN(TablaFronteras[[#This Row],[Frontera]])-IFERROR(FIND(" - ",TablaFronteras[[#This Row],[Frontera]])+2,0)),TablaFronteras[Frontera],0),"")) -> 46
A48: Noruega | B48: 348.1113281 | C48: 16.85236168 | D48: 58.00196838 | E48: 45.32354355 | F48: =TablaFronteras[[#This Row],[X]]+TablaFronteras[[#This Row],[Ancho]]/2 -> 377.1123123 | G48: =TablaFronteras[[#This Row],[Y]]+TablaFronteras[[#This Row],[Alto]]/2 -> 39.51413345 | H48: =IF(AND(TablaFronteras[[#This Row],[Fila]]<>"",TablaFronteras[[#This Row],[X]]<miX,miX<TablaFronteras[[#This Row],[X]]+TablaFronteras[[#This Row],[Ancho]],TablaFronteras[[#This Row],[Y]]<miY,miY<TablaFronteras[[#This Row],[Y]]+TablaFronteras[[#This Row],[Alto]]),SQRT((TablaFronteras[[#This Row],[Centro X]]-miX)^2+(TablaFronteras[[#This Row],[Centro Y]]-miY)^2),"") ->  | I48: =IF(TablaFronteras[[#This Row],[Frontera]]="","",IFERROR(MATCH(RIGHT(TablaFronteras[[#This Row],[Frontera]],LEN(TablaFronteras[[#This Row],[Frontera]])-IFERROR(FIND(" - ",TablaFronteras[[#This Row],[Frontera]])+2,0)),TablaFronteras[Frontera],0),"")) -> 47
A49: Marruecos | B49: 328.2944946 | C49: 114.2529907 | D49: 24.41543388 | E49: 19.94874001 | F49: =TablaFronteras[[#This Row],[X]]+TablaFronteras[[#This Row],[Ancho]]/2 -> 340.5022116 | G49: =TablaFronteras[[#This Row],[Y]]+TablaFronteras[[#This Row],[Alto]]/2 -> 124.2273607 | H49: =IF(AND(TablaFronteras[[#This Row],[Fila]]<>"",TablaFronteras[[#This Row],[X]]<miX,miX<TablaFronteras[[#This Row],[X]]+TablaFronteras[[#This Row],[Ancho]],TablaFronteras[[#This Row],[Y]]<miY,miY<TablaFronteras[[#This Row],[Y]]+TablaFronteras[[#This Row],[Alto]]),SQRT((TablaFronteras[[#This Row],[Centro X]]-miX)^2+(TablaFronteras[[#This Row],[Centro Y]]-miY)^2),"") ->  | I49: =IF(TablaFronteras[[#This Row],[Frontera]]="","",IFERROR(MATCH(RIGHT(TablaFronteras[[#This Row],[Frontera]],LEN(TablaFronteras[[#This Row],[Frontera]])-IFERROR(FIND(" - ",TablaFronteras[[#This Row],[Frontera]])+2,0)),TablaFronteras[Frontera],0),"")) -> 48
A50: Sáhara Occidental | B50: 319.9385071 | C50: 134.1262207 | D50: 17.60551262 | E50: 16.81787491 | F50: =TablaFronteras[[#This Row],[X]]+TablaFronteras[[#This Row],[Ancho]]/2 -> 328.7412634 | G50: =TablaFronteras[[#This Row],[Y]]+TablaFronteras[[#This Row],[Alto]]/2 -> 142.5351582 | H50: =IF(AND(TablaFronteras[[#This Row],[Fila]]<>"",TablaFronteras[[#This Row],[X]]<miX,miX<TablaFronteras[[#This Row],[X]]+TablaFronteras[[#This Row],[Ancho]],TablaFronteras[[#This Row],[Y]]<miY,miY<TablaFronteras[[#This Row],[Y]]+TablaFronteras[[#This Row],[Alto]]),SQRT((TablaFronteras[[#This Row],[Centro X]]-miX)^2+(TablaFronteras[[#This Row],[Centro Y]]-miY)^2),"") ->  | I50: =IF(TablaFronteras[[#This Row],[Frontera]]="","",IFERROR(MATCH(RIGHT(TablaFronteras[[#This Row],[Frontera]],LEN(TablaFronteras[[#This Row],[Frontera]])-IFERROR(FIND(" - ",TablaFronteras[[#This Row],[Frontera]])+2,0)),TablaFronteras[Frontera],0),"")) -> 49
A51: Argelia | B51: 337.5184937 | C51: 111.394249 | D51: 41.12306976 | E51: 43.76346588 | F51: =TablaFronteras[[#This Row],[X]]+TablaFronteras[[#This Row],[Ancho]]/2 -> 358.0800285 | G51: =TablaFronteras[[#This Row],[Y]]+TablaFronteras[[#This Row],[Alto]]/2 -> 133.2759819 | H51: =IF(AND(TablaFronteras[[#This Row],[Fila]]<>"",TablaFronteras[[#This Row],[X]]<miX,miX<TablaFronteras[[#This Row],[X]]+TablaFronteras[[#This Row],[Ancho]],TablaFronteras[[#This Row],[Y]]<miY,miY<TablaFronteras[[#This Row],[Y]]+TablaFronteras[[#This Row],[Alto]]),SQRT((TablaFronteras[[#This Row],[Centro X]]-miX)^2+(TablaFronteras[[#This Row],[Centro Y]]-miY)^2),"") ->  | I51: =IF(TablaFronteras[[#This Row],[Frontera]]="","",IFERROR(MATCH(RIGHT(TablaFronteras[[#This Row],[Frontera]],LEN(TablaFronteras[[#This Row],[Frontera]])-IFERROR(FIND(" - ",TablaFronteras[[#This Row],[Frontera]])+2,0)),TablaFronteras[Frontera],0),"")) -> 50
A52: Túnez | B52: 370.2926636 | C52: 110.7853546 | D52: 7.430393696 | E52: 17.15929222 | F52: =TablaFronteras[[#This Row],[X]]+TablaFronteras[[#This Row],[Ancho]]/2 -> 374.0078604 | G52: =TablaFronteras[[#This Row],[Y]]+TablaFronteras[[#This Row],[Alto]]/2 -> 119.3650007 | H52: =IF(AND(TablaFronteras[[#This Row],[Fila]]<>"",TablaFronteras[[#This Row],[X]]<miX,miX<TablaFronteras[[#This Row],[X]]+TablaFronteras[[#This Row],[Ancho]],TablaFronteras[[#This Row],[Y]]<miY,miY<TablaFronteras[[#This Row],[Y]]+TablaFronteras[[#This Row],[Alto]]),SQRT((TablaFronteras[[#This Row],[Centro X]]-miX)^2+(TablaFronteras[[#This Row],[Centro Y]]-miY)^2),"") ->  | I52: =IF(TablaFronteras[[#This Row],[Frontera]]="","",IFERROR(MATCH(RIGHT(TablaFronteras[[#This Row],[Frontera]],LEN(TablaFronteras[[#This Row],[Frontera]])-IFERROR(FIND(" - ",TablaFronteras[[#This Row],[Frontera]])+2,0)),TablaFronteras[Frontera],0),"")) -> 51
A53: Libia | B53: 373.528656 | C53: 120.8902359 | D53: 31.79692841 | E53: 33.09196854 | F53: =TablaFronteras[[#This Row],[X]]+TablaFronteras[[#This Row],[Ancho]]/2 -> 389.4271202 | G53: =TablaFronteras[[#This Row],[Y]]+TablaFronteras[[#This Row],[Alto]]/2 -> 137.4362202 | H53: =IF(AND(TablaFronteras[[#This Row],[Fila]]<>"",TablaFronteras[[#This Row],[X]]<miX,miX<TablaFronteras[[#This Row],[X]]+TablaFronteras[[#This Row],[Ancho]],TablaFronteras[[#This Row],[Y]]<miY,miY<TablaFronteras[[#This Row],[Y]]+TablaFronteras[[#This Row],[Alto]]),SQRT((TablaFronteras[[#This Row],[Centro X]]-miX)^2+(TablaFronteras[[#This Row],[Centro Y]]-miY)^2),"") ->  | I53: =IF(TablaFronteras[[#This Row],[Frontera]]="","",IFERROR(MATCH(RIGHT(TablaFronteras[[#This Row],[Frontera]],LEN(TablaFronteras[[#This Row],[Frontera]])-IFERROR(FIND(" - ",TablaFronteras[[#This Row],[Frontera]])+2,0)),TablaFronteras[Frontera],0),"")) -> 52
A54: Egipto | B54: 404.0777283 | C54: 124.5482712 | D54: 22.91086578 | E54: 24.10936928 | F54: =TablaFronteras[[#This Row],[X]]+TablaFronteras[[#This Row],[Ancho]]/2 -> 415.5331612 | G54: =TablaFronteras[[#This Row],[Y]]+TablaFronteras[[#This Row],[Alto]]/2 -> 136.6029558 | H54: =IF(AND(TablaFronteras[[#This Row],[Fila]]<>"",TablaFronteras[[#This Row],[X]]<miX,miX<TablaFronteras[[#This Row],[X]]+TablaFronteras[[#This Row],[Ancho]],TablaFronteras[[#This Row],[Y]]<miY,miY<TablaFronteras[[#This Row],[Y]]+TablaFronteras[[#This Row],[Alto]]),SQRT((TablaFronteras[[#This Row],[Centro X]]-miX)^2+(TablaFronteras[[#This Row],[Centro Y]]-miY)^2),"") ->  | I54: =IF(TablaFronteras[[#This Row],[Frontera]]="","",IFERROR(MATCH(RIGHT(TablaFronteras[[#This Row],[Frontera]],LEN(TablaFronteras[[#This Row],[Frontera]])-IFERROR(FIND(" - ",TablaFronteras[[#This Row],[Frontera]])+2,0)),TablaFronteras[Frontera],0),"")) -> 53
A55: Malí | B55: 328.8288879 | C55: 140.6440125 | D55: 34.576931 | E55: 36.01236343 | F55: =TablaFronteras[[#This Row],[X]]+TablaFronteras[[#This Row],[Ancho]]/2 -> 346.1173534 | G55: =TablaFronteras[[#This Row],[Y]]+TablaFronteras[[#This Row],[Alto]]/2 -> 158.6501942 | H55: =IF(AND(TablaFronteras[[#This Row],[Fila]]<>"",TablaFronteras[[#This Row],[X]]<miX,miX<TablaFronteras[[#This Row],[X]]+TablaFronteras[[#This Row],[Ancho]],TablaFronteras[[#This Row],[Y]]<miY,miY<TablaFronteras[[#This Row],[Y]]+TablaFronteras[[#This Row],[Alto]]),SQRT((TablaFronteras[[#This Row],[Centro X]]-miX)^2+(TablaFronteras[[#This Row],[Centro Y]]-miY)^2),"") ->  | I55: =IF(TablaFronteras[[#This Row],[Frontera]]="","",IFERROR(MATCH(RIGHT(TablaFronteras[[#This Row],[Frontera]],LEN(TablaFronteras[[#This Row],[Frontera]])-IFERROR(FIND(" - ",TablaFronteras[[#This Row],[Frontera]])+2,0)),TablaFronteras[Frontera],0),"")) -> 54
A56: Mauritania | B56: 320.0229187 | C56: 135.1544952 | D56: 25.26078796 | E56: 30.33905602 | F56: =TablaFronteras[[#This Row],[X]]+TablaFronteras[[#This Row],[Ancho]]/2 -> 332.6533127 | G56: =TablaFronteras[[#This Row],[Y]]+TablaFronteras[[#This Row],[Alto]]/2 -> 150.3240232 | H56: =IF(AND(TablaFronteras[[#This Row],[Fila]]<>"",TablaFronteras[[#This Row],[X]]<miX,miX<TablaFronteras[[#This Row],[X]]+TablaFronteras[[#This Row],[Ancho]],TablaFronteras[[#This Row],[Y]]<miY,miY<TablaFronteras[[#This Row],[Y]]+TablaFronteras[[#This Row],[Alto]]),SQRT((TablaFronteras[[#This Row],[Centro X]]-miX)^2+(TablaFronteras[[#This Row],[Centro Y]]-miY)^2),"") ->  | I56: =IF(TablaFronteras[[#This Row],[Frontera]]="","",IFERROR(MATCH(RIGHT(TablaFronteras[[#This Row],[Frontera]],LEN(TablaFronteras[[#This Row],[Frontera]])-IFERROR(FIND(" - ",TablaFronteras[[#This Row],[Frontera]])+2,0)),TablaFronteras[Frontera],0),"")) -> 55
A57: Senegal | B57: 318.5886536 | C57: 160.9496002 | D57: 11.9731493 | E57: 10.41614151 | F57: =TablaFronteras[[#This Row],[X]]+TablaFronteras[[#This Row],[Ancho]]/2 -> 324.5752282 | G57: =TablaFronteras[[#This Row],[Y]]+TablaFronteras[[#This Row],[Alto]]/2 -> 166.157671 | H57: =IF(AND(TablaFronteras[[#This Row],[Fila]]<>"",TablaFronteras[[#This Row],[X]]<miX,miX<TablaFronteras[[#This Row],[X]]+TablaFronteras[[#This Row],[Ancho]],TablaFronteras[[#This Row],[Y]]<miY,miY<TablaFronteras[[#This Row],[Y]]+TablaFronteras[[#This Row],[Alto]]),SQRT((TablaFronteras[[#This Row],[Centro X]]-miX)^2+(TablaFronteras[[#This Row],[Centro Y]]-miY)^2),"") ->  | I57: =IF(TablaFronteras[[#This Row],[Frontera]]="","",IFERROR(MATCH(RIGHT(TablaFronteras[[#This Row],[Frontera]],LEN(TablaFronteras[[#This Row],[Frontera]])-IFERROR(FIND(" - ",TablaFronteras[[#This Row],[Frontera]])+2,0)),TablaFronteras[Frontera],0),"")) -> 56
A58: Guinea-Bisáu | B58: 320.0532227 | C58: 170.4903107 | D58: 5.659369946 | E58: 4.405984402 | F58: =TablaFronteras[[#This Row],[X]]+TablaFronteras[[#This Row],[Ancho]]/2 -> 322.8829076 | G58: =TablaFronteras[[#This Row],[Y]]+TablaFronteras[[#This Row],[Alto]]/2 -> 172.6933029 | H58: =IF(AND(TablaFronteras[[#This Row],[Fila]]<>"",TablaFronteras[[#This Row],[X]]<miX,miX<TablaFronteras[[#This Row],[X]]+TablaFronteras[[#This Row],[Ancho]],TablaFronteras[[#This Row],[Y]]<miY,miY<TablaFronteras[[#This Row],[Y]]+TablaFronteras[[#This Row],[Alto]]),SQRT((TablaFronteras[[#This Row],[Centro X]]-miX)^2+(TablaFronteras[[#This Row],[Centro Y]]-miY)^2),"") ->  | I58: =IF(TablaFronteras[[#This Row],[Frontera]]="","",IFERROR(MATCH(RIGHT(TablaFronteras[[#This Row],[Frontera]],LEN(TablaFronteras[[#This Row],[Frontera]])-IFERROR(FIND(" - ",TablaFronteras[[#This Row],[Frontera]])+2,0)),TablaFronteras[Frontera],0),"")) -> 57
A59: Guinea | B59: 321.9734497 | C59: 170.5007019 | D59: 16.56393623 | E59: 13.29748058 | F59: =TablaFronteras[[#This Row],[X]]+TablaFronteras[[#This Row],[Ancho]]/2 -> 330.2554178 | G59: =TablaFronteras[[#This Row],[Y]]+TablaFronteras[[#This Row],[Alto]]/2 -> 177.1494422 | H59: =IF(AND(TablaFronteras[[#This Row],[Fila]]<>"",TablaFronteras[[#This Row],[X]]<miX,miX<TablaFronteras[[#This Row],[X]]+TablaFronteras[[#This Row],[Ancho]],TablaFronteras[[#This Row],[Y]]<miY,miY<TablaFronteras[[#This Row],[Y]]+TablaFronteras[[#This Row],[Alto]]),SQRT((TablaFronteras[[#This Row],[Centro X]]-miX)^2+(TablaFronteras[[#This Row],[Centro Y]]-miY)^2),"") ->  | I59: =IF(TablaFronteras[[#This Row],[Frontera]]="","",IFERROR(MATCH(RIGHT(TablaFronteras[[#This Row],[Frontera]],LEN(TablaFronteras[[#This Row],[Frontera]])-IFERROR(FIND(" - ",TablaFronteras[[#This Row],[Frontera]])+2,0)),TablaFronteras[Frontera],0),"")) -> 58
A60: Sierra Leona | B60: 326.3274841 | C60: 177.0089722 | D60: 7.689448833 | E60: 7.421889782 | F60: =TablaFronteras[[#This Row],[X]]+TablaFronteras[[#This Row],[Ancho]]/2 -> 330.1722085 | G60: =TablaFronteras[[#This Row],[Y]]+TablaFronteras[[#This Row],[Alto]]/2 -> 180.7199171 | H60: =IF(AND(TablaFronteras[[#This Row],[Fila]]<>"",TablaFronteras[[#This Row],[X]]<miX,miX<TablaFronteras[[#This Row],[X]]+TablaFronteras[[#This Row],[Ancho]],TablaFronteras[[#This Row],[Y]]<miY,miY<TablaFronteras[[#This Row],[Y]]+TablaFronteras[[#This Row],[Alto]]),SQRT((TablaFronteras[[#This Row],[Centro X]]-miX)^2+(TablaFronteras[[#This Row],[Centro Y]]-miY)^2),"") ->  | I60: =IF(TablaFronteras[[#This Row],[Frontera]]="","",IFERROR(MATCH(RIGHT(TablaFronteras[[#This Row],[Frontera]],LEN(TablaFronteras[[#This Row],[Frontera]])-IFERROR(FIND(" - ",TablaFronteras[[#This Row],[Frontera]])+2,0)),TablaFronteras[Frontera],0),"")) -> 59
A61: Liberia | B61: 330.0837708 | C61: 180.5686646 | D61: 8.943937302 | E61: 10.20425224 | F61: =TablaFronteras[[#This Row],[X]]+TablaFronteras[[#This Row],[Ancho]]/2 -> 334.5557394 | G61: =TablaFronteras[[#This Row],[Y]]+TablaFronteras[[#This Row],[Alto]]/2 -> 185.6707907 | H61: =IF(AND(TablaFronteras[[#This Row],[Fila]]<>"",TablaFronteras[[#This Row],[X]]<miX,miX<TablaFronteras[[#This Row],[X]]+TablaFronteras[[#This Row],[Ancho]],TablaFronteras[[#This Row],[Y]]<miY,miY<TablaFronteras[[#This Row],[Y]]+TablaFronteras[[#This Row],[Alto]]),SQRT((TablaFronteras[[#This Row],[Centro X]]-miX)^2+(TablaFronteras[[#This Row],[Centro Y]]-miY)^2),"") ->  | I61: =IF(TablaFronteras[[#This Row],[Frontera]]="","",IFERROR(MATCH(RIGHT(TablaFronteras[[#This Row],[Frontera]],LEN(TablaFronteras[[#This Row],[Frontera]])-IFERROR(FIND(" - ",TablaFronteras[[#This Row],[Frontera]])+2,0)),TablaFronteras[Frontera],0),"")) -> 60
A62: Costa de Marfil | B62: 336.5858154 | C62: 175.3696899 | D62: 12.46551228 | E62: 15.33464527 | F62: =TablaFronteras[[#This Row],[X]]+TablaFronteras[[#This Row],[Ancho]]/2 -> 342.8185716 | G62: =TablaFronteras[[#This Row],[Y]]+TablaFronteras[[#This Row],[Alto]]/2 -> 183.0370126 | H62: =IF(AND(TablaFronteras[[#This Row],[Fila]]<>"",TablaFronteras[[#This Row],[X]]<miX,miX<TablaFronteras[[#This Row],[X]]+TablaFronteras[[#This Row],[Ancho]],TablaFronteras[[#This Row],[Y]]<miY,miY<TablaFronteras[[#This Row],[Y]]+TablaFronteras[[#This Row],[Alto]]),SQRT((TablaFronteras[[#This Row],[Centro X]]-miX)^2+(TablaFronteras[[#This Row],[Centro Y]]-miY)^2),"") ->  | I62: =IF(TablaFronteras[[#This Row],[Frontera]]="","",IFERROR(MATCH(RIGHT(TablaFronteras[[#This Row],[Frontera]],LEN(TablaFronteras[[#This Row],[Frontera]])-IFERROR(FIND(" - ",TablaFronteras[[#This Row],[Frontera]])+2,0)),TablaFronteras[Frontera],0),"")) -> 61
A63: Burkina Faso | B63: 343.0765991 | C63: 164.7096863 | D63: 16.17858315 | E63: 13.78976345 | F63: =TablaFronteras[[#This Row],[X]]+TablaFronteras[[#This Row],[Ancho]]/2 -> 351.1658907 | G63: =TablaFronteras[[#This Row],[Y]]+TablaFronteras[[#This Row],[Alto]]/2 -> 171.604568 | H63: =IF(AND(TablaFronteras[[#This Row],[Fila]]<>"",TablaFronteras[[#This Row],[X]]<miX,miX<TablaFronteras[[#This Row],[X]]+TablaFronteras[[#This Row],[Ancho]],TablaFronteras[[#This Row],[Y]]<miY,miY<TablaFronteras[[#This Row],[Y]]+TablaFronteras[[#This Row],[Alto]]),SQRT((TablaFronteras[[#This Row],[Centro X]]-miX)^2+(TablaFronteras[[#This Row],[Centro Y]]-miY)^2),"") ->  | I63: =IF(TablaFronteras[[#This Row],[Frontera]]="","",IFERROR(MATCH(RIGHT(TablaFronteras[[#This Row],[Frontera]],LEN(TablaFronteras[[#This Row],[Frontera]])-IFERROR(FIND(" - ",TablaFronteras[[#This Row],[Frontera]])+2,0)),TablaFronteras[Frontera],0),"")) -> 62
A64: Ghana | B64: 347.7670898 | C64: 174.4402313 | D64: 8.297007561 | E64: 15.45842552 | F64: =TablaFronteras[[#This Row],[X]]+TablaFronteras[[#This Row],[Ancho]]/2 -> 351.9155936 | G64: =TablaFronteras[[#This Row],[Y]]+TablaFronteras[[#This Row],[Alto]]/2 -> 182.1694441 | H64: =IF(AND(TablaFronteras[[#This Row],[Fila]]<>"",TablaFronteras[[#This Row],[X]]<miX,miX<TablaFronteras[[#This Row],[X]]+TablaFronteras[[#This Row],[Ancho]],TablaFronteras[[#This Row],[Y]]<miY,miY<TablaFronteras[[#This Row],[Y]]+TablaFronteras[[#This Row],[Alto]]),SQRT((TablaFronteras[[#This Row],[Centro X]]-miX)^2+(TablaFronteras[[#This Row],[Centro Y]]-miY)^2),"") ->  | I64: =IF(TablaFronteras[[#This Row],[Frontera]]="","",IFERROR(MATCH(RIGHT(TablaFronteras[[#This Row],[Frontera]],LEN(TablaFronteras[[#This Row],[Frontera]])-IFERROR(FIND(" - ",TablaFronteras[[#This Row],[Frontera]])+2,0)),TablaFronteras[Frontera],0),"")) -> 63
A65: Togo | B65: 353.5317993 | C65: 174.4107819 | D65: 5.362441063 | E65: 12.00409412 | F65: =TablaFronteras[[#This Row],[X]]+TablaFronteras[[#This Row],[Ancho]]/2 -> 356.2130198 | G65: =TablaFronteras[[#This Row],[Y]]+TablaFronteras[[#This Row],[Alto]]/2 -> 180.4128289 | H65: =IF(AND(TablaFronteras[[#This Row],[Fila]]<>"",TablaFronteras[[#This Row],[X]]<miX,miX<TablaFronteras[[#This Row],[X]]+TablaFronteras[[#This Row],[Ancho]],TablaFronteras[[#This Row],[Y]]<miY,miY<TablaFronteras[[#This Row],[Y]]+TablaFronteras[[#This Row],[Alto]]),SQRT((TablaFronteras[[#This Row],[Centro X]]-miX)^2+(TablaFronteras[[#This Row],[Centro Y]]-miY)^2),"") ->  | I65: =IF(TablaFronteras[[#This Row],[Frontera]]="","",IFERROR(MATCH(RIGHT(TablaFronteras[[#This Row],[Frontera]],LEN(TablaFronteras[[#This Row],[Frontera]])-IFERROR(FIND(" - ",TablaFronteras[[#This Row],[Frontera]])+2,0)),TablaFronteras[Frontera],0),"")) -> 64
A66: Benín | B66: 355.7585754 | C66: 171.1795349 | D66: 6.768188953 | E66: 14.95472431 | F66: =TablaFronteras[[#This Row],[X]]+TablaFronteras[[#This Row],[Ancho]]/2 -> 359.1426699 | G66: =TablaFronteras[[#This Row],[Y]]+TablaFronteras[[#This Row],[Alto]]/2 -> 178.6568971 | H66: =IF(AND(TablaFronteras[[#This Row],[Fila]]<>"",TablaFronteras[[#This Row],[X]]<miX,miX<TablaFronteras[[#This Row],[X]]+TablaFronteras[[#This Row],[Ancho]],TablaFronteras[[#This Row],[Y]]<miY,miY<TablaFronteras[[#This Row],[Y]]+TablaFronteras[[#This Row],[Alto]]),SQRT((TablaFronteras[[#This Row],[Centro X]]-miX)^2+(TablaFronteras[[#This Row],[Centro Y]]-miY)^2),"") ->  | I66: =IF(TablaFronteras[[#This Row],[Frontera]]="","",IFERROR(MATCH(RIGHT(TablaFronteras[[#This Row],[Frontera]],LEN(TablaFronteras[[#This Row],[Frontera]])-IFERROR(FIND(" - ",TablaFronteras[[#This Row],[Frontera]])+2,0)),TablaFronteras[Frontera],0),"")) -> 65
A67: Nigeria | B67: 360.2424316 | C67: 167.5902405 | D67: 24.82299232 | E67: 23.33283424 | F67: =TablaFronteras[[#This Row],[X]]+TablaFronteras[[#This Row],[Ancho]]/2 -> 372.6539278 | G67: =TablaFronteras[[#This Row],[Y]]+TablaFronteras[[#This Row],[Alto]]/2 -> 179.2566576 | H67: =IF(AND(TablaFronteras[[#This Row],[Fila]]<>"",TablaFronteras[[#This Row],[X]]<miX,miX<TablaFronteras[[#This Row],[X]]+TablaFronteras[[#This Row],[Ancho]],TablaFronteras[[#This Row],[Y]]<miY,miY<TablaFronteras[[#This Row],[Y]]+TablaFronteras[[#This Row],[Alto]]),SQRT((TablaFronteras[[#This Row],[Centro X]]-miX)^2+(TablaFronteras[[#This Row],[Centro Y]]-miY)^2),"") ->  | I67: =IF(TablaFronteras[[#This Row],[Frontera]]="","",IFERROR(MATCH(RIGHT(TablaFronteras[[#This Row],[Frontera]],LEN(TablaFronteras[[#This Row],[Frontera]])-IFERROR(FIND(" - ",TablaFronteras[[#This Row],[Frontera]])+2,0)),TablaFronteras[Frontera],0),"")) -> 66
A68: Níger | B68: 354.6646423 | C68: 144.5532227 | D68: 32.84228516 | E68: 28.54889679 | F68: =TablaFronteras[[#This Row],[X]]+TablaFronteras[[#This Row],[Ancho]]/2 -> 371.0857849 | G68: =TablaFronteras[[#This Row],[Y]]+TablaFronteras[[#This Row],[Alto]]/2 -> 158.8276711 | H68: =IF(AND(TablaFronteras[[#This Row],[Fila]]<>"",TablaFronteras[[#This Row],[X]]<miX,miX<TablaFronteras[[#This Row],[X]]+TablaFronteras[[#This Row],[Ancho]],TablaFronteras[[#This Row],[Y]]<miY,miY<TablaFronteras[[#This Row],[Y]]+TablaFronteras[[#This Row],[Alto]]),SQRT((TablaFronteras[[#This Row],[Centro X]]-miX)^2+(TablaFronteras[[#This Row],[Centro Y]]-miY)^2),"") ->  | I68: =IF(TablaFronteras[[#This Row],[Frontera]]="","",IFERROR(MATCH(RIGHT(TablaFronteras[[#This Row],[Frontera]],LEN(TablaFronteras[[#This Row],[Frontera]])-IFERROR(FIND(" - ",TablaFronteras[[#This Row],[Frontera]])+2,0)),TablaFronteras[Frontera],0),"")) -> 67
A69: Chad | B69: 381.8525085 | C69: 144.4730682 | D69: 21.59078789 | E69: 38.52409363 | F69: =TablaFronteras[[#This Row],[X]]+TablaFronteras[[#This Row],[Ancho]]/2 -> 392.6479025 | G69: =TablaFronteras[[#This Row],[Y]]+TablaFronteras[[#This Row],[Alto]]/2 -> 163.7351151 | H69: =IF(AND(TablaFronteras[[#This Row],[Fila]]<>"",TablaFronteras[[#This Row],[X]]<miX,miX<TablaFronteras[[#This Row],[X]]+TablaFronteras[[#This Row],[Ancho]],TablaFronteras[[#This Row],[Y]]<miY,miY<TablaFronteras[[#This Row],[Y]]+TablaFronteras[[#This Row],[Alto]]),SQRT((TablaFronteras[[#This Row],[Centro X]]-miX)^2+(TablaFronteras[[#This Row],[Centro Y]]-miY)^2),"") ->  | I69: =IF(TablaFronteras[[#This Row],[Frontera]]="","",IFERROR(MATCH(RIGHT(TablaFronteras[[#This Row],[Frontera]],LEN(TablaFronteras[[#This Row],[Frontera]])-IFERROR(FIND(" - ",TablaFronteras[[#This Row],[Frontera]])+2,0)),TablaFronteras[Frontera],0),"")) -> 68
A70: Sudán | B70: 399.2482605 | C70: 145.3583527 | D70: 34.66819 | E70: 33.28795242 | F70: =TablaFronteras[[#This Row],[X]]+TablaFronteras[[#This Row],[Ancho]]/2 -> 416.5823555 | G70: =TablaFronteras[[#This Row],[Y]]+TablaFronteras[[#This Row],[Alto]]/2 -> 162.0023289 | H70: =IF(AND(TablaFronteras[[#This Row],[Fila]]<>"",TablaFronteras[[#This Row],[X]]<miX,miX<TablaFronteras[[#This Row],[X]]+TablaFronteras[[#This Row],[Ancho]],TablaFronteras[[#This Row],[Y]]<miY,miY<TablaFronteras[[#This Row],[Y]]+TablaFronteras[[#This Row],[Alto]]),SQRT((TablaFronteras[[#This Row],[Centro X]]-miX)^2+(TablaFronteras[[#This Row],[Centro Y]]-miY)^2),"") ->  | I70: =IF(TablaFronteras[[#This Row],[Frontera]]="","",IFERROR(MATCH(RIGHT(TablaFronteras[[#This Row],[Frontera]],LEN(TablaFronteras[[#This Row],[Frontera]])-IFERROR(FIND(" - ",TablaFronteras[[#This Row],[Frontera]])+2,0)),TablaFronteras[Frontera],0),"")) -> 69
A71: Sudán del Sur | B71: 402.5329895 | C71: 171.341095 | D71: 26.02425194 | E71: 21.46047211 | F71: =TablaFronteras[[#This Row],[X]]+TablaFronteras[[#This Row],[Ancho]]/2 -> 415.5451155 | G71: =TablaFronteras[[#This Row],[Y]]+TablaFronteras[[#This Row],[Alto]]/2 -> 182.071331 | H71: =IF(AND(TablaFronteras[[#This Row],[Fila]]<>"",TablaFronteras[[#This Row],[X]]<miX,miX<TablaFronteras[[#This Row],[X]]+TablaFronteras[[#This Row],[Ancho]],TablaFronteras[[#This Row],[Y]]<miY,miY<TablaFronteras[[#This Row],[Y]]+TablaFronteras[[#This Row],[Alto]]),SQRT((TablaFronteras[[#This Row],[Centro X]]-miX)^2+(TablaFronteras[[#This Row],[Centro Y]]-miY)^2),"") ->  | I71: =IF(TablaFronteras[[#This Row],[Frontera]]="","",IFERROR(MATCH(RIGHT(TablaFronteras[[#This Row],[Frontera]],LEN(TablaFronteras[[#This Row],[Frontera]])-IFERROR(FIND(" - ",TablaFronteras[[#This Row],[Frontera]])+2,0)),TablaFronteras[Frontera],0),"")) -> 70
A72: Eritrea | B72: 429.1014099 | C72: 157.6021271 | D72: 14.55370045 | E72: 13.63047218 | F72: =TablaFronteras[[#This Row],[X]]+TablaFronteras[[#This Row],[Ancho]]/2 -> 436.3782601 | G72: =TablaFronteras[[#This Row],[Y]]+TablaFronteras[[#This Row],[Alto]]/2 -> 164.4173632 | H72: =IF(AND(TablaFronteras[[#This Row],[Fila]]<>"",TablaFronteras[[#This Row],[X]]<miX,miX<TablaFronteras[[#This Row],[X]]+TablaFronteras[[#This Row],[Ancho]],TablaFronteras[[#This Row],[Y]]<miY,miY<TablaFronteras[[#This Row],[Y]]+TablaFronteras[[#This Row],[Alto]]),SQRT((TablaFronteras[[#This Row],[Centro X]]-miX)^2+(TablaFronteras[[#This Row],[Centro Y]]-miY)^2),"") ->  | I72: =IF(TablaFronteras[[#This Row],[Frontera]]="","",IFERROR(MATCH(RIGHT(TablaFronteras[[#This Row],[Frontera]],LEN(TablaFronteras[[#This Row],[Frontera]])-IFERROR(FIND(" - ",TablaFronteras[[#This Row],[Frontera]])+2,0)),TablaFronteras[Frontera],0),"")) -> 71
A73: Somalia | B73: 439.3016663 | C73: 172.2051239 | D73: 21.21818924 | E73: 33.13834763 | F73: =TablaFronteras[[#This Row],[X]]+TablaFronteras[[#This Row],[Ancho]]/2 -> 449.9107609 | G73: =TablaFronteras[[#This Row],[Y]]+TablaFronteras[[#This Row],[Alto]]/2 -> 188.7742977 | H73: =IF(AND(TablaFronteras[[#This Row],[Fila]]<>"",TablaFronteras[[#This Row],[X]]<miX,miX<TablaFronteras[[#This Row],[X]]+TablaFronteras[[#This Row],[Ancho]],TablaFronteras[[#This Row],[Y]]<miY,miY<TablaFronteras[[#This Row],[Y]]+TablaFronteras[[#This Row],[Alto]]),SQRT((TablaFronteras[[#This Row],[Centro X]]-miX)^2+(TablaFronteras[[#This Row],[Centro Y]]-miY)^2),"") ->  | I73: =IF(TablaFronteras[[#This Row],[Frontera]]="","",IFERROR(MATCH(RIGHT(TablaFronteras[[#This Row],[Frontera]],LEN(TablaFronteras[[#This Row],[Frontera]])-IFERROR(FIND(" - ",TablaFronteras[[#This Row],[Frontera]])+2,0)),TablaFronteras[Frontera],0),"")) -> 72
A74: Etiopía | B74: 422.9888306 | C74: 165.201416 | D74: 30.17118073 | E74: 27.81472397 | F74: =TablaFronteras[[#This Row],[X]]+TablaFronteras[[#This Row],[Ancho]]/2 -> 438.0744209 | G74: =TablaFronteras[[#This Row],[Y]]+TablaFronteras[[#This Row],[Alto]]/2 -> 179.108778 | H74: =IF(AND(TablaFronteras[[#This Row],[Fila]]<>"",TablaFronteras[[#This Row],[X]]<miX,miX<TablaFronteras[[#This Row],[X]]+TablaFronteras[[#This Row],[Ancho]],TablaFronteras[[#This Row],[Y]]<miY,miY<TablaFronteras[[#This Row],[Y]]+TablaFronteras[[#This Row],[Alto]]),SQRT((TablaFronteras[[#This Row],[Centro X]]-miX)^2+(TablaFronteras[[#This Row],[Centro Y]]-miY)^2),"") ->  | I74: =IF(TablaFronteras[[#This Row],[Frontera]]="","",IFERROR(MATCH(RIGHT(TablaFronteras[[#This Row],[Frontera]],LEN(TablaFronteras[[#This Row],[Frontera]])-IFERROR(FIND(" - ",TablaFronteras[[#This Row],[Frontera]])+2,0)),TablaFronteras[Frontera],0),"")) -> 73
A75: Yibuti | B75: 440.8829041 | C75: 170.4188232 | D75: 3.428582668 | E75: 4.449212551 | F75: =TablaFronteras[[#This Row],[X]]+TablaFronteras[[#This Row],[Ancho]]/2 -> 442.5971954 | G75: =TablaFronteras[[#This Row],[Y]]+TablaFronteras[[#This Row],[Alto]]/2 -> 172.6434295 | H75: =IF(AND(TablaFronteras[[#This Row],[Fila]]<>"",TablaFronteras[[#This Row],[X]]<miX,miX<TablaFronteras[[#This Row],[X]]+TablaFronteras[[#This Row],[Ancho]],TablaFronteras[[#This Row],[Y]]<miY,miY<TablaFronteras[[#This Row],[Y]]+TablaFronteras[[#This Row],[Alto]]),SQRT((TablaFronteras[[#This Row],[Centro X]]-miX)^2+(TablaFronteras[[#This Row],[Centro Y]]-miY)^2),"") ->  | I75: =IF(TablaFronteras[[#This Row],[Frontera]]="","",IFERROR(MATCH(RIGHT(TablaFronteras[[#This Row],[Frontera]],LEN(TablaFronteras[[#This Row],[Frontera]])-IFERROR(FIND(" - ",TablaFronteras[[#This Row],[Frontera]])+2,0)),TablaFronteras[Frontera],0),"")) -> 74
A76: Kenia | B76: 424.7054443 | C76: 190.1687469 | D76: 16.78078651 | E76: 22.3901577 | F76: =TablaFronteras[[#This Row],[X]]+TablaFronteras[[#This Row],[Ancho]]/2 -> 433.0958376 | G76: =TablaFronteras[[#This Row],[Y]]+TablaFronteras[[#This Row],[Alto]]/2 -> 201.3638258 | H76: =IF(AND(TablaFronteras[[#This Row],[Fila]]<>"",TablaFronteras[[#This Row],[X]]<miX,miX<TablaFronteras[[#This Row],[X]]+TablaFronteras[[#This Row],[Ancho]],TablaFronteras[[#This Row],[Y]]<miY,miY<TablaFronteras[[#This Row],[Y]]+TablaFronteras[[#This Row],[Alto]]),SQRT((TablaFronteras[[#This Row],[Centro X]]-miX)^2+(TablaFronteras[[#This Row],[Centro Y]]-miY)^2),"") ->  | I76: =IF(TablaFronteras[[#This Row],[Frontera]]="","",IFERROR(MATCH(RIGHT(TablaFronteras[[#This Row],[Frontera]],LEN(TablaFronteras[[#This Row],[Frontera]])-IFERROR(FIND(" - ",TablaFronteras[[#This Row],[Frontera]])+2,0)),TablaFronteras[Frontera],0),"")) -> 75
A77: Uganda | B77: 415.7947998 | C77: 191.0573273 | D77: 10.98803139 | E77: 13.839921 | F77: =TablaFronteras[[#This Row],[X]]+TablaFronteras[[#This Row],[Ancho]]/2 -> 421.2888155 | G77: =TablaFronteras[[#This Row],[Y]]+TablaFronteras[[#This Row],[Alto]]/2 -> 197.9772878 | H77: =IF(AND(TablaFronteras[[#This Row],[Fila]]<>"",TablaFronteras[[#This Row],[X]]<miX,miX<TablaFronteras[[#This Row],[X]]+TablaFronteras[[#This Row],[Ancho]],TablaFronteras[[#This Row],[Y]]<miY,miY<TablaFronteras[[#This Row],[Y]]+TablaFronteras[[#This Row],[Alto]]),SQRT((TablaFronteras[[#This Row],[Centro X]]-miX)^2+(TablaFronteras[[#This Row],[Centro Y]]-miY)^2),"") ->  | I77: =IF(TablaFronteras[[#This Row],[Frontera]]="","",IFERROR(MATCH(RIGHT(TablaFronteras[[#This Row],[Frontera]],LEN(TablaFronteras[[#This Row],[Frontera]])-IFERROR(FIND(" - ",TablaFronteras[[#This Row],[Frontera]])+2,0)),TablaFronteras[Frontera],0),"")) -> 76
A78: Ruanda | B78: 414.3795166 | C78: 203.9548035 | D78: 4.248504162 | E78: 4.11228323 | F78: =TablaFronteras[[#This Row],[X]]+TablaFronteras[[#This Row],[Ancho]]/2 -> 416.5037687 | G78: =TablaFronteras[[#This Row],[Y]]+TablaFronteras[[#This Row],[Alto]]/2 -> 206.0109451 | H78: =IF(AND(TablaFronteras[[#This Row],[Fila]]<>"",TablaFronteras[[#This Row],[X]]<miX,miX<TablaFronteras[[#This Row],[X]]+TablaFronteras[[#This Row],[Ancho]],TablaFronteras[[#This Row],[Y]]<miY,miY<TablaFronteras[[#This Row],[Y]]+TablaFronteras[[#This Row],[Alto]]),SQRT((TablaFronteras[[#This Row],[Centro X]]-miX)^2+(TablaFronteras[[#This Row],[Centro Y]]-miY)^2),"") ->  | I78: =IF(TablaFronteras[[#This Row],[Frontera]]="","",IFERROR(MATCH(RIGHT(TablaFronteras[[#This Row],[Frontera]],LEN(TablaFronteras[[#This Row],[Frontera]])-IFERROR(FIND(" - ",TablaFronteras[[#This Row],[Frontera]])+2,0)),TablaFronteras[Frontera],0),"")) -> 77
A79: Burundi | B79: 414.6954346 | C79: 206.87323 | D79: 3.873149633 | E79: 5.114173412 | F79: =TablaFronteras[[#This Row],[X]]+TablaFronteras[[#This Row],[Ancho]]/2 -> 416.6320094 | G79: =TablaFronteras[[#This Row],[Y]]+TablaFronteras[[#This Row],[Alto]]/2 -> 209.4303167 | H79: =IF(AND(TablaFronteras[[#This Row],[Fila]]<>"",TablaFronteras[[#This Row],[X]]<miX,miX<TablaFronteras[[#This Row],[X]]+TablaFronteras[[#This Row],[Ancho]],TablaFronteras[[#This Row],[Y]]<miY,miY<TablaFronteras[[#This Row],[Y]]+TablaFronteras[[#This Row],[Alto]]),SQRT((TablaFronteras[[#This Row],[Centro X]]-miX)^2+(TablaFronteras[[#This Row],[Centro Y]]-miY)^2),"") ->  | I79: =IF(TablaFronteras[[#This Row],[Frontera]]="","",IFERROR(MATCH(RIGHT(TablaFronteras[[#This Row],[Frontera]],LEN(TablaFronteras[[#This Row],[Frontera]])-IFERROR(FIND(" - ",TablaFronteras[[#This Row],[Frontera]])+2,0)),TablaFronteras[Frontera],0),"")) -> 78
A80: Tanzania | B80: 415.8817444 | C80: 203.7651978 | D80: 22.17724419 | E80: 25.8902359 | F80: =TablaFronteras[[#This Row],[X]]+TablaFronteras[[#This Row],[Ancho]]/2 -> 426.9703665 | G80: =TablaFronteras[[#This Row],[Y]]+TablaFronteras[[#This Row],[Alto]]/2 -> 216.7103157 | H80: =IF(AND(TablaFronteras[[#This Row],[Fila]]<>"",TablaFronteras[[#This Row],[X]]<miX,miX<TablaFronteras[[#This Row],[X]]+TablaFronteras[[#This Row],[Ancho]],TablaFronteras[[#This Row],[Y]]<miY,miY<TablaFronteras[[#This Row],[Y]]+TablaFronteras[[#This Row],[Alto]]),SQRT((TablaFronteras[[#This Row],[Centro X]]-miX)^2+(TablaFronteras[[#This Row],[Centro Y]]-miY)^2),"") ->  | I80: =IF(TablaFronteras[[#This Row],[Frontera]]="","",IFERROR(MATCH(RIGHT(TablaFronteras[[#This Row],[Frontera]],LEN(TablaFronteras[[#This Row],[Frontera]])-IFERROR(FIND(" - ",TablaFronteras[[#This Row],[Frontera]])+2,0)),TablaFronteras[Frontera],0),"")) -> 79
A81: Zambia | B81: 399.5258179 | C81: 221.2137756 | D81: 24.27968597 | E81: 23.76094437 | F81: =TablaFronteras[[#This Row],[X]]+TablaFronteras[[#This Row],[Ancho]]/2 -> 411.6656609 | G81: =TablaFronteras[[#This Row],[Y]]+TablaFronteras[[#This Row],[Alto]]/2 -> 233.0942478 | H81: =IF(AND(TablaFronteras[[#This Row],[Fila]]<>"",TablaFronteras[[#This Row],[X]]<miX,miX<TablaFronteras[[#This Row],[X]]+TablaFronteras[[#This Row],[Ancho]],TablaFronteras[[#This Row],[Y]]<miY,miY<TablaFronteras[[#This Row],[Y]]+TablaFronteras[[#This Row],[Alto]]),SQRT((TablaFronteras[[#This Row],[Centro X]]-miX)^2+(TablaFronteras[[#This Row],[Centro Y]]-miY)^2),"") ->  | I81: =IF(TablaFronteras[[#This Row],[Frontera]]="","",IFERROR(MATCH(RIGHT(TablaFronteras[[#This Row],[Frontera]],LEN(TablaFronteras[[#This Row],[Frontera]])-IFERROR(FIND(" - ",TablaFronteras[[#This Row],[Frontera]])+2,0)),TablaFronteras[Frontera],0),"")) -> 80
A82: Mozambique | B82: 416.3218994 | C82: 226.7355957 | D82: 21.82551193 | E82: 39.6893692 | F82: =TablaFronteras[[#This Row],[X]]+TablaFronteras[[#This Row],[Ancho]]/2 -> 427.2346554 | G82: =TablaFronteras[[#This Row],[Y]]+TablaFronteras[[#This Row],[Alto]]/2 -> 246.5802803 | H82: =IF(AND(TablaFronteras[[#This Row],[Fila]]<>"",TablaFronteras[[#This Row],[X]]<miX,miX<TablaFronteras[[#This Row],[X]]+TablaFronteras[[#This Row],[Ancho]],TablaFronteras[[#This Row],[Y]]<miY,miY<TablaFronteras[[#This Row],[Y]]+TablaFronteras[[#This Row],[Alto]]),SQRT((TablaFronteras[[#This Row],[Centro X]]-miX)^2+(TablaFronteras[[#This Row],[Centro Y]]-miY)^2),"") ->  | I82: =IF(TablaFronteras[[#This Row],[Frontera]]="","",IFERROR(MATCH(RIGHT(TablaFronteras[[#This Row],[Frontera]],LEN(TablaFronteras[[#This Row],[Frontera]])-IFERROR(FIND(" - ",TablaFronteras[[#This Row],[Frontera]])+2,0)),TablaFronteras[Frontera],0),"")) -> 81
A83: Malaui | B83: 422.1165466 | C83: 223.9767761 | D83: 4.865118027 | E83: 18.787323 | F83: =TablaFronteras[[#This Row],[X]]+TablaFronteras[[#This Row],[Ancho]]/2 -> 424.5491056 | G83: =TablaFronteras[[#This Row],[Y]]+TablaFronteras[[#This Row],[Alto]]/2 -> 233.3704376 | H83: =IF(AND(TablaFronteras[[#This Row],[Fila]]<>"",TablaFronteras[[#This Row],[X]]<miX,miX<TablaFronteras[[#This Row],[X]]+TablaFronteras[[#This Row],[Ancho]],TablaFronteras[[#This Row],[Y]]<miY,miY<TablaFronteras[[#This Row],[Y]]+TablaFronteras[[#This Row],[Alto]]),SQRT((TablaFronteras[[#This Row],[Centro X]]-miX)^2+(TablaFronteras[[#This Row],[Centro Y]]-miY)^2),"") ->  | I83: =IF(TablaFronteras[[#This Row],[Frontera]]="","",IFERROR(MATCH(RIGHT(TablaFronteras[[#This Row],[Frontera]],LEN(TablaFronteras[[#This Row],[Frontera]])-IFERROR(FIND(" - ",TablaFronteras[[#This Row],[Frontera]])+2,0)),TablaFronteras[Frontera],0),"")) -> 82
A84: Madagascar | B84: 442.788269 | C84: 230.2276306 | D84: 14.5151968 | E84: 33.05897522 | F84: =TablaFronteras[[#This Row],[X]]+TablaFronteras[[#This Row],[Ancho]]/2 -> 450.0458674 | G84: =TablaFronteras[[#This Row],[Y]]+TablaFronteras[[#This Row],[Alto]]/2 -> 246.7571182 | H84: =IF(AND(TablaFronteras[[#This Row],[Fila]]<>"",TablaFronteras[[#This Row],[X]]<miX,miX<TablaFronteras[[#This Row],[X]]+TablaFronteras[[#This Row],[Ancho]],TablaFronteras[[#This Row],[Y]]<miY,miY<TablaFronteras[[#This Row],[Y]]+TablaFronteras[[#This Row],[Alto]]),SQRT((TablaFronteras[[#This Row],[Centro X]]-miX)^2+(TablaFronteras[[#This Row],[Centro Y]]-miY)^2),"") ->  | I84: =IF(TablaFronteras[[#This Row],[Frontera]]="","",IFERROR(MATCH(RIGHT(TablaFronteras[[#This Row],[Frontera]],LEN(TablaFronteras[[#This Row],[Frontera]])-IFERROR(FIND(" - ",TablaFronteras[[#This Row],[Frontera]])+2,0)),TablaFronteras[Frontera],0),"")) -> 83
A85: Zimbabue | B85: 405.97229 | C85: 239.1163788 | D85: 15.80992126 | E85: 16.54031563 | F85: =TablaFronteras[[#This Row],[X]]+TablaFronteras[[#This Row],[Ancho]]/2 -> 413.8772507 | G85: =TablaFronteras[[#This Row],[Y]]+TablaFronteras[[#This Row],[Alto]]/2 -> 247.3865366 | H85: =IF(AND(TablaFronteras[[#This Row],[Fila]]<>"",TablaFronteras[[#This Row],[X]]<miX,miX<TablaFronteras[[#This Row],[X]]+TablaFronteras[[#This Row],[Ancho]],TablaFronteras[[#This Row],[Y]]<miY,miY<TablaFronteras[[#This Row],[Y]]+TablaFronteras[[#This Row],[Alto]]),SQRT((TablaFronteras[[#This Row],[Centro X]]-miX)^2+(TablaFronteras[[#This Row],[Centro Y]]-miY)^2),"") ->  | I85: =IF(TablaFronteras[[#This Row],[Frontera]]="","",IFERROR(MATCH(RIGHT(TablaFronteras[[#This Row],[Frontera]],LEN(TablaFronteras[[#This Row],[Frontera]])-IFERROR(FIND(" - ",TablaFronteras[[#This Row],[Frontera]])+2,0)),TablaFronteras[Frontera],0),"")) -> 84
A86: Botsuana | B86: 395.506073 | C86: 244.227951 | D86: 19.01441002 | E86: 22.21078682 | F86: =TablaFronteras[[#This Row],[X]]+TablaFronteras[[#This Row],[Ancho]]/2 -> 405.013278 | G86: =TablaFronteras[[#This Row],[Y]]+TablaFronteras[[#This Row],[Alto]]/2 -> 255.3333445 | H86: =IF(AND(TablaFronteras[[#This Row],[Fila]]<>"",TablaFronteras[[#This Row],[X]]<miX,miX<TablaFronteras[[#This Row],[X]]+TablaFronteras[[#This Row],[Ancho]],TablaFronteras[[#This Row],[Y]]<miY,miY<TablaFronteras[[#This Row],[Y]]+TablaFronteras[[#This Row],[Alto]]),SQRT((TablaFronteras[[#This Row],[Centro X]]-miX)^2+(TablaFronteras[[#This Row],[Centro Y]]-miY)^2),"") ->  | I86: =IF(TablaFronteras[[#This Row],[Frontera]]="","",IFERROR(MATCH(RIGHT(TablaFronteras[[#This Row],[Frontera]],LEN(TablaFronteras[[#This Row],[Frontera]])-IFERROR(FIND(" - ",TablaFronteras[[#This Row],[Frontera]])+2,0)),TablaFronteras[Frontera],0),"")) -> 85
A87: Angola | B87: 378.2408752 | C87: 211.8929901 | D87: 25.51795197 | E87: 32.92621994 | F87: =TablaFronteras[[#This Row],[X]]+TablaFronteras[[#This Row],[Ancho]]/2 -> 390.9998512 | G87: =TablaFronteras[[#This Row],[Y]]+TablaFronteras[[#This Row],[Alto]]/2 -> 228.3561001 | H87: =IF(AND(TablaFronteras[[#This Row],[Fila]]<>"",TablaFronteras[[#This Row],[X]]<miX,miX<TablaFronteras[[#This Row],[X]]+TablaFronteras[[#This Row],[Ancho]],TablaFronteras[[#This Row],[Y]]<miY,miY<TablaFronteras[[#This Row],[Y]]+TablaFronteras[[#This Row],[Alto]]),SQRT((TablaFronteras[[#This Row],[Centro X]]-miX)^2+(TablaFronteras[[#This Row],[Centro Y]]-miY)^2),"") ->  | I87: =IF(TablaFronteras[[#This Row],[Frontera]]="","",IFERROR(MATCH(RIGHT(TablaFronteras[[#This Row],[Frontera]],LEN(TablaFronteras[[#This Row],[Frontera]])-IFERROR(FIND(" - ",TablaFronteras[[#This Row],[Frontera]])+2,0)),TablaFronteras[Frontera],0),"")) -> 86
A88: Camerún | B88: 372.8823547 | C88: 169.5183411 | D88: 14.75811005 | E88: 27.71606255 | F88: =TablaFronteras[[#This Row],[X]]+TablaFronteras[[#This Row],[Ancho]]/2 -> 380.2614098 | G88: =TablaFronteras[[#This Row],[Y]]+TablaFronteras[[#This Row],[Alto]]/2 -> 183.3763723 | H88: =IF(AND(TablaFronteras[[#This Row],[Fila]]<>"",TablaFronteras[[#This Row],[X]]<miX,miX<TablaFronteras[[#This Row],[X]]+TablaFronteras[[#This Row],[Ancho]],TablaFronteras[[#This Row],[Y]]<miY,miY<TablaFronteras[[#This Row],[Y]]+TablaFronteras[[#This Row],[Alto]]),SQRT((TablaFronteras[[#This Row],[Centro X]]-miX)^2+(TablaFronteras[[#This Row],[Centro Y]]-miY)^2),"") ->  | I88: =IF(TablaFronteras[[#This Row],[Frontera]]="","",IFERROR(MATCH(RIGHT(TablaFronteras[[#This Row],[Frontera]],LEN(TablaFronteras[[#This Row],[Frontera]])-IFERROR(FIND(" - ",TablaFronteras[[#This Row],[Frontera]])+2,0)),TablaFronteras[Frontera],0),"")) -> 87
A89: República Centroafricana | B89: 384.192749 | C89: 174.7344055 | D89: 27.14614105 | E89: 21.14322853 | F89: =TablaFronteras[[#This Row],[X]]+TablaFronteras[[#This Row],[Ancho]]/2 -> 397.7658195 | G89: =TablaFronteras[[#This Row],[Y]]+TablaFronteras[[#This Row],[Alto]]/2 -> 185.3060198 | H89: =IF(AND(TablaFronteras[[#This Row],[Fila]]<>"",TablaFronteras[[#This Row],[X]]<miX,miX<TablaFronteras[[#This Row],[X]]+TablaFronteras[[#This Row],[Ancho]],TablaFronteras[[#This Row],[Y]]<miY,miY<TablaFronteras[[#This Row],[Y]]+TablaFronteras[[#This Row],[Alto]]),SQRT((TablaFronteras[[#This Row],[Centro X]]-miX)^2+(TablaFronteras[[#This Row],[Centro Y]]-miY)^2),"") ->  | I89: =IF(TablaFronteras[[#This Row],[Frontera]]="","",IFERROR(MATCH(RIGHT(TablaFronteras[[#This Row],[Frontera]],LEN(TablaFronteras[[#This Row],[Frontera]])-IFERROR(FIND(" - ",TablaFronteras[[#This Row],[Frontera]])+2,0)),TablaFronteras[Frontera],0),"")) -> 88
A90: República Democrática del Congo | B90: 379.2539368 | C90: 188.2261353 | D90: 40.27039337 | E90: 45.7290535 | F90: =TablaFronteras[[#This Row],[X]]+TablaFronteras[[#This Row],[Ancho]]/2 -> 399.3891335 | G90: =TablaFronteras[[#This Row],[Y]]+TablaFronteras[[#This Row],[Alto]]/2 -> 211.090662 | H90: =IF(AND(TablaFronteras[[#This Row],[Fila]]<>"",TablaFronteras[[#This Row],[X]]<miX,miX<TablaFronteras[[#This Row],[X]]+TablaFronteras[[#This Row],[Ancho]],TablaFronteras[[#This Row],[Y]]<miY,miY<TablaFronteras[[#This Row],[Y]]+TablaFronteras[[#This Row],[Alto]]),SQRT((TablaFronteras[[#This Row],[Centro X]]-miX)^2+(TablaFronteras[[#This Row],[Centro Y]]-miY)^2),"") ->  | I90: =IF(TablaFronteras[[#This Row],[Frontera]]="","",IFERROR(MATCH(RIGHT(TablaFronteras[[#This Row],[Frontera]],LEN(TablaFronteras[[#This Row],[Frontera]])-IFERROR(FIND(" - ",TablaFronteras[[#This Row],[Frontera]])+2,0)),TablaFronteras[Frontera],0),"")) -> 89
A91: Namibia | B91: 378.2072449 | C91: 242.3224335 | D91: 27.70968437 | E91: 28.96889687 | F91: =TablaFronteras[[#This Row],[X]]+TablaFronteras[[#This Row],[Ancho]]/2 -> 392.0620871 | G91: =TablaFronteras[[#This Row],[Y]]+TablaFronteras[[#This Row],[Alto]]/2 -> 256.8068819 | H91: =IF(AND(TablaFronteras[[#This Row],[Fila]]<>"",TablaFronteras[[#This Row],[X]]<miX,miX<TablaFronteras[[#This Row],[X]]+TablaFronteras[[#This Row],[Ancho]],TablaFronteras[[#This Row],[Y]]<miY,miY<TablaFronteras[[#This Row],[Y]]+TablaFronteras[[#This Row],[Alto]]),SQRT((TablaFronteras[[#This Row],[Centro X]]-miX)^2+(TablaFronteras[[#This Row],[Centro Y]]-miY)^2),"") ->  | I91: =IF(TablaFronteras[[#This Row],[Frontera]]="","",IFERROR(MATCH(RIGHT(TablaFronteras[[#This Row],[Frontera]],LEN(TablaFronteras[[#This Row],[Frontera]])-IFERROR(FIND(" - ",TablaFronteras[[#This Row],[Frontera]])+2,0)),TablaFronteras[Frontera],0),"")) -> 90
A92: Sudáfrica | B92: 388.1322937 | C92: 254.8958282 | D92: 33.17338562 | E92: 30.46637726 | F92: =TablaFronteras[[#This Row],[X]]+TablaFronteras[[#This Row],[Ancho]]/2 -> 404.7189865 | G92: =TablaFronteras[[#This Row],[Y]]+TablaFronteras[[#This Row],[Alto]]/2 -> 270.1290169 | H92: =IF(AND(TablaFronteras[[#This Row],[Fila]]<>"",TablaFronteras[[#This Row],[X]]<miX,miX<TablaFronteras[[#This Row],[X]]+TablaFronteras[[#This Row],[Ancho]],TablaFronteras[[#This Row],[Y]]<miY,miY<TablaFronteras[[#This Row],[Y]]+TablaFronteras[[#This Row],[Alto]]),SQRT((TablaFronteras[[#This Row],[Centro X]]-miX)^2+(TablaFronteras[[#This Row],[Centro Y]]-miY)^2),"") ->  | I92: =IF(TablaFronteras[[#This Row],[Frontera]]="","",IFERROR(MATCH(RIGHT(TablaFronteras[[#This Row],[Frontera]],LEN(TablaFronteras[[#This Row],[Frontera]])-IFERROR(FIND(" - ",TablaFronteras[[#This Row],[Frontera]])+2,0)),TablaFronteras[Frontera],0),"")) -> 91
A93: Lesoto | B93: 409.0401611 | C93: 270.4970093 | D93: 5.005433083 | E93: 5.198425293 | F93: =TablaFronteras[[#This Row],[X]]+TablaFronteras[[#This Row],[Ancho]]/2 -> 411.5428777 | G93: =TablaFronteras[[#This Row],[Y]]+TablaFronteras[[#This Row],[Alto]]/2 -> 273.0962219 | H93: =IF(AND(TablaFronteras[[#This Row],[Fila]]<>"",TablaFronteras[[#This Row],[X]]<miX,miX<TablaFronteras[[#This Row],[X]]+TablaFronteras[[#This Row],[Ancho]],TablaFronteras[[#This Row],[Y]]<miY,miY<TablaFronteras[[#This Row],[Y]]+TablaFronteras[[#This Row],[Alto]]),SQRT((TablaFronteras[[#This Row],[Centro X]]-miX)^2+(TablaFronteras[[#This Row],[Centro Y]]-miY)^2),"") ->  | I93: =IF(TablaFronteras[[#This Row],[Frontera]]="","",IFERROR(MATCH(RIGHT(TablaFronteras[[#This Row],[Frontera]],LEN(TablaFronteras[[#This Row],[Frontera]])-IFERROR(FIND(" - ",TablaFronteras[[#This Row],[Frontera]])+2,0)),TablaFronteras[Frontera],0),"")) -> 92
A94: Suazilandia | B94: 417.0691223 | C94: 263.9373169 | D94: 3.331496 | E94: 3.447322845 | F94: =TablaFronteras[[#This Row],[X]]+TablaFronteras[[#This Row],[Ancho]]/2 -> 418.7348703 | G94: =TablaFronteras[[#This Row],[Y]]+TablaFronteras[[#This Row],[Alto]]/2 -> 265.6609783 | H94: =IF(AND(TablaFronteras[[#This Row],[Fila]]<>"",TablaFronteras[[#This Row],[X]]<miX,miX<TablaFronteras[[#This Row],[X]]+TablaFronteras[[#This Row],[Ancho]],TablaFronteras[[#This Row],[Y]]<miY,miY<TablaFronteras[[#This Row],[Y]]+TablaFronteras[[#This Row],[Alto]]),SQRT((TablaFronteras[[#This Row],[Centro X]]-miX)^2+(TablaFronteras[[#This Row],[Centro Y]]-miY)^2),"") ->  | I94: =IF(TablaFronteras[[#This Row],[Frontera]]="","",IFERROR(MATCH(RIGHT(TablaFronteras[[#This Row],[Frontera]],LEN(TablaFronteras[[#This Row],[Frontera]])-IFERROR(FIND(" - ",TablaFronteras[[#This Row],[Frontera]])+2,0)),TablaFronteras[Frontera],0),"")) -> 93
A95: República del Congo | B95: 376.9829102 | C95: 192.3613434 | D95: 16.19354248 | E95: 20.98480225 | F95: =TablaFronteras[[#This Row],[X]]+TablaFronteras[[#This Row],[Ancho]]/2 -> 385.0796814 | G95: =TablaFronteras[[#This Row],[Y]]+TablaFronteras[[#This Row],[Alto]]/2 -> 202.8537445 | H95: =IF(AND(TablaFronteras[[#This Row],[Fila]]<>"",TablaFronteras[[#This Row],[X]]<miX,miX<TablaFronteras[[#This Row],[X]]+TablaFronteras[[#This Row],[Ancho]],TablaFronteras[[#This Row],[Y]]<miY,miY<TablaFronteras[[#This Row],[Y]]+TablaFronteras[[#This Row],[Alto]]),SQRT((TablaFronteras[[#This Row],[Centro X]]-miX)^2+(TablaFronteras[[#This Row],[Centro Y]]-miY)^2),"") ->  | I95: =IF(TablaFronteras[[#This Row],[Frontera]]="","",IFERROR(MATCH(RIGHT(TablaFronteras[[#This Row],[Frontera]],LEN(TablaFronteras[[#This Row],[Frontera]])-IFERROR(FIND(" - ",TablaFronteras[[#This Row],[Frontera]])+2,0)),TablaFronteras[Frontera],0),"")) -> 94
A96: Gabón | B96: 371.9625244 | C96: 195.5777893 | D96: 12.48866177 | E96: 15.1939373 | F96: =TablaFronteras[[#This Row],[X]]+TablaFronteras[[#This Row],[Ancho]]/2 -> 378.2068553 | G96: =TablaFronteras[[#This Row],[Y]]+TablaFronteras[[#This Row],[Alto]]/2 -> 203.174758 | H96: =IF(AND(TablaFronteras[[#This Row],[Fila]]<>"",TablaFronteras[[#This Row],[X]]<miX,miX<TablaFronteras[[#This Row],[X]]+TablaFronteras[[#This Row],[Ancho]],TablaFronteras[[#This Row],[Y]]<miY,miY<TablaFronteras[[#This Row],[Y]]+TablaFronteras[[#This Row],[Alto]]),SQRT((TablaFronteras[[#This Row],[Centro X]]-miX)^2+(TablaFronteras[[#This Row],[Centro Y]]-miY)^2),"") ->  | I96: =IF(TablaFronteras[[#This Row],[Frontera]]="","",IFERROR(MATCH(RIGHT(TablaFronteras[[#This Row],[Frontera]],LEN(TablaFronteras[[#This Row],[Frontera]])-IFERROR(FIND(" - ",TablaFronteras[[#This Row],[Frontera]])+2,0)),TablaFronteras[Frontera],0),"")) -> 95
A97: Guinea Ecuatorial | B97: 371.9563904 | C97: 192.1663055 | D97: 5.434566975 | E97: 6.644251823 | F97: =TablaFronteras[[#This Row],[X]]+TablaFronteras[[#This Row],[Ancho]]/2 -> 374.6736739 | G97: =TablaFronteras[[#This Row],[Y]]+TablaFronteras[[#This Row],[Alto]]/2 -> 195.4884315 | H97: =IF(AND(TablaFronteras[[#This Row],[Fila]]<>"",TablaFronteras[[#This Row],[X]]<miX,miX<TablaFronteras[[#This Row],[X]]+TablaFronteras[[#This Row],[Ancho]],TablaFronteras[[#This Row],[Y]]<miY,miY<TablaFronteras[[#This Row],[Y]]+TablaFronteras[[#This Row],[Alto]]),SQRT((TablaFronteras[[#This Row],[Centro X]]-miX)^2+(TablaFronteras[[#This Row],[Centro Y]]-miY)^2),"") ->  | I97: =IF(TablaFronteras[[#This Row],[Frontera]]="","",IFERROR(MATCH(RIGHT(TablaFronteras[[#This Row],[Frontera]],LEN(TablaFronteras[[#This Row],[Frontera]])-IFERROR(FIND(" - ",TablaFronteras[[#This Row],[Frontera]])+2,0)),TablaFronteras[Frontera],0),"")) -> 96
A98: Kazajistán | B98: 441.8500061 | C98: 67.94582367 | D98: 73.78134155 | E98: 35.10716629 | F98: =TablaFronteras[[#This Row],[X]]+TablaFronteras[[#This Row],[Ancho]]/2 -> 478.7406769 | G98: =TablaFronteras[[#This Row],[Y]]+TablaFronteras[[#This Row],[Alto]]/2 -> 85.49940681 | H98: =IF(AND(TablaFronteras[[#This Row],[Fila]]<>"",TablaFronteras[[#This Row],[X]]<miX,miX<TablaFronteras[[#This Row],[X]]+TablaFronteras[[#This Row],[Ancho]],TablaFronteras[[#This Row],[Y]]<miY,miY<TablaFronteras[[#This Row],[Y]]+TablaFronteras[[#This Row],[Alto]]),SQRT((TablaFronteras[[#This Row],[Centro X]]-miX)^2+(TablaFronteras[[#This Row],[Centro Y]]-miY)^2),"") ->  | I98: =IF(TablaFronteras[[#This Row],[Frontera]]="","",IFERROR(MATCH(RIGHT(TablaFronteras[[#This Row],[Frontera]],LEN(TablaFronteras[[#This Row],[Frontera]])-IFERROR(FIND(" - ",TablaFronteras[[#This Row],[Frontera]])+2,0)),TablaFronteras[Frontera],0),"")) -> 97
A99: Mongolia | B99: 516.453125 | C99: 75.60590363 | D99: 60.87850571 | E99: 24.78818893 | F99: =TablaFronteras[[#This Row],[X]]+TablaFronteras[[#This Row],[Ancho]]/2 -> 546.8923779 | G99: =TablaFronteras[[#This Row],[Y]]+TablaFronteras[[#This Row],[Alto]]/2 -> 87.99999809 | H99: =IF(AND(TablaFronteras[[#This Row],[Fila]]<>"",TablaFronteras[[#This Row],[X]]<miX,miX<TablaFronteras[[#This Row],[X]]+TablaFronteras[[#This Row],[Ancho]],TablaFronteras[[#This Row],[Y]]<miY,miY<TablaFronteras[[#This Row],[Y]]+TablaFronteras[[#This Row],[Alto]]),SQRT((TablaFronteras[[#This Row],[Centro X]]-miX)^2+(TablaFronteras[[#This Row],[Centro Y]]-miY)^2),"") ->  | I99: =IF(TablaFronteras[[#This Row],[Frontera]]="","",IFERROR(MATCH(RIGHT(TablaFronteras[[#This Row],[Frontera]],LEN(TablaFronteras[[#This Row],[Frontera]])-IFERROR(FIND(" - ",TablaFronteras[[#This Row],[Frontera]])+2,0)),TablaFronteras[Frontera],0),"")) -> 98
A100: Japón | B100: 605.1763916 | C100: 91.25102234 | D100: 25.38598442 | E100: 51.15519714 | F100: =TablaFronteras[[#This Row],[X]]+TablaFronteras[[#This Row],[Ancho]]/2 -> 617.8693838 | G100: =TablaFronteras[[#This Row],[Y]]+TablaFronteras[[#This Row],[Alto]]/2 -> 116.8286209 | H100: =IF(AND(TablaFronteras[[#This Row],[Fila]]<>"",TablaFronteras[[#This Row],[X]]<miX,miX<TablaFronteras[[#This Row],[X]]+TablaFronteras[[#This Row],[Ancho]],TablaFronteras[[#This Row],[Y]]<miY,miY<TablaFronteras[[#This Row],[Y]]+TablaFronteras[[#This Row],[Alto]]),SQRT((TablaFronteras[[#This Row],[Centro X]]-miX)^2+(TablaFronteras[[#This Row],[Centro Y]]-miY)^2),"") ->  | I100: =IF(TablaFronteras[[#This Row],[Frontera]]="","",IFERROR(MATCH(RIGHT(TablaFronteras[[#This Row],[Frontera]],LEN(TablaFronteras[[#This Row],[Frontera]])-IFERROR(FIND(" - ",TablaFronteras[[#This Row],[Frontera]])+2,0)),TablaFronteras[Frontera],0),"")) -> 99
A101: Corea del Norte | B101: 594.4185181 | C101: 97.22913361 | D101: 8.83952713 | E101: 12.74133873 | F101: =TablaFronteras[[#This Row],[X]]+TablaFronteras[[#This Row],[Ancho]]/2 -> 598.8382816 | G101: =TablaFronteras[[#This Row],[Y]]+TablaFronteras[[#This Row],[Alto]]/2 -> 103.599803 | H101: =IF(AND(TablaFronteras[[#This Row],[Fila]]<>"",TablaFronteras[[#This Row],[X]]<miX,miX<TablaFronteras[[#This Row],[X]]+TablaFronteras[[#This Row],[Ancho]],TablaFronteras[[#This Row],[Y]]<miY,miY<TablaFronteras[[#This Row],[Y]]+TablaFronteras[[#This Row],[Alto]]),SQRT((TablaFronteras[[#This Row],[Centro X]]-miX)^2+(TablaFronteras[[#This Row],[Centro Y]]-miY)^2),"") ->  | I101: =IF(TablaFronteras[[#This Row],[Frontera]]="","",IFERROR(MATCH(RIGHT(TablaFronteras[[#This Row],[Frontera]],LEN(TablaFronteras[[#This Row],[Frontera]])-IFERROR(FIND(" - ",TablaFronteras[[#This Row],[Frontera]])+2,0)),TablaFronteras[Frontera],0),"")) -> 100
A102: Corea del Sur | B102: 600.1254883 | C102: 107.8009415 | D102: 8.672440529 | E102: 13.04047203 | F102: =TablaFronteras[[#This Row],[X]]+TablaFronteras[[#This Row],[Ancho]]/2 -> 604.4617085 | G102: =TablaFronteras[[#This Row],[Y]]+TablaFronteras[[#This Row],[Alto]]/2 -> 114.3211775 | H102: =IF(AND(TablaFronteras[[#This Row],[Fila]]<>"",TablaFronteras[[#This Row],[X]]<miX,miX<TablaFronteras[[#This Row],[X]]+TablaFronteras[[#This Row],[Ancho]],TablaFronteras[[#This Row],[Y]]<miY,miY<TablaFronteras[[#This Row],[Y]]+TablaFronteras[[#This Row],[Alto]]),SQRT((TablaFronteras[[#This Row],[Centro X]]-miX)^2+(TablaFronteras[[#This Row],[Centro Y]]-miY)^2),"") ->  | I102: =IF(TablaFronteras[[#This Row],[Frontera]]="","",IFERROR(MATCH(RIGHT(TablaFronteras[[#This Row],[Frontera]],LEN(TablaFronteras[[#This Row],[Frontera]])-IFERROR(FIND(" - ",TablaFronteras[[#This Row],[Frontera]])+2,0)),TablaFronteras[Frontera],0),"")) -> 101
A103: Irán | B103: 440.6033936 | C103: 105.0003128 | D103: 41.47173309 | E103: 35.38936996 | F103: =TablaFronteras[[#This Row],[X]]+TablaFronteras[[#This Row],[Ancho]]/2 -> 461.3392601 | G103: =TablaFronteras[[#This Row],[Y]]+TablaFronteras[[#This Row],[Alto]]/2 -> 122.6949978 | H103: =IF(AND(TablaFronteras[[#This Row],[Fila]]<>"",TablaFronteras[[#This Row],[X]]<miX,miX<TablaFronteras[[#This Row],[X]]+TablaFronteras[[#This Row],[Ancho]],TablaFronteras[[#This Row],[Y]]<miY,miY<TablaFronteras[[#This Row],[Y]]+TablaFronteras[[#This Row],[Alto]]),SQRT((TablaFronteras[[#This Row],[Centro X]]-miX)^2+(TablaFronteras[[#This Row],[Centro Y]]-miY)^2),"") ->  | I103: =IF(TablaFronteras[[#This Row],[Frontera]]="","",IFERROR(MATCH(RIGHT(TablaFronteras[[#This Row],[Frontera]],LEN(TablaFronteras[[#This Row],[Frontera]])-IFERROR(FIND(" - ",TablaFronteras[[#This Row],[Frontera]])+2,0)),TablaFronteras[Frontera],0),"")) -> 102
A104: Turkmenistán | B104: 455.3202515 | C104: 97.75173187 | D104: 29.59740067 | E104: 18.49055099 | F104: =TablaFronteras[[#This Row],[X]]+TablaFronteras[[#This Row],[Ancho]]/2 -> 470.1189518 | G104: =TablaFronteras[[#This Row],[Y]]+TablaFronteras[[#This Row],[Alto]]/2 -> 106.9970074 | H104: =IF(AND(TablaFronteras[[#This Row],[Fila]]<>"",TablaFronteras[[#This Row],[X]]<miX,miX<TablaFronteras[[#This Row],[X]]+TablaFronteras[[#This Row],[Ancho]],TablaFronteras[[#This Row],[Y]]<miY,miY<TablaFronteras[[#This Row],[Y]]+TablaFronteras[[#This Row],[Alto]]),SQRT((TablaFronteras[[#This Row],[Centro X]]-miX)^2+(TablaFronteras[[#This Row],[Centro Y]]-miY)^2),"") ->  | I104: =IF(TablaFronteras[[#This Row],[Frontera]]="","",IFERROR(MATCH(RIGHT(TablaFronteras[[#This Row],[Frontera]],LEN(TablaFronteras[[#This Row],[Frontera]])-IFERROR(FIND(" - ",TablaFronteras[[#This Row],[Frontera]])+2,0)),TablaFronteras[Frontera],0),"")) -> 103
A105: Uzbekistán | B105: 460.8033142 | C105: 91.0767746 | D105: 34.9392128 | E105: 20.23315048 | F105: =TablaFronteras[[#This Row],[X]]+TablaFronteras[[#This Row],[Ancho]]/2 -> 478.2729206 | G105: =TablaFronteras[[#This Row],[Y]]+TablaFronteras[[#This Row],[Alto]]/2 -> 101.1933498 | H105: =IF(AND(TablaFronteras[[#This Row],[Fila]]<>"",TablaFronteras[[#This Row],[X]]<miX,miX<TablaFronteras[[#This Row],[X]]+TablaFronteras[[#This Row],[Ancho]],TablaFronteras[[#This Row],[Y]]<miY,miY<TablaFronteras[[#This Row],[Y]]+TablaFronteras[[#This Row],[Alto]]),SQRT((TablaFronteras[[#This Row],[Centro X]]-miX)^2+(TablaFronteras[[#This Row],[Centro Y]]-miY)^2),"") ->  | I105: =IF(TablaFronteras[[#This Row],[Frontera]]="","",IFERROR(MATCH(RIGHT(TablaFronteras[[#This Row],[Frontera]],LEN(TablaFronteras[[#This Row],[Frontera]])-IFERROR(FIND(" - ",TablaFronteras[[#This Row],[Frontera]])+2,0)),TablaFronteras[Frontera],0),"")) -> 104
A106: Kirguistán | B106: 488.9296875 | C106: 96.51283264 | D106: 18.22401619 | E106: 9.819605827 | F106: =TablaFronteras[[#This Row],[X]]+TablaFronteras[[#This Row],[Ancho]]/2 -> 498.0416956 | G106: =TablaFronteras[[#This Row],[Y]]+TablaFronteras[[#This Row],[Alto]]/2 -> 101.4226356 | H106: =IF(AND(TablaFronteras[[#This Row],[Fila]]<>"",TablaFronteras[[#This Row],[X]]<miX,miX<TablaFronteras[[#This Row],[X]]+TablaFronteras[[#This Row],[Ancho]],TablaFronteras[[#This Row],[Y]]<miY,miY<TablaFronteras[[#This Row],[Y]]+TablaFronteras[[#This Row],[Alto]]),SQRT((TablaFronteras[[#This Row],[Centro X]]-miX)^2+(TablaFronteras[[#This Row],[Centro Y]]-miY)^2),"") ->  | I106: =IF(TablaFronteras[[#This Row],[Frontera]]="","",IFERROR(MATCH(RIGHT(TablaFronteras[[#This Row],[Frontera]],LEN(TablaFronteras[[#This Row],[Frontera]])-IFERROR(FIND(" - ",TablaFronteras[[#This Row],[Frontera]])+2,0)),TablaFronteras[Frontera],0),"")) -> 105
A107: Tayikistán | B107: 485.4063721 | C107: 102.0239334 | D107: 15.55826759 | E107: 10.29338551 | F107: =TablaFronteras[[#This Row],[X]]+TablaFronteras[[#This Row],[Ancho]]/2 -> 493.1855059 | G107: =TablaFronteras[[#This Row],[Y]]+TablaFronteras[[#This Row],[Alto]]/2 -> 107.1706262 | H107: =IF(AND(TablaFronteras[[#This Row],[Fila]]<>"",TablaFronteras[[#This Row],[X]]<miX,miX<TablaFronteras[[#This Row],[X]]+TablaFronteras[[#This Row],[Ancho]],TablaFronteras[[#This Row],[Y]]<miY,miY<TablaFronteras[[#This Row],[Y]]+TablaFronteras[[#This Row],[Alto]]),SQRT((TablaFronteras[[#This Row],[Centro X]]-miX)^2+(TablaFronteras[[#This Row],[Centro Y]]-miY)^2),"") ->  | I107: =IF(TablaFronteras[[#This Row],[Frontera]]="","",IFERROR(MATCH(RIGHT(TablaFronteras[[#This Row],[Frontera]],LEN(TablaFronteras[[#This Row],[Frontera]])-IFERROR(FIND(" - ",TablaFronteras[[#This Row],[Frontera]])+2,0)),TablaFronteras[Frontera],0),"")) -> 106
A108: Afganistán | B108: 474.247406 | C108: 108.1251984 | D108: 26.44212532 | E108: 21.78622055 | F108: =TablaFronteras[[#This Row],[X]]+TablaFronteras[[#This Row],[Ancho]]/2 -> 487.4684687 | G108: =TablaFronteras[[#This Row],[Y]]+TablaFronteras[[#This Row],[Alto]]/2 -> 119.0183086 | H108: =IF(AND(TablaFronteras[[#This Row],[Fila]]<>"",TablaFronteras[[#This Row],[X]]<miX,miX<TablaFronteras[[#This Row],[X]]+TablaFronteras[[#This Row],[Ancho]],TablaFronteras[[#This Row],[Y]]<miY,miY<TablaFronteras[[#This Row],[Y]]+TablaFronteras[[#This Row],[Alto]]),SQRT((TablaFronteras[[#This Row],[Centro X]]-miX)^2+(TablaFronteras[[#This Row],[Centro Y]]-miY)^2),"") ->  | I108: =IF(TablaFronteras[[#This Row],[Frontera]]="","",IFERROR(MATCH(RIGHT(TablaFronteras[[#This Row],[Frontera]],LEN(TablaFronteras[[#This Row],[Frontera]])-IFERROR(FIND(" - ",TablaFronteras[[#This Row],[Frontera]])+2,0)),TablaFronteras[Frontera],0),"")) -> 107
A109: Georgia | B109: 431.1585693 | C109: 90.25905609 | D109: 14.00299168 | E109: 5.914881706 | F109: =TablaFronteras[[#This Row],[X]]+TablaFronteras[[#This Row],[Ancho]]/2 -> 438.1600652 | G109: =TablaFronteras[[#This Row],[Y]]+TablaFronteras[[#This Row],[Alto]]/2 -> 93.21649694 | H109: =IF(AND(TablaFronteras[[#This Row],[Fila]]<>"",TablaFronteras[[#This Row],[X]]<miX,miX<TablaFronteras[[#This Row],[X]]+TablaFronteras[[#This Row],[Ancho]],TablaFronteras[[#This Row],[Y]]<miY,miY<TablaFronteras[[#This Row],[Y]]+TablaFronteras[[#This Row],[Alto]]),SQRT((TablaFronteras[[#This Row],[Centro X]]-miX)^2+(TablaFronteras[[#This Row],[Centro Y]]-miY)^2),"") ->  | I109: =IF(TablaFronteras[[#This Row],[Frontera]]="","",IFERROR(MATCH(RIGHT(TablaFronteras[[#This Row],[Frontera]],LEN(TablaFronteras[[#This Row],[Frontera]])-IFERROR(FIND(" - ",TablaFronteras[[#This Row],[Frontera]])+2,0)),TablaFronteras[Frontera],0),"")) -> 108
A110: Azerbaiyán | B110: 441.8637695 | C110: 99.65929413 | D110: 10.10543346 | E110: 8.536535263 | F110: =TablaFronteras[[#This Row],[X]]+TablaFronteras[[#This Row],[Ancho]]/2 -> 446.9164863 | G110: =TablaFronteras[[#This Row],[Y]]+TablaFronteras[[#This Row],[Alto]]/2 -> 103.9275618 | H110: =IF(AND(TablaFronteras[[#This Row],[Fila]]<>"",TablaFronteras[[#This Row],[X]]<miX,miX<TablaFronteras[[#This Row],[X]]+TablaFronteras[[#This Row],[Ancho]],TablaFronteras[[#This Row],[Y]]<miY,miY<TablaFronteras[[#This Row],[Y]]+TablaFronteras[[#This Row],[Alto]]),SQRT((TablaFronteras[[#This Row],[Centro X]]-miX)^2+(TablaFronteras[[#This Row],[Centro Y]]-miY)^2),"") ->  | I110: =IF(TablaFronteras[[#This Row],[Frontera]]="","",IFERROR(MATCH(RIGHT(TablaFronteras[[#This Row],[Frontera]],LEN(TablaFronteras[[#This Row],[Frontera]])-IFERROR(FIND(" - ",TablaFronteras[[#This Row],[Frontera]])+2,0)),TablaFronteras[Frontera],0),"")) -> 109
A111: Armenia | B111: 438.7848816 | C111: 101.1847229 | D111: 6.935118198 | E111: 5.946771622 | F111: =TablaFronteras[[#This Row],[X]]+TablaFronteras[[#This Row],[Ancho]]/2 -> 442.2524407 | G111: =TablaFronteras[[#This Row],[Y]]+TablaFronteras[[#This Row],[Alto]]/2 -> 104.1581087 | H111: =IF(AND(TablaFronteras[[#This Row],[Fila]]<>"",TablaFronteras[[#This Row],[X]]<miX,miX<TablaFronteras[[#This Row],[X]]+TablaFronteras[[#This Row],[Ancho]],TablaFronteras[[#This Row],[Y]]<miY,miY<TablaFronteras[[#This Row],[Y]]+TablaFronteras[[#This Row],[Alto]]),SQRT((TablaFronteras[[#This Row],[Centro X]]-miX)^2+(TablaFronteras[[#This Row],[Centro Y]]-miY)^2),"") ->  | I111: =IF(TablaFronteras[[#This Row],[Frontera]]="","",IFERROR(MATCH(RIGHT(TablaFronteras[[#This Row],[Frontera]],LEN(TablaFronteras[[#This Row],[Frontera]])-IFERROR(FIND(" - ",TablaFronteras[[#This Row],[Frontera]])+2,0)),TablaFronteras[Frontera],0),"")) -> 110
A112: Pakistán | B112: 476.2170105 | C112: 111.4907074 | D112: 32.7078743 | E112: 32.13433075 | F112: =TablaFronteras[[#This Row],[X]]+TablaFronteras[[#This Row],[Ancho]]/2 -> 492.5709476 | G112: =TablaFronteras[[#This Row],[Y]]+TablaFronteras[[#This Row],[Alto]]/2 -> 127.5578728 | H112: =IF(AND(TablaFronteras[[#This Row],[Fila]]<>"",TablaFronteras[[#This Row],[X]]<miX,miX<TablaFronteras[[#This Row],[X]]+TablaFronteras[[#This Row],[Ancho]],TablaFronteras[[#This Row],[Y]]<miY,miY<TablaFronteras[[#This Row],[Y]]+TablaFronteras[[#This Row],[Alto]]),SQRT((TablaFronteras[[#This Row],[Centro X]]-miX)^2+(TablaFronteras[[#This Row],[Centro Y]]-miY)^2),"") ->  | I112: =IF(TablaFronteras[[#This Row],[Frontera]]="","",IFERROR(MATCH(RIGHT(TablaFronteras[[#This Row],[Frontera]],LEN(TablaFronteras[[#This Row],[Frontera]])-IFERROR(FIND(" - ",TablaFronteras[[#This Row],[Frontera]])+2,0)),TablaFronteras[Frontera],0),"")) -> 111
A113: Nepal | B113: 515.5579224 | C113: 127.4751205 | D113: 16.7243309 | E113: 9.836771965 | F113: =TablaFronteras[[#This Row],[X]]+TablaFronteras[[#This Row],[Ancho]]/2 -> 523.9200878 | G113: =TablaFronteras[[#This Row],[Y]]+TablaFronteras[[#This Row],[Alto]]/2 -> 132.3935065 | H113: =IF(AND(TablaFronteras[[#This Row],[Fila]]<>"",TablaFronteras[[#This Row],[X]]<miX,miX<TablaFronteras[[#This Row],[X]]+TablaFronteras[[#This Row],[Ancho]],TablaFronteras[[#This Row],[Y]]<miY,miY<TablaFronteras[[#This Row],[Y]]+TablaFronteras[[#This Row],[Alto]]),SQRT((TablaFronteras[[#This Row],[Centro X]]-miX)^2+(TablaFronteras[[#This Row],[Centro Y]]-miY)^2),"") ->  | I113: =IF(TablaFronteras[[#This Row],[Frontera]]="","",IFERROR(MATCH(RIGHT(TablaFronteras[[#This Row],[Frontera]],LEN(TablaFronteras[[#This Row],[Frontera]])-IFERROR(FIND(" - ",TablaFronteras[[#This Row],[Frontera]])+2,0)),TablaFronteras[Frontera],0),"")) -> 112
A114: Bután | B114: 533.8751221 | C114: 132.7244873 | D114: 6.663385868 | E114: 3.887243986 | F114: =TablaFronteras[[#This Row],[X]]+TablaFronteras[[#This Row],[Ancho]]/2 -> 537.206815 | G114: =TablaFronteras[[#This Row],[Y]]+TablaFronteras[[#This Row],[Alto]]/2 -> 134.6681093 | H114: =IF(AND(TablaFronteras[[#This Row],[Fila]]<>"",TablaFronteras[[#This Row],[X]]<miX,miX<TablaFronteras[[#This Row],[X]]+TablaFronteras[[#This Row],[Ancho]],TablaFronteras[[#This Row],[Y]]<miY,miY<TablaFronteras[[#This Row],[Y]]+TablaFronteras[[#This Row],[Alto]]),SQRT((TablaFronteras[[#This Row],[Centro X]]-miX)^2+(TablaFronteras[[#This Row],[Centro Y]]-miY)^2),"") ->  | I114: =IF(TablaFronteras[[#This Row],[Frontera]]="","",IFERROR(MATCH(RIGHT(TablaFronteras[[#This Row],[Frontera]],LEN(TablaFronteras[[#This Row],[Frontera]])-IFERROR(FIND(" - ",TablaFronteras[[#This Row],[Frontera]])+2,0)),TablaFronteras[Frontera],0),"")) -> 113
A115: Bangladés | B115: 532.9573364 | C115: 136.8066101 | D115: 9.811023712 | E115: 14.0772438 | F115: =TablaFronteras[[#This Row],[X]]+TablaFronteras[[#This Row],[Ancho]]/2 -> 537.8628483 | G115: =TablaFronteras[[#This Row],[Y]]+TablaFronteras[[#This Row],[Alto]]/2 -> 143.845232 | H115: =IF(AND(TablaFronteras[[#This Row],[Fila]]<>"",TablaFronteras[[#This Row],[X]]<miX,miX<TablaFronteras[[#This Row],[X]]+TablaFronteras[[#This Row],[Ancho]],TablaFronteras[[#This Row],[Y]]<miY,miY<TablaFronteras[[#This Row],[Y]]+TablaFronteras[[#This Row],[Alto]]),SQRT((TablaFronteras[[#This Row],[Centro X]]-miX)^2+(TablaFronteras[[#This Row],[Centro Y]]-miY)^2),"") ->  | I115: =IF(TablaFronteras[[#This Row],[Frontera]]="","",IFERROR(MATCH(RIGHT(TablaFronteras[[#This Row],[Frontera]],LEN(TablaFronteras[[#This Row],[Frontera]])-IFERROR(FIND(" - ",TablaFronteras[[#This Row],[Frontera]])+2,0)),TablaFronteras[Frontera],0),"")) -> 114
A116: Birmania | B116: 542.407959 | C116: 132.2193756 | D116: 17.99110222 | E116: 45.03944778 | F116: =TablaFronteras[[#This Row],[X]]+TablaFronteras[[#This Row],[Ancho]]/2 -> 551.4035101 | G116: =TablaFronteras[[#This Row],[Y]]+TablaFronteras[[#This Row],[Alto]]/2 -> 154.7390995 | H116: =IF(AND(TablaFronteras[[#This Row],[Fila]]<>"",TablaFronteras[[#This Row],[X]]<miX,miX<TablaFronteras[[#This Row],[X]]+TablaFronteras[[#This Row],[Ancho]],TablaFronteras[[#This Row],[Y]]<miY,miY<TablaFronteras[[#This Row],[Y]]+TablaFronteras[[#This Row],[Alto]]),SQRT((TablaFronteras[[#This Row],[Centro X]]-miX)^2+(TablaFronteras[[#This Row],[Centro Y]]-miY)^2),"") ->  | I116: =IF(TablaFronteras[[#This Row],[Frontera]]="","",IFERROR(MATCH(RIGHT(TablaFronteras[[#This Row],[Frontera]],LEN(TablaFronteras[[#This Row],[Frontera]])-IFERROR(FIND(" - ",TablaFronteras[[#This Row],[Frontera]])+2,0)),TablaFronteras[Frontera],0),"")) -> 115
A117: Vietnam | B117: 562.5554199 | C117: 144.5415802 | D117: 17.50976372 | E117: 35.96645737 | F117: =TablaFronteras[[#This Row],[X]]+TablaFronteras[[#This Row],[Ancho]]/2 -> 571.3103018 | G117: =TablaFronteras[[#This Row],[Y]]+TablaFronteras[[#This Row],[Alto]]/2 -> 162.5248089 | H117: =IF(AND(TablaFronteras[[#This Row],[Fila]]<>"",TablaFronteras[[#This Row],[X]]<miX,miX<TablaFronteras[[#This Row],[X]]+TablaFronteras[[#This Row],[Ancho]],TablaFronteras[[#This Row],[Y]]<miY,miY<TablaFronteras[[#This Row],[Y]]+TablaFronteras[[#This Row],[Alto]]),SQRT((TablaFronteras[[#This Row],[Centro X]]-miX)^2+(TablaFronteras[[#This Row],[Centro Y]]-miY)^2),"") ->  | I117: =IF(TablaFronteras[[#This Row],[Frontera]]="","",IFERROR(MATCH(RIGHT(TablaFronteras[[#This Row],[Frontera]],LEN(TablaFronteras[[#This Row],[Frontera]])-IFERROR(FIND(" - ",TablaFronteras[[#This Row],[Frontera]])+2,0)),TablaFronteras[Frontera],0),"")) -> 116
A118: Tailandia | B118: 553.6048584 | C118: 151.7737732 | D118: 19.56118202 | E118: 35.69275665 | F118: =TablaFronteras[[#This Row],[X]]+TablaFronteras[[#This Row],[Ancho]]/2 -> 563.3854494 | G118: =TablaFronteras[[#This Row],[Y]]+TablaFronteras[[#This Row],[Alto]]/2 -> 169.6201515 | H118: =IF(AND(TablaFronteras[[#This Row],[Fila]]<>"",TablaFronteras[[#This Row],[X]]<miX,miX<TablaFronteras[[#This Row],[X]]+TablaFronteras[[#This Row],[Ancho]],TablaFronteras[[#This Row],[Y]]<miY,miY<TablaFronteras[[#This Row],[Y]]+TablaFronteras[[#This Row],[Alto]]),SQRT((TablaFronteras[[#This Row],[Centro X]]-miX)^2+(TablaFronteras[[#This Row],[Centro Y]]-miY)^2),"") ->  | I118: =IF(TablaFronteras[[#This Row],[Frontera]]="","",IFERROR(MATCH(RIGHT(TablaFronteras[[#This Row],[Frontera]],LEN(TablaFronteras[[#This Row],[Frontera]])-IFERROR(FIND(" - ",TablaFronteras[[#This Row],[Frontera]])+2,0)),TablaFronteras[Frontera],0),"")) -> 117
A119: Laos | B119: 558.9907227 | C119: 146.8718872 | D119: 16.73259926 | E119: 20.62472534 | F119: =TablaFronteras[[#This Row],[X]]+TablaFronteras[[#This Row],[Ancho]]/2 -> 567.3570223 | G119: =TablaFronteras[[#This Row],[Y]]+TablaFronteras[[#This Row],[Alto]]/2 -> 157.1842499 | H119: =IF(AND(TablaFronteras[[#This Row],[Fila]]<>"",TablaFronteras[[#This Row],[X]]<miX,miX<TablaFronteras[[#This Row],[X]]+TablaFronteras[[#This Row],[Ancho]],TablaFronteras[[#This Row],[Y]]<miY,miY<TablaFronteras[[#This Row],[Y]]+TablaFronteras[[#This Row],[Alto]]),SQRT((TablaFronteras[[#This Row],[Centro X]]-miX)^2+(TablaFronteras[[#This Row],[Centro Y]]-miY)^2),"") ->  | I119: =IF(TablaFronteras[[#This Row],[Frontera]]="","",IFERROR(MATCH(RIGHT(TablaFronteras[[#This Row],[Frontera]],LEN(TablaFronteras[[#This Row],[Frontera]])-IFERROR(FIND(" - ",TablaFronteras[[#This Row],[Frontera]])+2,0)),TablaFronteras[Frontera],0),"")) -> 118
A120: Filipinas | B120: 598.1419067 | C120: 151.6442566 | D120: 18.9344101 | E120: 37.52244186 | F120: =TablaFronteras[[#This Row],[X]]+TablaFronteras[[#This Row],[Ancho]]/2 -> 607.6091118 | G120: =TablaFronteras[[#This Row],[Y]]+TablaFronteras[[#This Row],[Alto]]/2 -> 170.4054775 | H120: =IF(AND(TablaFronteras[[#This Row],[Fila]]<>"",TablaFronteras[[#This Row],[X]]<miX,miX<TablaFronteras[[#This Row],[X]]+TablaFronteras[[#This Row],[Ancho]],TablaFronteras[[#This Row],[Y]]<miY,miY<TablaFronteras[[#This Row],[Y]]+TablaFronteras[[#This Row],[Alto]]),SQRT((TablaFronteras[[#This Row],[Centro X]]-miX)^2+(TablaFronteras[[#This Row],[Centro Y]]-miY)^2),"") ->  | I120: =IF(TablaFronteras[[#This Row],[Frontera]]="","",IFERROR(MATCH(RIGHT(TablaFronteras[[#This Row],[Frontera]],LEN(TablaFronteras[[#This Row],[Frontera]])-IFERROR(FIND(" - ",TablaFronteras[[#This Row],[Frontera]])+2,0)),TablaFronteras[Frontera],0),"")) -> 119
A121: Brunéi | B121: 590.942627 | C121: 188.9170074 | D121: 3.331496 | E121: 3.242204666 | F121: =TablaFronteras[[#This Row],[X]]+TablaFronteras[[#This Row],[Ancho]]/2 -> 592.608375 | G121: =TablaFronteras[[#This Row],[Y]]+TablaFronteras[[#This Row],[Alto]]/2 -> 190.5381098 | H121: =IF(AND(TablaFronteras[[#This Row],[Fila]]<>"",TablaFronteras[[#This Row],[X]]<miX,miX<TablaFronteras[[#This Row],[X]]+TablaFronteras[[#This Row],[Ancho]],TablaFronteras[[#This Row],[Y]]<miY,miY<TablaFronteras[[#This Row],[Y]]+TablaFronteras[[#This Row],[Alto]]),SQRT((TablaFronteras[[#This Row],[Centro X]]-miX)^2+(TablaFronteras[[#This Row],[Centro Y]]-miY)^2),"") ->  | I121: =IF(TablaFronteras[[#This Row],[Frontera]]="","",IFERROR(MATCH(RIGHT(TablaFronteras[[#This Row],[Frontera]],LEN(TablaFronteras[[#This Row],[Frontera]])-IFERROR(FIND(" - ",TablaFronteras[[#This Row],[Frontera]])+2,0)),TablaFronteras[Frontera],0),"")) -> 120
A122: Singapur | B122: 569.0574951 | C122: 196.3541718 | D122: 4.348897457 | E122: 3.331496 | F122: =TablaFronteras[[#This Row],[X]]+TablaFronteras[[#This Row],[Ancho]]/2 -> 571.2319438 | G122: =TablaFronteras[[#This Row],[Y]]+TablaFronteras[[#This Row],[Alto]]/2 -> 198.0199198 | H122: =IF(AND(TablaFronteras[[#This Row],[Fila]]<>"",TablaFronteras[[#This Row],[X]]<miX,miX<TablaFronteras[[#This Row],[X]]+TablaFronteras[[#This Row],[Ancho]],TablaFronteras[[#This Row],[Y]]<miY,miY<TablaFronteras[[#This Row],[Y]]+TablaFronteras[[#This Row],[Alto]]),SQRT((TablaFronteras[[#This Row],[Centro X]]-miX)^2+(TablaFronteras[[#This Row],[Centro Y]]-miY)^2),"") ->  | I122: =IF(TablaFronteras[[#This Row],[Frontera]]="","",IFERROR(MATCH(RIGHT(TablaFronteras[[#This Row],[Frontera]],LEN(TablaFronteras[[#This Row],[Frontera]])-IFERROR(FIND(" - ",TablaFronteras[[#This Row],[Frontera]])+2,0)),TablaFronteras[Frontera],0),"")) -> 121
A123: Papúa Nueva Guinea | B123: 646.7479248 | C123: 204.7298431 | D123: 31.08062935 | E123: 24.69818878 | F123: =TablaFronteras[[#This Row],[X]]+TablaFronteras[[#This Row],[Ancho]]/2 -> 662.2882395 | G123: =TablaFronteras[[#This Row],[Y]]+TablaFronteras[[#This Row],[Alto]]/2 -> 217.0789375 | H123: =IF(AND(TablaFronteras[[#This Row],[Fila]]<>"",TablaFronteras[[#This Row],[X]]<miX,miX<TablaFronteras[[#This Row],[X]]+TablaFronteras[[#This Row],[Ancho]],TablaFronteras[[#This Row],[Y]]<miY,miY<TablaFronteras[[#This Row],[Y]]+TablaFronteras[[#This Row],[Alto]]),SQRT((TablaFronteras[[#This Row],[Centro X]]-miX)^2+(TablaFronteras[[#This Row],[Centro Y]]-miY)^2),"") ->  | I123: =IF(TablaFronteras[[#This Row],[Frontera]]="","",IFERROR(MATCH(RIGHT(TablaFronteras[[#This Row],[Frontera]],LEN(TablaFronteras[[#This Row],[Frontera]])-IFERROR(FIND(" - ",TablaFronteras[[#This Row],[Frontera]])+2,0)),TablaFronteras[Frontera],0),"")) -> 122
A124: Islas Salomón | B124: 678.552124 | C124: 217.20961 | D124: 20.72763824 | E124: 12.67645645 | F124: =TablaFronteras[[#This Row],[X]]+TablaFronteras[[#This Row],[Ancho]]/2 -> 688.9159431 | G124: =TablaFronteras[[#This Row],[Y]]+TablaFronteras[[#This Row],[Alto]]/2 -> 223.5478382 | H124: =IF(AND(TablaFronteras[[#This Row],[Fila]]<>"",TablaFronteras[[#This Row],[X]]<miX,miX<TablaFronteras[[#This Row],[X]]+TablaFronteras[[#This Row],[Ancho]],TablaFronteras[[#This Row],[Y]]<miY,miY<TablaFronteras[[#This Row],[Y]]+TablaFronteras[[#This Row],[Alto]]),SQRT((TablaFronteras[[#This Row],[Centro X]]-miX)^2+(TablaFronteras[[#This Row],[Centro Y]]-miY)^2),"") ->  | I124: =IF(TablaFronteras[[#This Row],[Frontera]]="","",IFERROR(MATCH(RIGHT(TablaFronteras[[#This Row],[Frontera]],LEN(TablaFronteras[[#This Row],[Frontera]])-IFERROR(FIND(" - ",TablaFronteras[[#This Row],[Frontera]])+2,0)),TablaFronteras[Frontera],0),"")) -> 123
A125: Nueva Zelanda | B125: 654.6282959 | C125: 284.4361267 | D125: 46.60055161 | E125: 39.1915741 | F125: =TablaFronteras[[#This Row],[X]]+TablaFronteras[[#This Row],[Ancho]]/2 -> 677.9285717 | G125: =TablaFronteras[[#This Row],[Y]]+TablaFronteras[[#This Row],[Alto]]/2 -> 304.0319138 | H125: =IF(AND(TablaFronteras[[#This Row],[Fila]]<>"",TablaFronteras[[#This Row],[X]]<miX,miX<TablaFronteras[[#This Row],[X]]+TablaFronteras[[#This Row],[Ancho]],TablaFronteras[[#This Row],[Y]]<miY,miY<TablaFronteras[[#This Row],[Y]]+TablaFronteras[[#This Row],[Alto]]),SQRT((TablaFronteras[[#This Row],[Centro X]]-miX)^2+(TablaFronteras[[#This Row],[Centro Y]]-miY)^2),"") ->  | I125: =IF(TablaFronteras[[#This Row],[Frontera]]="","",IFERROR(MATCH(RIGHT(TablaFronteras[[#This Row],[Frontera]],LEN(TablaFronteras[[#This Row],[Frontera]])-IFERROR(FIND(" - ",TablaFronteras[[#This Row],[Frontera]])+2,0)),TablaFronteras[Frontera],0),"")) -> 124
A126: Sri Lanka | B126: 519.7180176 | C126: 177.5017395 | D126: 4.343700886 | E126: 9.369448662 | F126: =TablaFronteras[[#This Row],[X]]+TablaFronteras[[#This Row],[Ancho]]/2 -> 521.889868 | G126: =TablaFronteras[[#This Row],[Y]]+TablaFronteras[[#This Row],[Alto]]/2 -> 182.1864638 | H126: =IF(AND(TablaFronteras[[#This Row],[Fila]]<>"",TablaFronteras[[#This Row],[X]]<miX,miX<TablaFronteras[[#This Row],[X]]+TablaFronteras[[#This Row],[Ancho]],TablaFronteras[[#This Row],[Y]]<miY,miY<TablaFronteras[[#This Row],[Y]]+TablaFronteras[[#This Row],[Alto]]),SQRT((TablaFronteras[[#This Row],[Centro X]]-miX)^2+(TablaFronteras[[#This Row],[Centro Y]]-miY)^2),"") ->  | I126: =IF(TablaFronteras[[#This Row],[Frontera]]="","",IFERROR(MATCH(RIGHT(TablaFronteras[[#This Row],[Frontera]],LEN(TablaFronteras[[#This Row],[Frontera]])-IFERROR(FIND(" - ",TablaFronteras[[#This Row],[Frontera]])+2,0)),TablaFronteras[Frontera],0),"")) -> 125
A127: Yemen | B127: 442.3199158 | C127: 154.9977112 | D127: 24.75212669 | E127: 16.78669357 | F127: =TablaFronteras[[#This Row],[X]]+TablaFronteras[[#This Row],[Ancho]]/2 -> 454.6959791 | G127: =TablaFronteras[[#This Row],[Y]]+TablaFronteras[[#This Row],[Alto]]/2 -> 163.391058 | H127: =IF(AND(TablaFronteras[[#This Row],[Fila]]<>"",TablaFronteras[[#This Row],[X]]<miX,miX<TablaFronteras[[#This Row],[X]]+TablaFronteras[[#This Row],[Ancho]],TablaFronteras[[#This Row],[Y]]<miY,miY<TablaFronteras[[#This Row],[Y]]+TablaFronteras[[#This Row],[Alto]]),SQRT((TablaFronteras[[#This Row],[Centro X]]-miX)^2+(TablaFronteras[[#This Row],[Centro Y]]-miY)^2),"") ->  | I127: =IF(TablaFronteras[[#This Row],[Frontera]]="","",IFERROR(MATCH(RIGHT(TablaFronteras[[#This Row],[Frontera]],LEN(TablaFronteras[[#This Row],[Frontera]])-IFERROR(FIND(" - ",TablaFronteras[[#This Row],[Frontera]])+2,0)),TablaFronteras[Frontera],0),"")) -> 126
A128: Omán | B128: 461.0392761 | C128: 137.3657532 | D128: 14.97637749 | E128: 23.59401512 | F128: =TablaFronteras[[#This Row],[X]]+TablaFronteras[[#This Row],[Ancho]]/2 -> 468.5274649 | G128: =TablaFronteras[[#This Row],[Y]]+TablaFronteras[[#This Row],[Alto]]/2 -> 149.1627607 | H128: =IF(AND(TablaFronteras[[#This Row],[Fila]]<>"",TablaFronteras[[#This Row],[X]]<miX,miX<TablaFronteras[[#This Row],[X]]+TablaFronteras[[#This Row],[Ancho]],TablaFronteras[[#This Row],[Y]]<miY,miY<TablaFronteras[[#This Row],[Y]]+TablaFronteras[[#This Row],[Alto]]),SQRT((TablaFronteras[[#This Row],[Centro X]]-miX)^2+(TablaFronteras[[#This Row],[Centro Y]]-miY)^2),"") ->  | I128: =IF(TablaFronteras[[#This Row],[Frontera]]="","",IFERROR(MATCH(RIGHT(TablaFronteras[[#This Row],[Frontera]],LEN(TablaFronteras[[#This Row],[Frontera]])-IFERROR(FIND(" - ",TablaFronteras[[#This Row],[Frontera]])+2,0)),TablaFronteras[Frontera],0),"")) -> 127
A129: Emiratos Árabes Unidos | B129: 459.2846375 | C129: 138.0934601 | D129: 9.860078812 | E129: 8.446771622 | F129: =TablaFronteras[[#This Row],[X]]+TablaFronteras[[#This Row],[Ancho]]/2 -> 464.2146769 | G129: =TablaFronteras[[#This Row],[Y]]+TablaFronteras[[#This Row],[Alto]]/2 -> 142.3168459 | H129: =IF(AND(TablaFronteras[[#This Row],[Fila]]<>"",TablaFronteras[[#This Row],[X]]<miX,miX<TablaFronteras[[#This Row],[X]]+TablaFronteras[[#This Row],[Ancho]],TablaFronteras[[#This Row],[Y]]<miY,miY<TablaFronteras[[#This Row],[Y]]+TablaFronteras[[#This Row],[Alto]]),SQRT((TablaFronteras[[#This Row],[Centro X]]-miX)^2+(TablaFronteras[[#This Row],[Centro Y]]-miY)^2),"") ->  | I129: =IF(TablaFronteras[[#This Row],[Frontera]]="","",IFERROR(MATCH(RIGHT(TablaFronteras[[#This Row],[Frontera]],LEN(TablaFronteras[[#This Row],[Frontera]])-IFERROR(FIND(" - ",TablaFronteras[[#This Row],[Frontera]])+2,0)),TablaFronteras[Frontera],0),"")) -> 128
A130: Arabia Saudita | B130: 424.3063049 | C130: 123.3905487 | D130: 43.92031479 | E130: 38.34378052 | F130: =TablaFronteras[[#This Row],[X]]+TablaFronteras[[#This Row],[Ancho]]/2 -> 446.2664623 | G130: =TablaFronteras[[#This Row],[Y]]+TablaFronteras[[#This Row],[Alto]]/2 -> 142.562439 | H130: =IF(AND(TablaFronteras[[#This Row],[Fila]]<>"",TablaFronteras[[#This Row],[X]]<miX,miX<TablaFronteras[[#This Row],[X]]+TablaFronteras[[#This Row],[Ancho]],TablaFronteras[[#This Row],[Y]]<miY,miY<TablaFronteras[[#This Row],[Y]]+TablaFronteras[[#This Row],[Alto]]),SQRT((TablaFronteras[[#This Row],[Centro X]]-miX)^2+(TablaFronteras[[#This Row],[Centro Y]]-miY)^2),"") ->  | I130: =IF(TablaFronteras[[#This Row],[Frontera]]="","",IFERROR(MATCH(RIGHT(TablaFronteras[[#This Row],[Frontera]],LEN(TablaFronteras[[#This Row],[Frontera]])-IFERROR(FIND(" - ",TablaFronteras[[#This Row],[Frontera]])+2,0)),TablaFronteras[Frontera],0),"")) -> 129
A131: Baréin | B131: 454.3263855 | C131: 135.7072449 | D131: 4.626692772 | E131: 3.331496 | F131: =TablaFronteras[[#This Row],[X]]+TablaFronteras[[#This Row],[Ancho]]/2 -> 456.6397319 | G131: =TablaFronteras[[#This Row],[Y]]+TablaFronteras[[#This Row],[Alto]]/2 -> 137.3729929 | H131: =IF(AND(TablaFronteras[[#This Row],[Fila]]<>"",TablaFronteras[[#This Row],[X]]<miX,miX<TablaFronteras[[#This Row],[X]]+TablaFronteras[[#This Row],[Ancho]],TablaFronteras[[#This Row],[Y]]<miY,miY<TablaFronteras[[#This Row],[Y]]+TablaFronteras[[#This Row],[Alto]]),SQRT((TablaFronteras[[#This Row],[Centro X]]-miX)^2+(TablaFronteras[[#This Row],[Centro Y]]-miY)^2),"") ->  | I131: =IF(TablaFronteras[[#This Row],[Frontera]]="","",IFERROR(MATCH(RIGHT(TablaFronteras[[#This Row],[Frontera]],LEN(TablaFronteras[[#This Row],[Frontera]])-IFERROR(FIND(" - ",TablaFronteras[[#This Row],[Frontera]])+2,0)),TablaFronteras[Frontera],0),"")) -> 130
A132: Catar | B132: 456.2419739 | C132: 137.988266 | D132: 3.606220484 | E132: 3.975511789 | F132: =TablaFronteras[[#This Row],[X]]+TablaFronteras[[#This Row],[Ancho]]/2 -> 458.0450841 | G132: =TablaFronteras[[#This Row],[Y]]+TablaFronteras[[#This Row],[Alto]]/2 -> 139.9760219 | H132: =IF(AND(TablaFronteras[[#This Row],[Fila]]<>"",TablaFronteras[[#This Row],[X]]<miX,miX<TablaFronteras[[#This Row],[X]]+TablaFronteras[[#This Row],[Ancho]],TablaFronteras[[#This Row],[Y]]<miY,miY<TablaFronteras[[#This Row],[Y]]+TablaFronteras[[#This Row],[Alto]]),SQRT((TablaFronteras[[#This Row],[Centro X]]-miX)^2+(TablaFronteras[[#This Row],[Centro Y]]-miY)^2),"") ->  | I132: =IF(TablaFronteras[[#This Row],[Frontera]]="","",IFERROR(MATCH(RIGHT(TablaFronteras[[#This Row],[Frontera]],LEN(TablaFronteras[[#This Row],[Frontera]])-IFERROR(FIND(" - ",TablaFronteras[[#This Row],[Frontera]])+2,0)),TablaFronteras[Frontera],0),"")) -> 131
A133: Irak | B133: 431.5528259 | C133: 110.698822 | D133: 20.06377983 | E133: 20.28543282 | F133: =TablaFronteras[[#This Row],[X]]+TablaFronteras[[#This Row],[Ancho]]/2 -> 441.5847158 | G133: =TablaFronteras[[#This Row],[Y]]+TablaFronteras[[#This Row],[Alto]]/2 -> 120.8415384 | H133: =IF(AND(TablaFronteras[[#This Row],[Fila]]<>"",TablaFronteras[[#This Row],[X]]<miX,miX<TablaFronteras[[#This Row],[X]]+TablaFronteras[[#This Row],[Ancho]],TablaFronteras[[#This Row],[Y]]<miY,miY<TablaFronteras[[#This Row],[Y]]+TablaFronteras[[#This Row],[Alto]]),SQRT((TablaFronteras[[#This Row],[Centro X]]-miX)^2+(TablaFronteras[[#This Row],[Centro Y]]-miY)^2),"") ->  | I133: =IF(TablaFronteras[[#This Row],[Frontera]]="","",IFERROR(MATCH(RIGHT(TablaFronteras[[#This Row],[Frontera]],LEN(TablaFronteras[[#This Row],[Frontera]])-IFERROR(FIND(" - ",TablaFronteras[[#This Row],[Frontera]])+2,0)),TablaFronteras[Frontera],0),"")) -> 132
A134: Jordania | B134: 424.7859192 | C134: 120.4104691 | D134: 9.248425484 | E134: 10.26220512 | F134: =TablaFronteras[[#This Row],[X]]+TablaFronteras[[#This Row],[Ancho]]/2 -> 429.4101319 | G134: =TablaFronteras[[#This Row],[Y]]+TablaFronteras[[#This Row],[Alto]]/2 -> 125.5415716 | H134: =IF(AND(TablaFronteras[[#This Row],[Fila]]<>"",TablaFronteras[[#This Row],[X]]<miX,miX<TablaFronteras[[#This Row],[X]]+TablaFronteras[[#This Row],[Ancho]],TablaFronteras[[#This Row],[Y]]<miY,miY<TablaFronteras[[#This Row],[Y]]+TablaFronteras[[#This Row],[Alto]]),SQRT((TablaFronteras[[#This Row],[Centro X]]-miX)^2+(TablaFronteras[[#This Row],[Centro Y]]-miY)^2),"") ->  | I134: =IF(TablaFronteras[[#This Row],[Frontera]]="","",IFERROR(MATCH(RIGHT(TablaFronteras[[#This Row],[Frontera]],LEN(TablaFronteras[[#This Row],[Frontera]])-IFERROR(FIND(" - ",TablaFronteras[[#This Row],[Frontera]])+2,0)),TablaFronteras[Frontera],0),"")) -> 133
A135: Siria | B135: 425.1255798 | C135: 110.8733063 | D135: 12.8902359 | E135: 12.04519653 | F135: =TablaFronteras[[#This Row],[X]]+TablaFronteras[[#This Row],[Ancho]]/2 -> 431.5706978 | G135: =TablaFronteras[[#This Row],[Y]]+TablaFronteras[[#This Row],[Alto]]/2 -> 116.8959045 | H135: =IF(AND(TablaFronteras[[#This Row],[Fila]]<>"",TablaFronteras[[#This Row],[X]]<miX,miX<TablaFronteras[[#This Row],[X]]+TablaFronteras[[#This Row],[Ancho]],TablaFronteras[[#This Row],[Y]]<miY,miY<TablaFronteras[[#This Row],[Y]]+TablaFronteras[[#This Row],[Alto]]),SQRT((TablaFronteras[[#This Row],[Centro X]]-miX)^2+(TablaFronteras[[#This Row],[Centro Y]]-miY)^2),"") ->  | I135: =IF(TablaFronteras[[#This Row],[Frontera]]="","",IFERROR(MATCH(RIGHT(TablaFronteras[[#This Row],[Frontera]],LEN(TablaFronteras[[#This Row],[Frontera]])-IFERROR(FIND(" - ",TablaFronteras[[#This Row],[Frontera]])+2,0)),TablaFronteras[Frontera],0),"")) -> 134
A136: Israel | B136: 422.0990601 | C136: 120.6111832 | D136: 3.373464584 | E136: 9.135827065 | F136: =TablaFronteras[[#This Row],[X]]+TablaFronteras[[#This Row],[Ancho]]/2 -> 423.7857924 | G136: =TablaFronteras[[#This Row],[Y]]+TablaFronteras[[#This Row],[Alto]]/2 -> 125.1790967 | H136: =IF(AND(TablaFronteras[[#This Row],[Fila]]<>"",TablaFronteras[[#This Row],[X]]<miX,miX<TablaFronteras[[#This Row],[X]]+TablaFronteras[[#This Row],[Ancho]],TablaFronteras[[#This Row],[Y]]<miY,miY<TablaFronteras[[#This Row],[Y]]+TablaFronteras[[#This Row],[Alto]]),SQRT((TablaFronteras[[#This Row],[Centro X]]-miX)^2+(TablaFronteras[[#This Row],[Centro Y]]-miY)^2),"") ->  | I136: =IF(TablaFronteras[[#This Row],[Frontera]]="","",IFERROR(MATCH(RIGHT(TablaFronteras[[#This Row],[Frontera]],LEN(TablaFronteras[[#This Row],[Frontera]])-IFERROR(FIND(" - ",TablaFronteras[[#This Row],[Frontera]])+2,0)),TablaFronteras[Frontera],0),"")) -> 135
A137: Camboya | B137: 565.6732178 | C137: 165.6161346 | D137: 10.55937004 | E137: 11.40433025 | F137: =TablaFronteras[[#This Row],[X]]+TablaFronteras[[#This Row],[Ancho]]/2 -> 570.9529028 | G137: =TablaFronteras[[#This Row],[Y]]+TablaFronteras[[#This Row],[Alto]]/2 -> 171.3182998 | H137: =IF(AND(TablaFronteras[[#This Row],[Fila]]<>"",TablaFronteras[[#This Row],[X]]<miX,miX<TablaFronteras[[#This Row],[X]]+TablaFronteras[[#This Row],[Ancho]],TablaFronteras[[#This Row],[Y]]<miY,miY<TablaFronteras[[#This Row],[Y]]+TablaFronteras[[#This Row],[Alto]]),SQRT((TablaFronteras[[#This Row],[Centro X]]-miX)^2+(TablaFronteras[[#This Row],[Centro Y]]-miY)^2),"") ->  | I137: =IF(TablaFronteras[[#This Row],[Frontera]]="","",IFERROR(MATCH(RIGHT(TablaFronteras[[#This Row],[Frontera]],LEN(TablaFronteras[[#This Row],[Frontera]])-IFERROR(FIND(" - ",TablaFronteras[[#This Row],[Frontera]])+2,0)),TablaFronteras[Frontera],0),"")) -> 136
A138: México | B138: 118.1587372 | C138: 121.9957504 | D138: 59.10401535 | E138: 44.01299286 | F138: =TablaFronteras[[#This Row],[X]]+TablaFronteras[[#This Row],[Ancho]]/2 -> 147.7107449 | G138: =TablaFronteras[[#This Row],[Y]]+TablaFronteras[[#This Row],[Alto]]/2 -> 144.0022469 | H138: =IF(AND(TablaFronteras[[#This Row],[Fila]]<>"",TablaFronteras[[#This Row],[X]]<miX,miX<TablaFronteras[[#This Row],[X]]+TablaFronteras[[#This Row],[Ancho]],TablaFronteras[[#This Row],[Y]]<miY,miY<TablaFronteras[[#This Row],[Y]]+TablaFronteras[[#This Row],[Alto]]),SQRT((TablaFronteras[[#This Row],[Centro X]]-miX)^2+(TablaFronteras[[#This Row],[Centro Y]]-miY)^2),"") ->  | I138: =IF(TablaFronteras[[#This Row],[Frontera]]="","",IFERROR(MATCH(RIGHT(TablaFronteras[[#This Row],[Frontera]],LEN(TablaFronteras[[#This Row],[Frontera]])-IFERROR(FIND(" - ",TablaFronteras[[#This Row],[Frontera]])+2,0)),TablaFronteras[Frontera],0),"")) -> 137
A139: Cuba | B139: 181.3897705 | C139: 145.1970062 | D139: 21.37535477 | E139: 7.989055157 | F139: =TablaFronteras[[#This Row],[X]]+TablaFronteras[[#This Row],[Ancho]]/2 -> 192.0774479 | G139: =TablaFronteras[[#This Row],[Y]]+TablaFronteras[[#This Row],[Alto]]/2 -> 149.1915338 | H139: =IF(AND(TablaFronteras[[#This Row],[Fila]]<>"",TablaFronteras[[#This Row],[X]]<miX,miX<TablaFronteras[[#This Row],[X]]+TablaFronteras[[#This Row],[Ancho]],TablaFronteras[[#This Row],[Y]]<miY,miY<TablaFronteras[[#This Row],[Y]]+TablaFronteras[[#This Row],[Alto]]),SQRT((TablaFronteras[[#This Row],[Centro X]]-miX)^2+(TablaFronteras[[#This Row],[Centro Y]]-miY)^2),"") ->  | I139: =IF(TablaFronteras[[#This Row],[Frontera]]="","",IFERROR(MATCH(RIGHT(TablaFronteras[[#This Row],[Frontera]],LEN(TablaFronteras[[#This Row],[Frontera]])-IFERROR(FIND(" - ",TablaFronteras[[#This Row],[Frontera]])+2,0)),TablaFronteras[Frontera],0),"")) -> 138
A140: Jamaica | B140: 194.0974731 | C140: 155.5477142 | D140: 2.957559109 | E140: 3.331496 | F140: =TablaFronteras[[#This Row],[X]]+TablaFronteras[[#This Row],[Ancho]]/2 -> 195.5762527 | G140: =TablaFronteras[[#This Row],[Y]]+TablaFronteras[[#This Row],[Alto]]/2 -> 157.2134622 | H140: =IF(AND(TablaFronteras[[#This Row],[Fila]]<>"",TablaFronteras[[#This Row],[X]]<miX,miX<TablaFronteras[[#This Row],[X]]+TablaFronteras[[#This Row],[Ancho]],TablaFronteras[[#This Row],[Y]]<miY,miY<TablaFronteras[[#This Row],[Y]]+TablaFronteras[[#This Row],[Alto]]),SQRT((TablaFronteras[[#This Row],[Centro X]]-miX)^2+(TablaFronteras[[#This Row],[Centro Y]]-miY)^2),"") ->  | I140: =IF(TablaFronteras[[#This Row],[Frontera]]="","",IFERROR(MATCH(RIGHT(TablaFronteras[[#This Row],[Frontera]],LEN(TablaFronteras[[#This Row],[Frontera]])-IFERROR(FIND(" - ",TablaFronteras[[#This Row],[Frontera]])+2,0)),TablaFronteras[Frontera],0),"")) -> 139
A141: República Dominicana | B141: 206.7713318 | C141: 153.0177917 | D141: 7.892598629 | E141: 5.529291153 | F141: =TablaFronteras[[#This Row],[X]]+TablaFronteras[[#This Row],[Ancho]]/2 -> 210.7176311 | G141: =TablaFronteras[[#This Row],[Y]]+TablaFronteras[[#This Row],[Alto]]/2 -> 155.7824373 | H141: =IF(AND(TablaFronteras[[#This Row],[Fila]]<>"",TablaFronteras[[#This Row],[X]]<miX,miX<TablaFronteras[[#This Row],[X]]+TablaFronteras[[#This Row],[Ancho]],TablaFronteras[[#This Row],[Y]]<miY,miY<TablaFronteras[[#This Row],[Y]]+TablaFronteras[[#This Row],[Alto]]),SQRT((TablaFronteras[[#This Row],[Centro X]]-miX)^2+(TablaFronteras[[#This Row],[Centro Y]]-miY)^2),"") ->  | I141: =IF(TablaFronteras[[#This Row],[Frontera]]="","",IFERROR(MATCH(RIGHT(TablaFronteras[[#This Row],[Frontera]],LEN(TablaFronteras[[#This Row],[Frontera]])-IFERROR(FIND(" - ",TablaFronteras[[#This Row],[Frontera]])+2,0)),TablaFronteras[Frontera],0),"")) -> 140
A142: Belice | B142: 170.3009491 | C142: 156.7932281 | D142: 2.936614275 | E142: 6.370393753 | F142: =TablaFronteras[[#This Row],[X]]+TablaFronteras[[#This Row],[Ancho]]/2 -> 171.7692562 | G142: =TablaFronteras[[#This Row],[Y]]+TablaFronteras[[#This Row],[Alto]]/2 -> 159.978425 | H142: =IF(AND(TablaFronteras[[#This Row],[Fila]]<>"",TablaFronteras[[#This Row],[X]]<miX,miX<TablaFronteras[[#This Row],[X]]+TablaFronteras[[#This Row],[Ancho]],TablaFronteras[[#This Row],[Y]]<miY,miY<TablaFronteras[[#This Row],[Y]]+TablaFronteras[[#This Row],[Alto]]),SQRT((TablaFronteras[[#This Row],[Centro X]]-miX)^2+(TablaFronteras[[#This Row],[Centro Y]]-miY)^2),"") ->  | I142: =IF(TablaFronteras[[#This Row],[Frontera]]="","",IFERROR(MATCH(RIGHT(TablaFronteras[[#This Row],[Frontera]],LEN(TablaFronteras[[#This Row],[Frontera]])-IFERROR(FIND(" - ",TablaFronteras[[#This Row],[Frontera]])+2,0)),TablaFronteras[Frontera],0),"")) -> 141
A143: Guatemala | B143: 164.433548 | C143: 157.9552765 | D143: 7.296062946 | E143: 9.984251976 | F143: =TablaFronteras[[#This Row],[X]]+TablaFronteras[[#This Row],[Ancho]]/2 -> 168.0815794 | G143: =TablaFronteras[[#This Row],[Y]]+TablaFronteras[[#This Row],[Alto]]/2 -> 162.9474025 | H143: =IF(AND(TablaFronteras[[#This Row],[Fila]]<>"",TablaFronteras[[#This Row],[X]]<miX,miX<TablaFronteras[[#This Row],[X]]+TablaFronteras[[#This Row],[Ancho]],TablaFronteras[[#This Row],[Y]]<miY,miY<TablaFronteras[[#This Row],[Y]]+TablaFronteras[[#This Row],[Alto]]),SQRT((TablaFronteras[[#This Row],[Centro X]]-miX)^2+(TablaFronteras[[#This Row],[Centro Y]]-miY)^2),"") ->  | I143: =IF(TablaFronteras[[#This Row],[Frontera]]="","",IFERROR(MATCH(RIGHT(TablaFronteras[[#This Row],[Frontera]],LEN(TablaFronteras[[#This Row],[Frontera]])-IFERROR(FIND(" - ",TablaFronteras[[#This Row],[Frontera]])+2,0)),TablaFronteras[Frontera],0),"")) -> 142
A144: El Salvador | B144: 168.3566132 | C144: 166.3142548 | D144: 4.51905489 | E144: 3.051259756 | F144: =TablaFronteras[[#This Row],[X]]+TablaFronteras[[#This Row],[Ancho]]/2 -> 170.6161406 | G144: =TablaFronteras[[#This Row],[Y]]+TablaFronteras[[#This Row],[Alto]]/2 -> 167.8398846 | H144: =IF(AND(TablaFronteras[[#This Row],[Fila]]<>"",TablaFronteras[[#This Row],[X]]<miX,miX<TablaFronteras[[#This Row],[X]]+TablaFronteras[[#This Row],[Ancho]],TablaFronteras[[#This Row],[Y]]<miY,miY<TablaFronteras[[#This Row],[Y]]+TablaFronteras[[#This Row],[Alto]]),SQRT((TablaFronteras[[#This Row],[Centro X]]-miX)^2+(TablaFronteras[[#This Row],[Centro Y]]-miY)^2),"") ->  | I144: =IF(TablaFronteras[[#This Row],[Frontera]]="","",IFERROR(MATCH(RIGHT(TablaFronteras[[#This Row],[Frontera]],LEN(TablaFronteras[[#This Row],[Frontera]])-IFERROR(FIND(" - ",TablaFronteras[[#This Row],[Frontera]])+2,0)),TablaFronteras[Frontera],0),"")) -> 143
A145: Honduras | B145: 169.9911804 | C145: 161.3237762 | D145: 11.6892128 | E145: 8.185590744 | F145: =TablaFronteras[[#This Row],[X]]+TablaFronteras[[#This Row],[Ancho]]/2 -> 175.8357868 | G145: =TablaFronteras[[#This Row],[Y]]+TablaFronteras[[#This Row],[Alto]]/2 -> 165.4165716 | H145: =IF(AND(TablaFronteras[[#This Row],[Fila]]<>"",TablaFronteras[[#This Row],[X]]<miX,miX<TablaFronteras[[#This Row],[X]]+TablaFronteras[[#This Row],[Ancho]],TablaFronteras[[#This Row],[Y]]<miY,miY<TablaFronteras[[#This Row],[Y]]+TablaFronteras[[#This Row],[Alto]]),SQRT((TablaFronteras[[#This Row],[Centro X]]-miX)^2+(TablaFronteras[[#This Row],[Centro Y]]-miY)^2),"") ->  | I145: =IF(TablaFronteras[[#This Row],[Frontera]]="","",IFERROR(MATCH(RIGHT(TablaFronteras[[#This Row],[Frontera]],LEN(TablaFronteras[[#This Row],[Frontera]])-IFERROR(FIND(" - ",TablaFronteras[[#This Row],[Frontera]])+2,0)),TablaFronteras[Frontera],0),"")) -> 144
A146: Nicaragua | B146: 173.2650452 | C146: 164.9270935 | D146: 8.914409637 | E146: 10.4405508 | F146: =TablaFronteras[[#This Row],[X]]+TablaFronteras[[#This Row],[Ancho]]/2 -> 177.72225 | G146: =TablaFronteras[[#This Row],[Y]]+TablaFronteras[[#This Row],[Alto]]/2 -> 170.1473689 | H146: =IF(AND(TablaFronteras[[#This Row],[Fila]]<>"",TablaFronteras[[#This Row],[X]]<miX,miX<TablaFronteras[[#This Row],[X]]+TablaFronteras[[#This Row],[Ancho]],TablaFronteras[[#This Row],[Y]]<miY,miY<TablaFronteras[[#This Row],[Y]]+TablaFronteras[[#This Row],[Alto]]),SQRT((TablaFronteras[[#This Row],[Centro X]]-miX)^2+(TablaFronteras[[#This Row],[Centro Y]]-miY)^2),"") ->  | I146: =IF(TablaFronteras[[#This Row],[Frontera]]="","",IFERROR(MATCH(RIGHT(TablaFronteras[[#This Row],[Frontera]],LEN(TablaFronteras[[#This Row],[Frontera]])-IFERROR(FIND(" - ",TablaFronteras[[#This Row],[Frontera]])+2,0)),TablaFronteras[Frontera],0),"")) -> 145
A147: Costa Rica | B147: 174.7167664 | C147: 174.4037018 | D147: 7.768897533 | E147: 14.15511799 | F147: =TablaFronteras[[#This Row],[X]]+TablaFronteras[[#This Row],[Ancho]]/2 -> 178.6012151 | G147: =TablaFronteras[[#This Row],[Y]]+TablaFronteras[[#This Row],[Alto]]/2 -> 181.4812608 | H147: =IF(AND(TablaFronteras[[#This Row],[Fila]]<>"",TablaFronteras[[#This Row],[X]]<miX,miX<TablaFronteras[[#This Row],[X]]+TablaFronteras[[#This Row],[Ancho]],TablaFronteras[[#This Row],[Y]]<miY,miY<TablaFronteras[[#This Row],[Y]]+TablaFronteras[[#This Row],[Alto]]),SQRT((TablaFronteras[[#This Row],[Centro X]]-miX)^2+(TablaFronteras[[#This Row],[Centro Y]]-miY)^2),"") ->  | I147: =IF(TablaFronteras[[#This Row],[Frontera]]="","",IFERROR(MATCH(RIGHT(TablaFronteras[[#This Row],[Frontera]],LEN(TablaFronteras[[#This Row],[Frontera]])-IFERROR(FIND(" - ",TablaFronteras[[#This Row],[Frontera]])+2,0)),TablaFronteras[Frontera],0),"")) -> 146
A148: Panamá | B148: 181.9043274 | C148: 178.0170135 | D148: 12.47015762 | E148: 5.75968504 | F148: =TablaFronteras[[#This Row],[X]]+TablaFronteras[[#This Row],[Ancho]]/2 -> 188.1394062 | G148: =TablaFronteras[[#This Row],[Y]]+TablaFronteras[[#This Row],[Alto]]/2 -> 180.8968561 | H148: =IF(AND(TablaFronteras[[#This Row],[Fila]]<>"",TablaFronteras[[#This Row],[X]]<miX,miX<TablaFronteras[[#This Row],[X]]+TablaFronteras[[#This Row],[Ancho]],TablaFronteras[[#This Row],[Y]]<miY,miY<TablaFronteras[[#This Row],[Y]]+TablaFronteras[[#This Row],[Alto]]),SQRT((TablaFronteras[[#This Row],[Centro X]]-miX)^2+(TablaFronteras[[#This Row],[Centro Y]]-miY)^2),"") ->  | I148: =IF(TablaFronteras[[#This Row],[Frontera]]="","",IFERROR(MATCH(RIGHT(TablaFronteras[[#This Row],[Frontera]],LEN(TablaFronteras[[#This Row],[Frontera]])-IFERROR(FIND(" - ",TablaFronteras[[#This Row],[Frontera]])+2,0)),TablaFronteras[Frontera],0),"")) -> 147
A149: Colombia | B149: 189.939682 | C149: 171.1209412 | D149: 25.36535454 | E149: 40.39362335 | F149: =TablaFronteras[[#This Row],[X]]+TablaFronteras[[#This Row],[Ancho]]/2 -> 202.6223593 | G149: =TablaFronteras[[#This Row],[Y]]+TablaFronteras[[#This Row],[Alto]]/2 -> 191.3177528 | H149: =IF(AND(TablaFronteras[[#This Row],[Fila]]<>"",TablaFronteras[[#This Row],[X]]<miX,miX<TablaFronteras[[#This Row],[X]]+TablaFronteras[[#This Row],[Ancho]],TablaFronteras[[#This Row],[Y]]<miY,miY<TablaFronteras[[#This Row],[Y]]+TablaFronteras[[#This Row],[Alto]]),SQRT((TablaFronteras[[#This Row],[Centro X]]-miX)^2+(TablaFronteras[[#This Row],[Centro Y]]-miY)^2),"") ->  | I149: =IF(TablaFronteras[[#This Row],[Frontera]]="","",IFERROR(MATCH(RIGHT(TablaFronteras[[#This Row],[Frontera]],LEN(TablaFronteras[[#This Row],[Frontera]])-IFERROR(FIND(" - ",TablaFronteras[[#This Row],[Frontera]])+2,0)),TablaFronteras[Frontera],0),"")) -> 148
A150: Venezuela | B150: 201.8573303 | C150: 171.627243 | D150: 28.04157448 | E150: 28.02252007 | F150: =TablaFronteras[[#This Row],[X]]+TablaFronteras[[#This Row],[Ancho]]/2 -> 215.8781176 | G150: =TablaFronteras[[#This Row],[Y]]+TablaFronteras[[#This Row],[Alto]]/2 -> 185.6385031 | H150: =IF(AND(TablaFronteras[[#This Row],[Fila]]<>"",TablaFronteras[[#This Row],[X]]<miX,miX<TablaFronteras[[#This Row],[X]]+TablaFronteras[[#This Row],[Ancho]],TablaFronteras[[#This Row],[Y]]<miY,miY<TablaFronteras[[#This Row],[Y]]+TablaFronteras[[#This Row],[Alto]]),SQRT((TablaFronteras[[#This Row],[Centro X]]-miX)^2+(TablaFronteras[[#This Row],[Centro Y]]-miY)^2),"") ->  | I150: =IF(TablaFronteras[[#This Row],[Frontera]]="","",IFERROR(MATCH(RIGHT(TablaFronteras[[#This Row],[Frontera]],LEN(TablaFronteras[[#This Row],[Frontera]])-IFERROR(FIND(" - ",TablaFronteras[[#This Row],[Frontera]])+2,0)),TablaFronteras[Frontera],0),"")) -> 149
A151: Guyana | B151: 226.3843231 | C151: 180.5778809 | D151: 10.44944859 | E151: 17.68149567 | F151: =TablaFronteras[[#This Row],[X]]+TablaFronteras[[#This Row],[Ancho]]/2 -> 231.6090474 | G151: =TablaFronteras[[#This Row],[Y]]+TablaFronteras[[#This Row],[Alto]]/2 -> 189.4186287 | H151: =IF(AND(TablaFronteras[[#This Row],[Fila]]<>"",TablaFronteras[[#This Row],[X]]<miX,miX<TablaFronteras[[#This Row],[X]]+TablaFronteras[[#This Row],[Ancho]],TablaFronteras[[#This Row],[Y]]<miY,miY<TablaFronteras[[#This Row],[Y]]+TablaFronteras[[#This Row],[Alto]]),SQRT((TablaFronteras[[#This Row],[Centro X]]-miX)^2+(TablaFronteras[[#This Row],[Centro Y]]-miY)^2),"") ->  | I151: =IF(TablaFronteras[[#This Row],[Frontera]]="","",IFERROR(MATCH(RIGHT(TablaFronteras[[#This Row],[Frontera]],LEN(TablaFronteras[[#This Row],[Frontera]])-IFERROR(FIND(" - ",TablaFronteras[[#This Row],[Frontera]])+2,0)),TablaFronteras[Frontera],0),"")) -> 150
A152: Surinam | B152: 233.9317322 | C152: 186.6414948 | D152: 8.282755852 | E152: 10.08228302 | F152: =TablaFronteras[[#This Row],[X]]+TablaFronteras[[#This Row],[Ancho]]/2 -> 238.0731101 | G152: =TablaFronteras[[#This Row],[Y]]+TablaFronteras[[#This Row],[Alto]]/2 -> 191.6826363 | H152: =IF(AND(TablaFronteras[[#This Row],[Fila]]<>"",TablaFronteras[[#This Row],[X]]<miX,miX<TablaFronteras[[#This Row],[X]]+TablaFronteras[[#This Row],[Ancho]],TablaFronteras[[#This Row],[Y]]<miY,miY<TablaFronteras[[#This Row],[Y]]+TablaFronteras[[#This Row],[Alto]]),SQRT((TablaFronteras[[#This Row],[Centro X]]-miX)^2+(TablaFronteras[[#This Row],[Centro Y]]-miY)^2),"") ->  | I152: =IF(TablaFronteras[[#This Row],[Frontera]]="","",IFERROR(MATCH(RIGHT(TablaFronteras[[#This Row],[Frontera]],LEN(TablaFronteras[[#This Row],[Frontera]])-IFERROR(FIND(" - ",TablaFronteras[[#This Row],[Frontera]])+2,0)),TablaFronteras[Frontera],0),"")) -> 151
A153: Guayana Francesa | B153: 240.8595276 | C153: 187.2802429 | D153: 7.332126141 | E153: 8.831338882 | F153: =TablaFronteras[[#This Row],[X]]+TablaFronteras[[#This Row],[Ancho]]/2 -> 244.5255907 | G153: =TablaFronteras[[#This Row],[Y]]+TablaFronteras[[#This Row],[Alto]]/2 -> 191.6959124 | H153: =IF(AND(TablaFronteras[[#This Row],[Fila]]<>"",TablaFronteras[[#This Row],[X]]<miX,miX<TablaFronteras[[#This Row],[X]]+TablaFronteras[[#This Row],[Ancho]],TablaFronteras[[#This Row],[Y]]<miY,miY<TablaFronteras[[#This Row],[Y]]+TablaFronteras[[#This Row],[Alto]]),SQRT((TablaFronteras[[#This Row],[Centro X]]-miX)^2+(TablaFronteras[[#This Row],[Centro Y]]-miY)^2),"") ->  | I153: =IF(TablaFronteras[[#This Row],[Frontera]]="","",IFERROR(MATCH(RIGHT(TablaFronteras[[#This Row],[Frontera]],LEN(TablaFronteras[[#This Row],[Frontera]])-IFERROR(FIND(" - ",TablaFronteras[[#This Row],[Frontera]])+2,0)),TablaFronteras[Frontera],0),"")) -> 152
A154: Brasil | B154: 200.3581085 | C154: 188.6278687 | D154: 81.41598511 | E154: 94.30716705 | F154: =TablaFronteras[[#This Row],[X]]+TablaFronteras[[#This Row],[Ancho]]/2 -> 241.0661011 | G154: =TablaFronteras[[#This Row],[Y]]+TablaFronteras[[#This Row],[Alto]]/2 -> 235.7814522 | H154: =IF(AND(TablaFronteras[[#This Row],[Fila]]<>"",TablaFronteras[[#This Row],[X]]<miX,miX<TablaFronteras[[#This Row],[X]]+TablaFronteras[[#This Row],[Ancho]],TablaFronteras[[#This Row],[Y]]<miY,miY<TablaFronteras[[#This Row],[Y]]+TablaFronteras[[#This Row],[Alto]]),SQRT((TablaFronteras[[#This Row],[Centro X]]-miX)^2+(TablaFronteras[[#This Row],[Centro Y]]-miY)^2),"") ->  | I154: =IF(TablaFronteras[[#This Row],[Frontera]]="","",IFERROR(MATCH(RIGHT(TablaFronteras[[#This Row],[Frontera]],LEN(TablaFronteras[[#This Row],[Frontera]])-IFERROR(FIND(" - ",TablaFronteras[[#This Row],[Frontera]])+2,0)),TablaFronteras[Frontera],0),"")) -> 153
A155: Ecuador | B155: 163.71315 | C155: 197.7544861 | D155: 34.59062958 | E155: 15.50181103 | F155: =TablaFronteras[[#This Row],[X]]+TablaFronteras[[#This Row],[Ancho]]/2 -> 181.0084648 | G155: =TablaFronteras[[#This Row],[Y]]+TablaFronteras[[#This Row],[Alto]]/2 -> 205.5053916 | H155: =IF(AND(TablaFronteras[[#This Row],[Fila]]<>"",TablaFronteras[[#This Row],[X]]<miX,miX<TablaFronteras[[#This Row],[X]]+TablaFronteras[[#This Row],[Ancho]],TablaFronteras[[#This Row],[Y]]<miY,miY<TablaFronteras[[#This Row],[Y]]+TablaFronteras[[#This Row],[Alto]]),SQRT((TablaFronteras[[#This Row],[Centro X]]-miX)^2+(TablaFronteras[[#This Row],[Centro Y]]-miY)^2),"") ->  | I155: =IF(TablaFronteras[[#This Row],[Frontera]]="","",IFERROR(MATCH(RIGHT(TablaFronteras[[#This Row],[Frontera]],LEN(TablaFronteras[[#This Row],[Frontera]])-IFERROR(FIND(" - ",TablaFronteras[[#This Row],[Frontera]])+2,0)),TablaFronteras[Frontera],0),"")) -> 154
A156: Perú | B156: 185.2805481 | C156: 201.3333893 | D156: 27.49204636 | E156: 44.24889755 | F156: =TablaFronteras[[#This Row],[X]]+TablaFronteras[[#This Row],[Ancho]]/2 -> 199.0265713 | G156: =TablaFronteras[[#This Row],[Y]]+TablaFronteras[[#This Row],[Alto]]/2 -> 223.4578381 | H156: =IF(AND(TablaFronteras[[#This Row],[Fila]]<>"",TablaFronteras[[#This Row],[X]]<miX,miX<TablaFronteras[[#This Row],[X]]+TablaFronteras[[#This Row],[Ancho]],TablaFronteras[[#This Row],[Y]]<miY,miY<TablaFronteras[[#This Row],[Y]]+TablaFronteras[[#This Row],[Alto]]),SQRT((TablaFronteras[[#This Row],[Centro X]]-miX)^2+(TablaFronteras[[#This Row],[Centro Y]]-miY)^2),"") ->  | I156: =IF(TablaFronteras[[#This Row],[Frontera]]="","",IFERROR(MATCH(RIGHT(TablaFronteras[[#This Row],[Frontera]],LEN(TablaFronteras[[#This Row],[Frontera]])-IFERROR(FIND(" - ",TablaFronteras[[#This Row],[Frontera]])+2,0)),TablaFronteras[Frontera],0),"")) -> 155
A157: Bolivia | B157: 210.4277954 | C157: 224.7107849 | D157: 26.20495987 | E157: 32.00173187 | F157: =TablaFronteras[[#This Row],[X]]+TablaFronteras[[#This Row],[Ancho]]/2 -> 223.5302753 | G157: =TablaFronteras[[#This Row],[Y]]+TablaFronteras[[#This Row],[Alto]]/2 -> 240.7116508 | H157: =IF(AND(TablaFronteras[[#This Row],[Fila]]<>"",TablaFronteras[[#This Row],[X]]<miX,miX<TablaFronteras[[#This Row],[X]]+TablaFronteras[[#This Row],[Ancho]],TablaFronteras[[#This Row],[Y]]<miY,miY<TablaFronteras[[#This Row],[Y]]+TablaFronteras[[#This Row],[Alto]]),SQRT((TablaFronteras[[#This Row],[Centro X]]-miX)^2+(TablaFronteras[[#This Row],[Centro Y]]-miY)^2),"") ->  | I157: =IF(TablaFronteras[[#This Row],[Frontera]]="","",IFERROR(MATCH(RIGHT(TablaFronteras[[#This Row],[Frontera]],LEN(TablaFronteras[[#This Row],[Frontera]])-IFERROR(FIND(" - ",TablaFronteras[[#This Row],[Frontera]])+2,0)),TablaFronteras[Frontera],0),"")) -> 156
A158: Paraguay | B158: 226.7832336 | C158: 248.0851135 | D158: 18.1658268 | E158: 20.0163784 | F158: =TablaFronteras[[#This Row],[X]]+TablaFronteras[[#This Row],[Ancho]]/2 -> 235.866147 | G158: =TablaFronteras[[#This Row],[Y]]+TablaFronteras[[#This Row],[Alto]]/2 -> 258.0933027 | H158: =IF(AND(TablaFronteras[[#This Row],[Fila]]<>"",TablaFronteras[[#This Row],[X]]<miX,miX<TablaFronteras[[#This Row],[X]]+TablaFronteras[[#This Row],[Ancho]],TablaFronteras[[#This Row],[Y]]<miY,miY<TablaFronteras[[#This Row],[Y]]+TablaFronteras[[#This Row],[Alto]]),SQRT((TablaFronteras[[#This Row],[Centro X]]-miX)^2+(TablaFronteras[[#This Row],[Centro Y]]-miY)^2),"") ->  | I158: =IF(TablaFronteras[[#This Row],[Frontera]]="","",IFERROR(MATCH(RIGHT(TablaFronteras[[#This Row],[Frontera]],LEN(TablaFronteras[[#This Row],[Frontera]])-IFERROR(FIND(" - ",TablaFronteras[[#This Row],[Frontera]])+2,0)),TablaFronteras[Frontera],0),"")) -> 157
A159: Uruguay | B159: 239.7929993 | C159: 274.0940247 | D159: 10.09677124 | E159: 11.58834648 | F159: =TablaFronteras[[#This Row],[X]]+TablaFronteras[[#This Row],[Ancho]]/2 -> 244.8413849 | G159: =TablaFronteras[[#This Row],[Y]]+TablaFronteras[[#This Row],[Alto]]/2 -> 279.8881979 | H159: =IF(AND(TablaFronteras[[#This Row],[Fila]]<>"",TablaFronteras[[#This Row],[X]]<miX,miX<TablaFronteras[[#This Row],[X]]+TablaFronteras[[#This Row],[Ancho]],TablaFronteras[[#This Row],[Y]]<miY,miY<TablaFronteras[[#This Row],[Y]]+TablaFronteras[[#This Row],[Alto]]),SQRT((TablaFronteras[[#This Row],[Centro X]]-miX)^2+(TablaFronteras[[#This Row],[Centro Y]]-miY)^2),"") ->  | I159: =IF(TablaFronteras[[#This Row],[Frontera]]="","",IFERROR(MATCH(RIGHT(TablaFronteras[[#This Row],[Frontera]],LEN(TablaFronteras[[#This Row],[Frontera]])-IFERROR(FIND(" - ",TablaFronteras[[#This Row],[Frontera]])+2,0)),TablaFronteras[Frontera],0),"")) -> 158
A160: Chile | B160: 134.8636932 | C160: 243.6229095 | D160: 107.198822 | E160: 91.81575012 | F160: =TablaFronteras[[#This Row],[X]]+TablaFronteras[[#This Row],[Ancho]]/2 -> 188.4631042 | G160: =TablaFronteras[[#This Row],[Y]]+TablaFronteras[[#This Row],[Alto]]/2 -> 289.5307846 | H160: =IF(AND(TablaFronteras[[#This Row],[Fila]]<>"",TablaFronteras[[#This Row],[X]]<miX,miX<TablaFronteras[[#This Row],[X]]+TablaFronteras[[#This Row],[Ancho]],TablaFronteras[[#This Row],[Y]]<miY,miY<TablaFronteras[[#This Row],[Y]]+TablaFronteras[[#This Row],[Alto]]),SQRT((TablaFronteras[[#This Row],[Centro X]]-miX)^2+(TablaFronteras[[#This Row],[Centro Y]]-miY)^2),"") ->  | I160: =IF(TablaFronteras[[#This Row],[Frontera]]="","",IFERROR(MATCH(RIGHT(TablaFronteras[[#This Row],[Frontera]],LEN(TablaFronteras[[#This Row],[Frontera]])-IFERROR(FIND(" - ",TablaFronteras[[#This Row],[Frontera]])+2,0)),TablaFronteras[Frontera],0),"")) -> 159
A161: Argentina | B161: 214.9638519 | C161: 254.023941 | D161: 31.87929153 | E161: 79.16629791 | F161: =TablaFronteras[[#This Row],[X]]+TablaFronteras[[#This Row],[Ancho]]/2 -> 230.9034977 | G161: =TablaFronteras[[#This Row],[Y]]+TablaFronteras[[#This Row],[Alto]]/2 -> 293.60709 | H161: =IF(AND(TablaFronteras[[#This Row],[Fila]]<>"",TablaFronteras[[#This Row],[X]]<miX,miX<TablaFronteras[[#This Row],[X]]+TablaFronteras[[#This Row],[Ancho]],TablaFronteras[[#This Row],[Y]]<miY,miY<TablaFronteras[[#This Row],[Y]]+TablaFronteras[[#This Row],[Alto]]),SQRT((TablaFronteras[[#This Row],[Centro X]]-miX)^2+(TablaFronteras[[#This Row],[Centro Y]]-miY)^2),"") ->  | I161: =IF(TablaFronteras[[#This Row],[Frontera]]="","",IFERROR(MATCH(RIGHT(TablaFronteras[[#This Row],[Frontera]],LEN(TablaFronteras[[#This Row],[Frontera]])-IFERROR(FIND(" - ",TablaFronteras[[#This Row],[Frontera]])+2,0)),TablaFronteras[Frontera],0),"")) -> 160
A162: Puerto Rico | B162: 216.2380371 | C162: 155.100708 | D162: 4.005039215 | E162: 3.331496 | F162: =TablaFronteras[[#This Row],[X]]+TablaFronteras[[#This Row],[Ancho]]/2 -> 218.2405567 | G162: =TablaFronteras[[#This Row],[Y]]+TablaFronteras[[#This Row],[Alto]]/2 -> 156.766456 | H162: =IF(AND(TablaFronteras[[#This Row],[Fila]]<>"",TablaFronteras[[#This Row],[X]]<miX,miX<TablaFronteras[[#This Row],[X]]+TablaFronteras[[#This Row],[Ancho]],TablaFronteras[[#This Row],[Y]]<miY,miY<TablaFronteras[[#This Row],[Y]]+TablaFronteras[[#This Row],[Alto]]),SQRT((TablaFronteras[[#This Row],[Centro X]]-miX)^2+(TablaFronteras[[#This Row],[Centro Y]]-miY)^2),"") ->  | I162: =IF(TablaFronteras[[#This Row],[Frontera]]="","",IFERROR(MATCH(RIGHT(TablaFronteras[[#This Row],[Frontera]],LEN(TablaFronteras[[#This Row],[Frontera]])-IFERROR(FIND(" - ",TablaFronteras[[#This Row],[Frontera]])+2,0)),TablaFronteras[Frontera],0),"")) -> 161
A163: Antigua y Barbuda | B163: 225.0196075 | C163: 157.4405518 | D163: 0.147480309 | E163: 0.08937007934 | F163: =TablaFronteras[[#This Row],[X]]+TablaFronteras[[#This Row],[Ancho]]/2 -> 225.0933477 | G163: =TablaFronteras[[#This Row],[Y]]+TablaFronteras[[#This Row],[Alto]]/2 -> 157.4852368 | H163: =IF(AND(TablaFronteras[[#This Row],[Fila]]<>"",TablaFronteras[[#This Row],[X]]<miX,miX<TablaFronteras[[#This Row],[X]]+TablaFronteras[[#This Row],[Ancho]],TablaFronteras[[#This Row],[Y]]<miY,miY<TablaFronteras[[#This Row],[Y]]+TablaFronteras[[#This Row],[Alto]]),SQRT((TablaFronteras[[#This Row],[Centro X]]-miX)^2+(TablaFronteras[[#This Row],[Centro Y]]-miY)^2),"") ->  | I163: =IF(TablaFronteras[[#This Row],[Frontera]]="","",IFERROR(MATCH(RIGHT(TablaFronteras[[#This Row],[Frontera]],LEN(TablaFronteras[[#This Row],[Frontera]])-IFERROR(FIND(" - ",TablaFronteras[[#This Row],[Frontera]])+2,0)),TablaFronteras[Frontera],0),"")) -> 162
A164: Islas Vírgenes Británicas | B164: 221.7809448 | C164: 155.8264618 | D164: 1.663385868 | E164: 1.014330745 | F164: =TablaFronteras[[#This Row],[X]]+TablaFronteras[[#This Row],[Ancho]]/2 -> 222.6126378 | G164: =TablaFronteras[[#This Row],[Y]]+TablaFronteras[[#This Row],[Alto]]/2 -> 156.3336272 | H164: =IF(AND(TablaFronteras[[#This Row],[Fila]]<>"",TablaFronteras[[#This Row],[X]]<miX,miX<TablaFronteras[[#This Row],[X]]+TablaFronteras[[#This Row],[Ancho]],TablaFronteras[[#This Row],[Y]]<miY,miY<TablaFronteras[[#This Row],[Y]]+TablaFronteras[[#This Row],[Alto]]),SQRT((TablaFronteras[[#This Row],[Centro X]]-miX)^2+(TablaFronteras[[#This Row],[Centro Y]]-miY)^2),"") ->  | I164: =IF(TablaFronteras[[#This Row],[Frontera]]="","",IFERROR(MATCH(RIGHT(TablaFronteras[[#This Row],[Frontera]],LEN(TablaFronteras[[#This Row],[Frontera]])-IFERROR(FIND(" - ",TablaFronteras[[#This Row],[Frontera]])+2,0)),TablaFronteras[Frontera],0),"")) -> 163
A165: Islas Vírgenes de Estados Unidos | B165: 220.8961487 | C165: 157.2038574 | D165: 2.406614065 | E165: 1.156220436 | F165: =TablaFronteras[[#This Row],[X]]+TablaFronteras[[#This Row],[Ancho]]/2 -> 222.0994557 | G165: =TablaFronteras[[#This Row],[Y]]+TablaFronteras[[#This Row],[Alto]]/2 -> 157.7819676 | H165: =IF(AND(TablaFronteras[[#This Row],[Fila]]<>"",TablaFronteras[[#This Row],[X]]<miX,miX<TablaFronteras[[#This Row],[X]]+TablaFronteras[[#This Row],[Ancho]],TablaFronteras[[#This Row],[Y]]<miY,miY<TablaFronteras[[#This Row],[Y]]+TablaFronteras[[#This Row],[Alto]]),SQRT((TablaFronteras[[#This Row],[Centro X]]-miX)^2+(TablaFronteras[[#This Row],[Centro Y]]-miY)^2),"") ->  | I165: =IF(TablaFronteras[[#This Row],[Frontera]]="","",IFERROR(MATCH(RIGHT(TablaFronteras[[#This Row],[Frontera]],LEN(TablaFronteras[[#This Row],[Frontera]])-IFERROR(FIND(" - ",TablaFronteras[[#This Row],[Frontera]])+2,0)),TablaFronteras[Frontera],0),"")) -> 164
A166: Montserrat | B166: 226.3144073 | C166: 160.877243 | D166: 0.0867716521 | E166: 0.1931496114 | F166: =TablaFronteras[[#This Row],[X]]+TablaFronteras[[#This Row],[Ancho]]/2 -> 226.3577932 | G166: =TablaFronteras[[#This Row],[Y]]+TablaFronteras[[#This Row],[Alto]]/2 -> 160.9738178 | H166: =IF(AND(TablaFronteras[[#This Row],[Fila]]<>"",TablaFronteras[[#This Row],[X]]<miX,miX<TablaFronteras[[#This Row],[X]]+TablaFronteras[[#This Row],[Ancho]],TablaFronteras[[#This Row],[Y]]<miY,miY<TablaFronteras[[#This Row],[Y]]+TablaFronteras[[#This Row],[Alto]]),SQRT((TablaFronteras[[#This Row],[Centro X]]-miX)^2+(TablaFronteras[[#This Row],[Centro Y]]-miY)^2),"") ->  | I166: =IF(TablaFronteras[[#This Row],[Frontera]]="","",IFERROR(MATCH(RIGHT(TablaFronteras[[#This Row],[Frontera]],LEN(TablaFronteras[[#This Row],[Frontera]])-IFERROR(FIND(" - ",TablaFronteras[[#This Row],[Frontera]])+2,0)),TablaFronteras[Frontera],0),"")) -> 165
A167: Guadalupe | B167: 227.0011749 | C167: 161.3532257 | D167: 1.281338573 | E167: 1.445196867 | F167: =TablaFronteras[[#This Row],[X]]+TablaFronteras[[#This Row],[Ancho]]/2 -> 227.6418442 | G167: =TablaFronteras[[#This Row],[Y]]+TablaFronteras[[#This Row],[Alto]]/2 -> 162.0758241 | H167: =IF(AND(TablaFronteras[[#This Row],[Fila]]<>"",TablaFronteras[[#This Row],[X]]<miX,miX<TablaFronteras[[#This Row],[X]]+TablaFronteras[[#This Row],[Ancho]],TablaFronteras[[#This Row],[Y]]<miY,miY<TablaFronteras[[#This Row],[Y]]+TablaFronteras[[#This Row],[Alto]]),SQRT((TablaFronteras[[#This Row],[Centro X]]-miX)^2+(TablaFronteras[[#This Row],[Centro Y]]-miY)^2),"") ->  | I167: =IF(TablaFronteras[[#This Row],[Frontera]]="","",IFERROR(MATCH(RIGHT(TablaFronteras[[#This Row],[Frontera]],LEN(TablaFronteras[[#This Row],[Frontera]])-IFERROR(FIND(" - ",TablaFronteras[[#This Row],[Frontera]])+2,0)),TablaFronteras[Frontera],0),"")) -> 166
A168: Santa Lucía | B168: 228.0626831 | C168: 167.3626709 | D168: 0.3990551233 | E168: 0.6154330969 | F168: =TablaFronteras[[#This Row],[X]]+TablaFronteras[[#This Row],[Ancho]]/2 -> 228.2622107 | G168: =TablaFronteras[[#This Row],[Y]]+TablaFronteras[[#This Row],[Alto]]/2 -> 167.6703874 | H168: =IF(AND(TablaFronteras[[#This Row],[Fila]]<>"",TablaFronteras[[#This Row],[X]]<miX,miX<TablaFronteras[[#This Row],[X]]+TablaFronteras[[#This Row],[Ancho]],TablaFronteras[[#This Row],[Y]]<miY,miY<TablaFronteras[[#This Row],[Y]]+TablaFronteras[[#This Row],[Alto]]),SQRT((TablaFronteras[[#This Row],[Centro X]]-miX)^2+(TablaFronteras[[#This Row],[Centro Y]]-miY)^2),"") ->  | I168: =IF(TablaFronteras[[#This Row],[Frontera]]="","",IFERROR(MATCH(RIGHT(TablaFronteras[[#This Row],[Frontera]],LEN(TablaFronteras[[#This Row],[Frontera]])-IFERROR(FIND(" - ",TablaFronteras[[#This Row],[Frontera]])+2,0)),TablaFronteras[Frontera],0),"")) -> 167
A169: Martinica | B169: 227.9850464 | C169: 165.1777954 | D169: 0.7001574636 | E169: 1.275669336 | F169: =TablaFronteras[[#This Row],[X]]+TablaFronteras[[#This Row],[Ancho]]/2 -> 228.3351251 | G169: =TablaFronteras[[#This Row],[Y]]+TablaFronteras[[#This Row],[Alto]]/2 -> 165.8156301 | H169: =IF(AND(TablaFronteras[[#This Row],[Fila]]<>"",TablaFronteras[[#This Row],[X]]<miX,miX<TablaFronteras[[#This Row],[X]]+TablaFronteras[[#This Row],[Ancho]],TablaFronteras[[#This Row],[Y]]<miY,miY<TablaFronteras[[#This Row],[Y]]+TablaFronteras[[#This Row],[Alto]]),SQRT((TablaFronteras[[#This Row],[Centro X]]-miX)^2+(TablaFronteras[[#This Row],[Centro Y]]-miY)^2),"") ->  | I169: =IF(TablaFronteras[[#This Row],[Frontera]]="","",IFERROR(MATCH(RIGHT(TablaFronteras[[#This Row],[Frontera]],LEN(TablaFronteras[[#This Row],[Frontera]])-IFERROR(FIND(" - ",TablaFronteras[[#This Row],[Frontera]])+2,0)),TablaFronteras[Frontera],0),"")) -> 168
A170: Dominica | B170: 227.5127563 | C170: 163.4223633 | D170: 0.480078727 | E170: 1.019370079 | F170: =TablaFronteras[[#This Row],[X]]+TablaFronteras[[#This Row],[Ancho]]/2 -> 227.7527957 | G170: =TablaFronteras[[#This Row],[Y]]+TablaFronteras[[#This Row],[Alto]]/2 -> 163.9320483 | H170: =IF(AND(TablaFronteras[[#This Row],[Fila]]<>"",TablaFronteras[[#This Row],[X]]<miX,miX<TablaFronteras[[#This Row],[X]]+TablaFronteras[[#This Row],[Ancho]],TablaFronteras[[#This Row],[Y]]<miY,miY<TablaFronteras[[#This Row],[Y]]+TablaFronteras[[#This Row],[Alto]]),SQRT((TablaFronteras[[#This Row],[Centro X]]-miX)^2+(TablaFronteras[[#This Row],[Centro Y]]-miY)^2),"") ->  | I170: =IF(TablaFronteras[[#This Row],[Frontera]]="","",IFERROR(MATCH(RIGHT(TablaFronteras[[#This Row],[Frontera]],LEN(TablaFronteras[[#This Row],[Frontera]])-IFERROR(FIND(" - ",TablaFronteras[[#This Row],[Frontera]])+2,0)),TablaFronteras[Frontera],0),"")) -> 169
A171: Barbados | B171: 231.066925 | C171: 168.9992981 | D171: 0.4637008011 | E171: 0.5996062756 | F171: =TablaFronteras[[#This Row],[X]]+TablaFronteras[[#This Row],[Ancho]]/2 -> 231.2987754 | G171: =TablaFronteras[[#This Row],[Y]]+TablaFronteras[[#This Row],[Alto]]/2 -> 169.2991012 | H171: =IF(AND(TablaFronteras[[#This Row],[Fila]]<>"",TablaFronteras[[#This Row],[X]]<miX,miX<TablaFronteras[[#This Row],[X]]+TablaFronteras[[#This Row],[Ancho]],TablaFronteras[[#This Row],[Y]]<miY,miY<TablaFronteras[[#This Row],[Y]]+TablaFronteras[[#This Row],[Alto]]),SQRT((TablaFronteras[[#This Row],[Centro X]]-miX)^2+(TablaFronteras[[#This Row],[Centro Y]]-miY)^2),"") ->  | I171: =IF(TablaFronteras[[#This Row],[Frontera]]="","",IFERROR(MATCH(RIGHT(TablaFronteras[[#This Row],[Frontera]],LEN(TablaFronteras[[#This Row],[Frontera]])-IFERROR(FIND(" - ",TablaFronteras[[#This Row],[Frontera]])+2,0)),TablaFronteras[Frontera],0),"")) -> 170
A172: San Vicente y las Granadinas | B172: 227.5392914 | C172: 168.7996826 | D172: 0.2874015868 | E172: 0.6193701029 | F172: =TablaFronteras[[#This Row],[X]]+TablaFronteras[[#This Row],[Ancho]]/2 -> 227.6829922 | G172: =TablaFronteras[[#This Row],[Y]]+TablaFronteras[[#This Row],[Alto]]/2 -> 169.1093677 | H172: =IF(AND(TablaFronteras[[#This Row],[Fila]]<>"",TablaFronteras[[#This Row],[X]]<miX,miX<TablaFronteras[[#This Row],[X]]+TablaFronteras[[#This Row],[Ancho]],TablaFronteras[[#This Row],[Y]]<miY,miY<TablaFronteras[[#This Row],[Y]]+TablaFronteras[[#This Row],[Alto]]),SQRT((TablaFronteras[[#This Row],[Centro X]]-miX)^2+(TablaFronteras[[#This Row],[Centro Y]]-miY)^2),"") ->  | I172: =IF(TablaFronteras[[#This Row],[Frontera]]="","",IFERROR(MATCH(RIGHT(TablaFronteras[[#This Row],[Frontera]],LEN(TablaFronteras[[#This Row],[Frontera]])-IFERROR(FIND(" - ",TablaFronteras[[#This Row],[Frontera]])+2,0)),TablaFronteras[Frontera],0),"")) -> 171
A173: Granada | B173: 226.4203949 | C173: 171.5576324 | D173: 0.2846456766 | E173: 0.5599212646 | F173: =TablaFronteras[[#This Row],[X]]+TablaFronteras[[#This Row],[Ancho]]/2 -> 226.5627177 | G173: =TablaFronteras[[#This Row],[Y]]+TablaFronteras[[#This Row],[Alto]]/2 -> 171.8375931 | H173: =IF(AND(TablaFronteras[[#This Row],[Fila]]<>"",TablaFronteras[[#This Row],[X]]<miX,miX<TablaFronteras[[#This Row],[X]]+TablaFronteras[[#This Row],[Ancho]],TablaFronteras[[#This Row],[Y]]<miY,miY<TablaFronteras[[#This Row],[Y]]+TablaFronteras[[#This Row],[Alto]]),SQRT((TablaFronteras[[#This Row],[Centro X]]-miX)^2+(TablaFronteras[[#This Row],[Centro Y]]-miY)^2),"") ->  | I173: =IF(TablaFronteras[[#This Row],[Frontera]]="","",IFERROR(MATCH(RIGHT(TablaFronteras[[#This Row],[Frontera]],LEN(TablaFronteras[[#This Row],[Frontera]])-IFERROR(FIND(" - ",TablaFronteras[[#This Row],[Frontera]])+2,0)),TablaFronteras[Frontera],0),"")) -> 172
A174: Trinidad y Tobago | B174: 225.6858215 | C174: 173.7357483 | D174: 2.998897552 | E174: 3.232440948 | F174: =TablaFronteras[[#This Row],[X]]+TablaFronteras[[#This Row],[Ancho]]/2 -> 227.1852703 | G174: =TablaFronteras[[#This Row],[Y]]+TablaFronteras[[#This Row],[Alto]]/2 -> 175.3519688 | H174: =IF(AND(TablaFronteras[[#This Row],[Fila]]<>"",TablaFronteras[[#This Row],[X]]<miX,miX<TablaFronteras[[#This Row],[X]]+TablaFronteras[[#This Row],[Ancho]],TablaFronteras[[#This Row],[Y]]<miY,miY<TablaFronteras[[#This Row],[Y]]+TablaFronteras[[#This Row],[Alto]]),SQRT((TablaFronteras[[#This Row],[Centro X]]-miX)^2+(TablaFronteras[[#This Row],[Centro Y]]-miY)^2),"") ->  | I174: =IF(TablaFronteras[[#This Row],[Frontera]]="","",IFERROR(MATCH(RIGHT(TablaFronteras[[#This Row],[Frontera]],LEN(TablaFronteras[[#This Row],[Frontera]])-IFERROR(FIND(" - ",TablaFronteras[[#This Row],[Frontera]])+2,0)),TablaFronteras[Frontera],0),"")) -> 173
A175: Aruba | B175: 209.588028 | C175: 170.7436218 | D175: 0.3692913353 | E175: 0.3944881856 | F175: =TablaFronteras[[#This Row],[X]]+TablaFronteras[[#This Row],[Ancho]]/2 -> 209.7726736 | G175: =TablaFronteras[[#This Row],[Y]]+TablaFronteras[[#This Row],[Alto]]/2 -> 170.9408659 | H175: =IF(AND(TablaFronteras[[#This Row],[Fila]]<>"",TablaFronteras[[#This Row],[X]]<miX,miX<TablaFronteras[[#This Row],[X]]+TablaFronteras[[#This Row],[Ancho]],TablaFronteras[[#This Row],[Y]]<miY,miY<TablaFronteras[[#This Row],[Y]]+TablaFronteras[[#This Row],[Alto]]),SQRT((TablaFronteras[[#This Row],[Centro X]]-miX)^2+(TablaFronteras[[#This Row],[Centro Y]]-miY)^2),"") ->  | I175: =IF(TablaFronteras[[#This Row],[Frontera]]="","",IFERROR(MATCH(RIGHT(TablaFronteras[[#This Row],[Frontera]],LEN(TablaFronteras[[#This Row],[Frontera]])-IFERROR(FIND(" - ",TablaFronteras[[#This Row],[Frontera]])+2,0)),TablaFronteras[Frontera],0),"")) -> 174
A176: Islas Caimán | B176: 188.1207123 | C176: 154.2396851 | D176: 0.6196063161 | E176: 0.2189763784 | F176: =TablaFronteras[[#This Row],[X]]+TablaFronteras[[#This Row],[Ancho]]/2 -> 188.4305154 | G176: =TablaFronteras[[#This Row],[Y]]+TablaFronteras[[#This Row],[Alto]]/2 -> 154.3491732 | H176: =IF(AND(TablaFronteras[[#This Row],[Fila]]<>"",TablaFronteras[[#This Row],[X]]<miX,miX<TablaFronteras[[#This Row],[X]]+TablaFronteras[[#This Row],[Ancho]],TablaFronteras[[#This Row],[Y]]<miY,miY<TablaFronteras[[#This Row],[Y]]+TablaFronteras[[#This Row],[Alto]]),SQRT((TablaFronteras[[#This Row],[Centro X]]-miX)^2+(TablaFronteras[[#This Row],[Centro Y]]-miY)^2),"") ->  | I176: =IF(TablaFronteras[[#This Row],[Frontera]]="","",IFERROR(MATCH(RIGHT(TablaFronteras[[#This Row],[Frontera]],LEN(TablaFronteras[[#This Row],[Frontera]])-IFERROR(FIND(" - ",TablaFronteras[[#This Row],[Frontera]])+2,0)),TablaFronteras[Frontera],0),"")) -> 175
A177: Bahamas | B177: 195.99646 | C177: 136.0012665 | D177: 10.25771618 | E177: 14.58307076 | F177: =TablaFronteras[[#This Row],[X]]+TablaFronteras[[#This Row],[Ancho]]/2 -> 201.1253181 | G177: =TablaFronteras[[#This Row],[Y]]+TablaFronteras[[#This Row],[Alto]]/2 -> 143.2928019 | H177: =IF(AND(TablaFronteras[[#This Row],[Fila]]<>"",TablaFronteras[[#This Row],[X]]<miX,miX<TablaFronteras[[#This Row],[X]]+TablaFronteras[[#This Row],[Ancho]],TablaFronteras[[#This Row],[Y]]<miY,miY<TablaFronteras[[#This Row],[Y]]+TablaFronteras[[#This Row],[Alto]]),SQRT((TablaFronteras[[#This Row],[Centro X]]-miX)^2+(TablaFronteras[[#This Row],[Centro Y]]-miY)^2),"") ->  | I177: =IF(TablaFronteras[[#This Row],[Frontera]]="","",IFERROR(MATCH(RIGHT(TablaFronteras[[#This Row],[Frontera]],LEN(TablaFronteras[[#This Row],[Frontera]])-IFERROR(FIND(" - ",TablaFronteras[[#This Row],[Frontera]])+2,0)),TablaFronteras[Frontera],0),"")) -> 176
A178: Islas Turcas y Caicos | B178: 207.0651245 | C178: 148.4128418 | D178: 1.881181121 | E178: 0.403622061 | F178: =TablaFronteras[[#This Row],[X]]+TablaFronteras[[#This Row],[Ancho]]/2 -> 208.0057151 | G178: =TablaFronteras[[#This Row],[Y]]+TablaFronteras[[#This Row],[Alto]]/2 -> 148.6146528 | H178: =IF(AND(TablaFronteras[[#This Row],[Fila]]<>"",TablaFronteras[[#This Row],[X]]<miX,miX<TablaFronteras[[#This Row],[X]]+TablaFronteras[[#This Row],[Ancho]],TablaFronteras[[#This Row],[Y]]<miY,miY<TablaFronteras[[#This Row],[Y]]+TablaFronteras[[#This Row],[Alto]]),SQRT((TablaFronteras[[#This Row],[Centro X]]-miX)^2+(TablaFronteras[[#This Row],[Centro Y]]-miY)^2),"") ->  | I178: =IF(TablaFronteras[[#This Row],[Frontera]]="","",IFERROR(MATCH(RIGHT(TablaFronteras[[#This Row],[Frontera]],LEN(TablaFronteras[[#This Row],[Frontera]])-IFERROR(FIND(" - ",TablaFronteras[[#This Row],[Frontera]])+2,0)),TablaFronteras[Frontera],0),"")) -> 177
A179: Haití | B179: 201.548584 | C179: 152.6430664 | D179: 7.39708662 | E179: 4.858267784 | F179: =TablaFronteras[[#This Row],[X]]+TablaFronteras[[#This Row],[Ancho]]/2 -> 205.2471273 | G179: =TablaFronteras[[#This Row],[Y]]+TablaFronteras[[#This Row],[Alto]]/2 -> 155.0722003 | H179: =IF(AND(TablaFronteras[[#This Row],[Fila]]<>"",TablaFronteras[[#This Row],[X]]<miX,miX<TablaFronteras[[#This Row],[X]]+TablaFronteras[[#This Row],[Ancho]],TablaFronteras[[#This Row],[Y]]<miY,miY<TablaFronteras[[#This Row],[Y]]+TablaFronteras[[#This Row],[Alto]]),SQRT((TablaFronteras[[#This Row],[Centro X]]-miX)^2+(TablaFronteras[[#This Row],[Centro Y]]-miY)^2),"") ->  | I179: =IF(TablaFronteras[[#This Row],[Frontera]]="","",IFERROR(MATCH(RIGHT(TablaFronteras[[#This Row],[Frontera]],LEN(TablaFronteras[[#This Row],[Frontera]])-IFERROR(FIND(" - ",TablaFronteras[[#This Row],[Frontera]])+2,0)),TablaFronteras[Frontera],0),"")) -> 178
A180: Santo Tomé y Príncipe | B180: 367.8974915 | C180: 197.1143341 | D180: 2.000236273 | E180: 4.036929131 | F180: =TablaFronteras[[#This Row],[X]]+TablaFronteras[[#This Row],[Ancho]]/2 -> 368.8976096 | G180: =TablaFronteras[[#This Row],[Y]]+TablaFronteras[[#This Row],[Alto]]/2 -> 199.1327987 | H180: =IF(AND(TablaFronteras[[#This Row],[Fila]]<>"",TablaFronteras[[#This Row],[X]]<miX,miX<TablaFronteras[[#This Row],[X]]+TablaFronteras[[#This Row],[Ancho]],TablaFronteras[[#This Row],[Y]]<miY,miY<TablaFronteras[[#This Row],[Y]]+TablaFronteras[[#This Row],[Alto]]),SQRT((TablaFronteras[[#This Row],[Centro X]]-miX)^2+(TablaFronteras[[#This Row],[Centro Y]]-miY)^2),"") ->  | I180: =IF(TablaFronteras[[#This Row],[Frontera]]="","",IFERROR(MATCH(RIGHT(TablaFronteras[[#This Row],[Frontera]],LEN(TablaFronteras[[#This Row],[Frontera]])-IFERROR(FIND(" - ",TablaFronteras[[#This Row],[Frontera]])+2,0)),TablaFronteras[Frontera],0),"")) -> 179
A181: Cabo Verde | B181: 302.0809326 | C181: 159.7339325 | D181: 6.73551178 | E181: 5.647873878 | F181: =TablaFronteras[[#This Row],[X]]+TablaFronteras[[#This Row],[Ancho]]/2 -> 305.4486885 | G181: =TablaFronteras[[#This Row],[Y]]+TablaFronteras[[#This Row],[Alto]]/2 -> 162.5578694 | H181: =IF(AND(TablaFronteras[[#This Row],[Fila]]<>"",TablaFronteras[[#This Row],[X]]<miX,miX<TablaFronteras[[#This Row],[X]]+TablaFronteras[[#This Row],[Ancho]],TablaFronteras[[#This Row],[Y]]<miY,miY<TablaFronteras[[#This Row],[Y]]+TablaFronteras[[#This Row],[Alto]]),SQRT((TablaFronteras[[#This Row],[Centro X]]-miX)^2+(TablaFronteras[[#This Row],[Centro Y]]-miY)^2),"") ->  | I181: =IF(TablaFronteras[[#This Row],[Frontera]]="","",IFERROR(MATCH(RIGHT(TablaFronteras[[#This Row],[Frontera]],LEN(TablaFronteras[[#This Row],[Frontera]])-IFERROR(FIND(" - ",TablaFronteras[[#This Row],[Frontera]])+2,0)),TablaFronteras[Frontera],0),"")) -> 180
A182: Malta | B182: 383.3557434 | C182: 114.0091324 | D182: 0.4512598515 | E182: 0.4594488144 | F182: =TablaFronteras[[#This Row],[X]]+TablaFronteras[[#This Row],[Ancho]]/2 -> 383.5813733 | G182: =TablaFronteras[[#This Row],[Y]]+TablaFronteras[[#This Row],[Alto]]/2 -> 114.2388568 | H182: =IF(AND(TablaFronteras[[#This Row],[Fila]]<>"",TablaFronteras[[#This Row],[X]]<miX,miX<TablaFronteras[[#This Row],[X]]+TablaFronteras[[#This Row],[Ancho]],TablaFronteras[[#This Row],[Y]]<miY,miY<TablaFronteras[[#This Row],[Y]]+TablaFronteras[[#This Row],[Alto]]),SQRT((TablaFronteras[[#This Row],[Centro X]]-miX)^2+(TablaFronteras[[#This Row],[Centro Y]]-miY)^2),"") ->  | I182: =IF(TablaFronteras[[#This Row],[Frontera]]="","",IFERROR(MATCH(RIGHT(TablaFronteras[[#This Row],[Frontera]],LEN(TablaFronteras[[#This Row],[Frontera]])-IFERROR(FIND(" - ",TablaFronteras[[#This Row],[Frontera]])+2,0)),TablaFronteras[Frontera],0),"")) -> 181
A183: Chipre | B183: 418.5930786 | C183: 114.7585831 | D183: 3.302992105 | E183: 2.798818827 | F183: =TablaFronteras[[#This Row],[X]]+TablaFronteras[[#This Row],[Ancho]]/2 -> 420.2445747 | G183: =TablaFronteras[[#This Row],[Y]]+TablaFronteras[[#This Row],[Alto]]/2 -> 116.1579925 | H183: =IF(AND(TablaFronteras[[#This Row],[Fila]]<>"",TablaFronteras[[#This Row],[X]]<miX,miX<TablaFronteras[[#This Row],[X]]+TablaFronteras[[#This Row],[Ancho]],TablaFronteras[[#This Row],[Y]]<miY,miY<TablaFronteras[[#This Row],[Y]]+TablaFronteras[[#This Row],[Alto]]),SQRT((TablaFronteras[[#This Row],[Centro X]]-miX)^2+(TablaFronteras[[#This Row],[Centro Y]]-miY)^2),"") ->  | I183: =IF(TablaFronteras[[#This Row],[Frontera]]="","",IFERROR(MATCH(RIGHT(TablaFronteras[[#This Row],[Frontera]],LEN(TablaFronteras[[#This Row],[Frontera]])-IFERROR(FIND(" - ",TablaFronteras[[#This Row],[Frontera]])+2,0)),TablaFronteras[Frontera],0),"")) -> 182
A184: Islas del Pacífico - Estados Unidos | B184: 660.6483765 | C184: 47.48275757 | D184: 32.25456619 | E184: 25.71330643 | F184: =TablaFronteras[[#This Row],[X]]+TablaFronteras[[#This Row],[Ancho]]/2 -> 676.7756596 | G184: =TablaFronteras[[#This Row],[Y]]+TablaFronteras[[#This Row],[Alto]]/2 -> 60.33941078 | H184: =IF(AND(TablaFronteras[[#This Row],[Fila]]<>"",TablaFronteras[[#This Row],[X]]<miX,miX<TablaFronteras[[#This Row],[X]]+TablaFronteras[[#This Row],[Ancho]],TablaFronteras[[#This Row],[Y]]<miY,miY<TablaFronteras[[#This Row],[Y]]+TablaFronteras[[#This Row],[Alto]]),SQRT((TablaFronteras[[#This Row],[Centro X]]-miX)^2+(TablaFronteras[[#This Row],[Centro Y]]-miY)^2),"") ->  | I184: =IF(TablaFronteras[[#This Row],[Frontera]]="","",IFERROR(MATCH(RIGHT(TablaFronteras[[#This Row],[Frontera]],LEN(TablaFronteras[[#This Row],[Frontera]])-IFERROR(FIND(" - ",TablaFronteras[[#This Row],[Frontera]])+2,0)),TablaFronteras[Frontera],0),"")) -> 5
A185: Isla Diomedes - Rusia | B185: 93.87252045 | C185: 44.8434639 | D185: 0.5247244239 | E185: 0.2967716455 | F185: =TablaFronteras[[#This Row],[X]]+TablaFronteras[[#This Row],[Ancho]]/2 -> 94.13488266 | G185: =TablaFronteras[[#This Row],[Y]]+TablaFronteras[[#This Row],[Alto]]/2 -> 44.99184972 | H185: =IF(AND(TablaFronteras[[#This Row],[Fila]]<>"",TablaFronteras[[#This Row],[X]]<miX,miX<TablaFronteras[[#This Row],[X]]+TablaFronteras[[#This Row],[Ancho]],TablaFronteras[[#This Row],[Y]]<miY,miY<TablaFronteras[[#This Row],[Y]]+TablaFronteras[[#This Row],[Alto]]),SQRT((TablaFronteras[[#This Row],[Centro X]]-miX)^2+(TablaFronteras[[#This Row],[Centro Y]]-miY)^2),"") ->  | I185: =IF(TablaFronteras[[#This Row],[Frontera]]="","",IFERROR(MATCH(RIGHT(TablaFronteras[[#This Row],[Frontera]],LEN(TablaFronteras[[#This Row],[Frontera]])-IFERROR(FIND(" - ",TablaFronteras[[#This Row],[Frontera]])+2,0)),TablaFronteras[Frontera],0),"")) -> 11
A186: Islas Feroe | B186: 346.9181213 | C186: 52.52299118 | D186: 1.26346457 | E186: 2.098818779 | F186: =TablaFronteras[[#This Row],[X]]+TablaFronteras[[#This Row],[Ancho]]/2 -> 347.5498536 | G186: =TablaFronteras[[#This Row],[Y]]+TablaFronteras[[#This Row],[Alto]]/2 -> 53.57240057 | H186: =IF(AND(TablaFronteras[[#This Row],[Fila]]<>"",TablaFronteras[[#This Row],[X]]<miX,miX<TablaFronteras[[#This Row],[X]]+TablaFronteras[[#This Row],[Ancho]],TablaFronteras[[#This Row],[Y]]<miY,miY<TablaFronteras[[#This Row],[Y]]+TablaFronteras[[#This Row],[Alto]]),SQRT((TablaFronteras[[#This Row],[Centro X]]-miX)^2+(TablaFronteras[[#This Row],[Centro Y]]-miY)^2),"") ->  | I186: =IF(TablaFronteras[[#This Row],[Frontera]]="","",IFERROR(MATCH(RIGHT(TablaFronteras[[#This Row],[Frontera]],LEN(TablaFronteras[[#This Row],[Frontera]])-IFERROR(FIND(" - ",TablaFronteras[[#This Row],[Frontera]])+2,0)),TablaFronteras[Frontera],0),"")) -> 185
A187: Nueva Caledonia | B187: 681.442688 | C187: 247.838028 | D187: 15.38826752 | E187: 8.325590134 | F187: =TablaFronteras[[#This Row],[X]]+TablaFronteras[[#This Row],[Ancho]]/2 -> 689.1368217 | G187: =TablaFronteras[[#This Row],[Y]]+TablaFronteras[[#This Row],[Alto]]/2 -> 252.000823 | H187: =IF(AND(TablaFronteras[[#This Row],[Fila]]<>"",TablaFronteras[[#This Row],[X]]<miX,miX<TablaFronteras[[#This Row],[X]]+TablaFronteras[[#This Row],[Ancho]],TablaFronteras[[#This Row],[Y]]<miY,miY<TablaFronteras[[#This Row],[Y]]+TablaFronteras[[#This Row],[Alto]]),SQRT((TablaFronteras[[#This Row],[Centro X]]-miX)^2+(TablaFronteras[[#This Row],[Centro Y]]-miY)^2),"") ->  | I187: =IF(TablaFronteras[[#This Row],[Frontera]]="","",IFERROR(MATCH(RIGHT(TablaFronteras[[#This Row],[Frontera]],LEN(TablaFronteras[[#This Row],[Frontera]])-IFERROR(FIND(" - ",TablaFronteras[[#This Row],[Frontera]])+2,0)),TablaFronteras[Frontera],0),"")) -> 186
A188: Vanuatu | B188: 696.9837036 | C188: 234.508667 | D188: 4.220157623 | E188: 15.83582687 | F188: =TablaFronteras[[#This Row],[X]]+TablaFronteras[[#This Row],[Ancho]]/2 -> 699.0937824 | G188: =TablaFronteras[[#This Row],[Y]]+TablaFronteras[[#This Row],[Alto]]/2 -> 242.4265804 | H188: =IF(AND(TablaFronteras[[#This Row],[Fila]]<>"",TablaFronteras[[#This Row],[X]]<miX,miX<TablaFronteras[[#This Row],[X]]+TablaFronteras[[#This Row],[Ancho]],TablaFronteras[[#This Row],[Y]]<miY,miY<TablaFronteras[[#This Row],[Y]]+TablaFronteras[[#This Row],[Alto]]),SQRT((TablaFronteras[[#This Row],[Centro X]]-miX)^2+(TablaFronteras[[#This Row],[Centro Y]]-miY)^2),"") ->  | I188: =IF(TablaFronteras[[#This Row],[Frontera]]="","",IFERROR(MATCH(RIGHT(TablaFronteras[[#This Row],[Frontera]],LEN(TablaFronteras[[#This Row],[Frontera]])-IFERROR(FIND(" - ",TablaFronteras[[#This Row],[Frontera]])+2,0)),TablaFronteras[Frontera],0),"")) -> 187
A189: Fiyi | B189: 718.1531982 | C189: 240.2422791 | D189: 6.235433102 | E189: 7.572755814 | F189: =TablaFronteras[[#This Row],[X]]+TablaFronteras[[#This Row],[Ancho]]/2 -> 721.2709148 | G189: =TablaFronteras[[#This Row],[Y]]+TablaFronteras[[#This Row],[Alto]]/2 -> 244.028657 | H189: =IF(AND(TablaFronteras[[#This Row],[Fila]]<>"",TablaFronteras[[#This Row],[X]]<miX,miX<TablaFronteras[[#This Row],[X]]+TablaFronteras[[#This Row],[Ancho]],TablaFronteras[[#This Row],[Y]]<miY,miY<TablaFronteras[[#This Row],[Y]]+TablaFronteras[[#This Row],[Alto]]),SQRT((TablaFronteras[[#This Row],[Centro X]]-miX)^2+(TablaFronteras[[#This Row],[Centro Y]]-miY)^2),"") ->  | I189: =IF(TablaFronteras[[#This Row],[Frontera]]="","",IFERROR(MATCH(RIGHT(TablaFronteras[[#This Row],[Frontera]],LEN(TablaFronteras[[#This Row],[Frontera]])-IFERROR(FIND(" - ",TablaFronteras[[#This Row],[Frontera]])+2,0)),TablaFronteras[Frontera],0),"")) -> 188
A190: Tonga | B190: 730.9012451 | C190: 246.1833038 | D190: 4.82047224 | E190: 7.073071003 | F190: =TablaFronteras[[#This Row],[X]]+TablaFronteras[[#This Row],[Ancho]]/2 -> 733.3114812 | G190: =TablaFronteras[[#This Row],[Y]]+TablaFronteras[[#This Row],[Alto]]/2 -> 249.7198393 | H190: =IF(AND(TablaFronteras[[#This Row],[Fila]]<>"",TablaFronteras[[#This Row],[X]]<miX,miX<TablaFronteras[[#This Row],[X]]+TablaFronteras[[#This Row],[Ancho]],TablaFronteras[[#This Row],[Y]]<miY,miY<TablaFronteras[[#This Row],[Y]]+TablaFronteras[[#This Row],[Alto]]),SQRT((TablaFronteras[[#This Row],[Centro X]]-miX)^2+(TablaFronteras[[#This Row],[Centro Y]]-miY)^2),"") ->  | I190: =IF(TablaFronteras[[#This Row],[Frontera]]="","",IFERROR(MATCH(RIGHT(TablaFronteras[[#This Row],[Frontera]],LEN(TablaFronteras[[#This Row],[Frontera]])-IFERROR(FIND(" - ",TablaFronteras[[#This Row],[Frontera]])+2,0)),TablaFronteras[Frontera],0),"")) -> 189
A191: Timor Oriental | B191: 611.0870361 | C191: 221.4888153 | D191: 7.285275459 | E191: 2.93299222 | F191: =TablaFronteras[[#This Row],[X]]+TablaFronteras[[#This Row],[Ancho]]/2 -> 614.7296739 | G191: =TablaFronteras[[#This Row],[Y]]+TablaFronteras[[#This Row],[Alto]]/2 -> 222.9553114 | H191: =IF(AND(TablaFronteras[[#This Row],[Fila]]<>"",TablaFronteras[[#This Row],[X]]<miX,miX<TablaFronteras[[#This Row],[X]]+TablaFronteras[[#This Row],[Ancho]],TablaFronteras[[#This Row],[Y]]<miY,miY<TablaFronteras[[#This Row],[Y]]+TablaFronteras[[#This Row],[Alto]]),SQRT((TablaFronteras[[#This Row],[Centro X]]-miX)^2+(TablaFronteras[[#This Row],[Centro Y]]-miY)^2),"") ->  | I191: =IF(TablaFronteras[[#This Row],[Frontera]]="","",IFERROR(MATCH(RIGHT(TablaFronteras[[#This Row],[Frontera]],LEN(TablaFronteras[[#This Row],[Frontera]])-IFERROR(FIND(" - ",TablaFronteras[[#This Row],[Frontera]])+2,0)),TablaFronteras[Frontera],0),"")) -> 190
A192: Líbano | B192: 424.4041748 | C192: 117.3682709 | D192: 2.551417351 | E192: 3.759842634 | F192: =TablaFronteras[[#This Row],[X]]+TablaFronteras[[#This Row],[Ancho]]/2 -> 425.6798835 | G192: =TablaFronteras[[#This Row],[Y]]+TablaFronteras[[#This Row],[Alto]]/2 -> 119.2481922 | H192: =IF(AND(TablaFronteras[[#This Row],[Fila]]<>"",TablaFronteras[[#This Row],[X]]<miX,miX<TablaFronteras[[#This Row],[X]]+TablaFronteras[[#This Row],[Ancho]],TablaFronteras[[#This Row],[Y]]<miY,miY<TablaFronteras[[#This Row],[Y]]+TablaFronteras[[#This Row],[Alto]]),SQRT((TablaFronteras[[#This Row],[Centro X]]-miX)^2+(TablaFronteras[[#This Row],[Centro Y]]-miY)^2),"") ->  | I192: =IF(TablaFronteras[[#This Row],[Frontera]]="","",IFERROR(MATCH(RIGHT(TablaFronteras[[#This Row],[Frontera]],LEN(TablaFronteras[[#This Row],[Frontera]])-IFERROR(FIND(" - ",TablaFronteras[[#This Row],[Frontera]])+2,0)),TablaFronteras[Frontera],0),"")) -> 191
A193: Palestina | B193: 421.9736938 | C193: 122.4152756 | D193: 3.072913408 | E193: 3.187322855 | F193: =TablaFronteras[[#This Row],[X]]+TablaFronteras[[#This Row],[Ancho]]/2 -> 423.5101506 | G193: =TablaFronteras[[#This Row],[Y]]+TablaFronteras[[#This Row],[Alto]]/2 -> 124.008937 | H193: =IF(AND(TablaFronteras[[#This Row],[Fila]]<>"",TablaFronteras[[#This Row],[X]]<miX,miX<TablaFronteras[[#This Row],[X]]+TablaFronteras[[#This Row],[Ancho]],TablaFronteras[[#This Row],[Y]]<miY,miY<TablaFronteras[[#This Row],[Y]]+TablaFronteras[[#This Row],[Alto]]),SQRT((TablaFronteras[[#This Row],[Centro X]]-miX)^2+(TablaFronteras[[#This Row],[Centro Y]]-miY)^2),"") ->  | I193: =IF(TablaFronteras[[#This Row],[Frontera]]="","",IFERROR(MATCH(RIGHT(TablaFronteras[[#This Row],[Frontera]],LEN(TablaFronteras[[#This Row],[Frontera]])-IFERROR(FIND(" - ",TablaFronteras[[#This Row],[Frontera]])+2,0)),TablaFronteras[Frontera],0),"")) -> 192
A194: Islas Malvinas | B194: 248.1271667 | C194: 324.5989685 | D194: 5.743071079 | E194: 2.446299314 | F194: =TablaFronteras[[#This Row],[X]]+TablaFronteras[[#This Row],[Ancho]]/2 -> 250.9987023 | G194: =TablaFronteras[[#This Row],[Y]]+TablaFronteras[[#This Row],[Alto]]/2 -> 325.8221182 | H194: =IF(AND(TablaFronteras[[#This Row],[Fila]]<>"",TablaFronteras[[#This Row],[X]]<miX,miX<TablaFronteras[[#This Row],[X]]+TablaFronteras[[#This Row],[Ancho]],TablaFronteras[[#This Row],[Y]]<miY,miY<TablaFronteras[[#This Row],[Y]]+TablaFronteras[[#This Row],[Alto]]),SQRT((TablaFronteras[[#This Row],[Centro X]]-miX)^2+(TablaFronteras[[#This Row],[Centro Y]]-miY)^2),"") ->  | I194: =IF(TablaFronteras[[#This Row],[Frontera]]="","",IFERROR(MATCH(RIGHT(TablaFronteras[[#This Row],[Frontera]],LEN(TablaFronteras[[#This Row],[Frontera]])-IFERROR(FIND(" - ",TablaFronteras[[#This Row],[Frontera]])+2,0)),TablaFronteras[Frontera],0),"")) -> 193
A195: Gambia | B195: 319.8961487 | C195: 167.5972443 | D195: 5.563700676 | E195: 1.917007923 | F195: =TablaFronteras[[#This Row],[X]]+TablaFronteras[[#This Row],[Ancho]]/2 -> 322.677999 | G195: =TablaFronteras[[#This Row],[Y]]+TablaFronteras[[#This Row],[Alto]]/2 -> 168.5557482 | H195: =IF(AND(TablaFronteras[[#This Row],[Fila]]<>"",TablaFronteras[[#This Row],[X]]<miX,miX<TablaFronteras[[#This Row],[X]]+TablaFronteras[[#This Row],[Ancho]],TablaFronteras[[#This Row],[Y]]<miY,miY<TablaFronteras[[#This Row],[Y]]+TablaFronteras[[#This Row],[Alto]]),SQRT((TablaFronteras[[#This Row],[Centro X]]-miX)^2+(TablaFronteras[[#This Row],[Centro Y]]-miY)^2),"") ->  | I195: =IF(TablaFronteras[[#This Row],[Frontera]]="","",IFERROR(MATCH(RIGHT(TablaFronteras[[#This Row],[Frontera]],LEN(TablaFronteras[[#This Row],[Frontera]])-IFERROR(FIND(" - ",TablaFronteras[[#This Row],[Frontera]])+2,0)),TablaFronteras[Frontera],0),"")) -> 194
A196: Luxemburgo | B196: 367.5214844 | C196: 80.2151947 | D196: 1.384803176 | E196: 1.670314908 | F196: =TablaFronteras[[#This Row],[X]]+TablaFronteras[[#This Row],[Ancho]]/2 -> 368.213886 | G196: =TablaFronteras[[#This Row],[Y]]+TablaFronteras[[#This Row],[Alto]]/2 -> 81.05035216 | H196: =IF(AND(TablaFronteras[[#This Row],[Fila]]<>"",TablaFronteras[[#This Row],[X]]<miX,miX<TablaFronteras[[#This Row],[X]]+TablaFronteras[[#This Row],[Ancho]],TablaFronteras[[#This Row],[Y]]<miY,miY<TablaFronteras[[#This Row],[Y]]+TablaFronteras[[#This Row],[Alto]]),SQRT((TablaFronteras[[#This Row],[Centro X]]-miX)^2+(TablaFronteras[[#This Row],[Centro Y]]-miY)^2),"") ->  | I196: =IF(TablaFronteras[[#This Row],[Frontera]]="","",IFERROR(MATCH(RIGHT(TablaFronteras[[#This Row],[Frontera]],LEN(TablaFronteras[[#This Row],[Frontera]])-IFERROR(FIND(" - ",TablaFronteras[[#This Row],[Frontera]])+2,0)),TablaFronteras[Frontera],0),"")) -> 195
A197: Andorra | B197: 358.7071533 | C197: 97.98252106 | D197: 0.6911811233 | E197: 0.4897637665 | F197: =TablaFronteras[[#This Row],[X]]+TablaFronteras[[#This Row],[Ancho]]/2 -> 359.0527439 | G197: =TablaFronteras[[#This Row],[Y]]+TablaFronteras[[#This Row],[Alto]]/2 -> 98.22740294 | H197: =IF(AND(TablaFronteras[[#This Row],[Fila]]<>"",TablaFronteras[[#This Row],[X]]<miX,miX<TablaFronteras[[#This Row],[X]]+TablaFronteras[[#This Row],[Ancho]],TablaFronteras[[#This Row],[Y]]<miY,miY<TablaFronteras[[#This Row],[Y]]+TablaFronteras[[#This Row],[Alto]]),SQRT((TablaFronteras[[#This Row],[Centro X]]-miX)^2+(TablaFronteras[[#This Row],[Centro Y]]-miY)^2),"") ->  | I197: =IF(TablaFronteras[[#This Row],[Frontera]]="","",IFERROR(MATCH(RIGHT(TablaFronteras[[#This Row],[Frontera]],LEN(TablaFronteras[[#This Row],[Frontera]])-IFERROR(FIND(" - ",TablaFronteras[[#This Row],[Frontera]])+2,0)),TablaFronteras[Frontera],0),"")) -> 196
A198: Liechtenstein | B198: 373.546936 | C198: 87.14803314 | D198: 0.2483464628 | E198: 0.5101574659 | F198: =TablaFronteras[[#This Row],[X]]+TablaFronteras[[#This Row],[Ancho]]/2 -> 373.6711093 | G198: =TablaFronteras[[#This Row],[Y]]+TablaFronteras[[#This Row],[Alto]]/2 -> 87.40311188 | H198: =IF(AND(TablaFronteras[[#This Row],[Fila]]<>"",TablaFronteras[[#This Row],[X]]<miX,miX<TablaFronteras[[#This Row],[X]]+TablaFronteras[[#This Row],[Ancho]],TablaFronteras[[#This Row],[Y]]<miY,miY<TablaFronteras[[#This Row],[Y]]+TablaFronteras[[#This Row],[Alto]]),SQRT((TablaFronteras[[#This Row],[Centro X]]-miX)^2+(TablaFronteras[[#This Row],[Centro Y]]-miY)^2),"") ->  | I198: =IF(TablaFronteras[[#This Row],[Frontera]]="","",IFERROR(MATCH(RIGHT(TablaFronteras[[#This Row],[Frontera]],LEN(TablaFronteras[[#This Row],[Frontera]])-IFERROR(FIND(" - ",TablaFronteras[[#This Row],[Frontera]])+2,0)),TablaFronteras[Frontera],0),"")) -> 197
A199: San Marino | B199: 379.1040039 | C199: 95.16464233 | D199: 0.3192125857 | E199: 0.3139370084 | F199: =TablaFronteras[[#This Row],[X]]+TablaFronteras[[#This Row],[Ancho]]/2 -> 379.2636102 | G199: =TablaFronteras[[#This Row],[Y]]+TablaFronteras[[#This Row],[Alto]]/2 -> 95.32161084 | H199: =IF(AND(TablaFronteras[[#This Row],[Fila]]<>"",TablaFronteras[[#This Row],[X]]<miX,miX<TablaFronteras[[#This Row],[X]]+TablaFronteras[[#This Row],[Ancho]],TablaFronteras[[#This Row],[Y]]<miY,miY<TablaFronteras[[#This Row],[Y]]+TablaFronteras[[#This Row],[Alto]]),SQRT((TablaFronteras[[#This Row],[Centro X]]-miX)^2+(TablaFronteras[[#This Row],[Centro Y]]-miY)^2),"") ->  | I199: =IF(TablaFronteras[[#This Row],[Frontera]]="","",IFERROR(MATCH(RIGHT(TablaFronteras[[#This Row],[Frontera]],LEN(TablaFronteras[[#This Row],[Frontera]])-IFERROR(FIND(" - ",TablaFronteras[[#This Row],[Frontera]])+2,0)),TablaFronteras[Frontera],0),"")) -> 198
A200: Gibraltar | B200: 345.1643372 | C200: 113.6959839 | D200: 0.1970866174 | E200: 0.1848818958 | F200: =TablaFronteras[[#This Row],[X]]+TablaFronteras[[#This Row],[Ancho]]/2 -> 345.2628805 | G200: =TablaFronteras[[#This Row],[Y]]+TablaFronteras[[#This Row],[Alto]]/2 -> 113.7884248 | H200: =IF(AND(TablaFronteras[[#This Row],[Fila]]<>"",TablaFronteras[[#This Row],[X]]<miX,miX<TablaFronteras[[#This Row],[X]]+TablaFronteras[[#This Row],[Ancho]],TablaFronteras[[#This Row],[Y]]<miY,miY<TablaFronteras[[#This Row],[Y]]+TablaFronteras[[#This Row],[Alto]]),SQRT((TablaFronteras[[#This Row],[Centro X]]-miX)^2+(TablaFronteras[[#This Row],[Centro Y]]-miY)^2),"") ->  | I200: =IF(TablaFronteras[[#This Row],[Frontera]]="","",IFERROR(MATCH(RIGHT(TablaFronteras[[#This Row],[Frontera]],LEN(TablaFronteras[[#This Row],[Frontera]])-IFERROR(FIND(" - ",TablaFronteras[[#This Row],[Frontera]])+2,0)),TablaFronteras[Frontera],0),"")) -> 199
... 45 more rows
